Workbook

Sheet INGRESO DE DATOS
A13: INGRESE LOS DATOS DEL PROPUESTO ASEGURADO:
C15: Nombre del Asegurado principal: | D15: NOMBRE EL AGENTE
F17: Número de adultos en la póliza: | G17: 1 | I17: Número de hijos en la póliza: | J17: 0
F19: Edad del titular: | G19: 40 | I19: Edad de cónyuge: | J19: 46
F21: Zona de cotización: | G21: Resto de Ecuador
A24: INGRESE EL NOMBRE DE LA AGENCIA ASESORA:
B26: Nombre de la Agencia: | D26: NOMBRE DE LA AGENCIA
A29: ESCOJA EL PRODUCTO PARA VISUALIZAR LA COTIZACION RESPECTIVA:

Sheet Essential 1000
C11: Cotización de Seguro Médico | H11: Cotización de Seguro Médico Internacional: BUPA ESSENTIAL 1000
A13: RESUMEN DE BENEFICIOS | G13: Nombre del asegurado : | H13: =+'INGRESO DE DATOS'!$D$15 -> NOMBRE EL AGENTE
G15: Broker / Agente : | H15: =+'INGRESO DE DATOS'!$D$26 -> NOMBRE DE LA AGENCIA
I17: Número de adultos en la póliza: | J17: =+'INGRESO DE DATOS'!$G$17 -> 1 | K17: Edad de Titular : | L17: =+'INGRESO DE DATOS'!$G$19 -> 40
I19: Número hijos (menos 24 años): | J19: =+'INGRESO DE DATOS'!$J$17 -> 0 | K19: Edad de Cónyuge: | L19: =+'INGRESO DE DATOS'!$J$19 -> 46
I21: Fecha cotización: | J21: =+TODAY() -> 2023-05-16 | K21: Zona de cotización: | L21: ='INGRESO DE DATOS'!G21 -> Resto de Ecuador
F23: Deducibles | H23: PLAN 1 | I23: PLAN 2 | J23: PLAN 3 | K23: PLAN 4 | L23: PLAN 5 | M23: PLAN 6 | N23: PLAN 7
F24: Dentro del pais de residencia | H24: 250 | I24: 500 | J24: 1000 | K24: 2000 | L24: 5000 | M24: 10000 | N24: 20000
F25: Fuera del pais de residencia | H25: 500 | I25: 1000 | J25: 2000 | K25: 4000 | L25: 5000 | M25: 10000 | N25: 20000
F27: Tarifas Mensuales
F28: Prima de Titular : | H28: =VLOOKUP($L$17,Tablas!$A$991:$I$1053,3,TRUE)+(60/12)+50 -> 394.9464167 | I28: =VLOOKUP($L$17,Tablas!$A$991:$I$1053,4,TRUE)+(60/12)+50 -> 350.4705833 | J28: =VLOOKUP($L$17,Tablas!$A$991:$I$1053,5,TRUE)+(60/12)+50 -> 312.792 | K28: =VLOOKUP($L$17,Tablas!$A$991:$I$1053,6,TRUE)+(60/12)+50 -> 248.7635833 | L28: =VLOOKUP($L$17,Tablas!$A$991:$I$1053,7,TRUE)+(60/12)+50 -> 175.58825 | M28: =VLOOKUP($L$17,Tablas!$A$991:$I$1053,8,TRUE)+(60/12)+50 -> 132.9585833 | N28: =VLOOKUP($L$17,Tablas!$A$991:$I$1053,9,TRUE)+(60/12)+50 -> 107.0283333
F29: Prima de Cónyuge | H29: =IF($J$17=1,0,(VLOOKUP($L$19,Tablas!$A$991:$I$1053,3,TRUE))) -> 0 | I29: =IF($J$17=1,0,(VLOOKUP($L$19,Tablas!$A$991:$I$1053,4,TRUE))) -> 0 | J29: =IF($J$17=1,0,(VLOOKUP($L$19,Tablas!$A$991:$I$1053,5,TRUE))) -> 0 | K29: =IF($J$17=1,0,(VLOOKUP($L$19,Tablas!$A$991:$I$1053,6,TRUE))) -> 0 | L29: =IF($J$17=1,0,(VLOOKUP($L$19,Tablas!$A$991:$I$1053,7,TRUE))) -> 0 | M29: =IF($J$17=1,0,(VLOOKUP($L$19,Tablas!$A$991:$I$1053,8,TRUE))) -> 0 | N29: =IF($J$17=1,0,(VLOOKUP($L$19,Tablas!$A$991:$I$1053,9,TRUE))) -> 0
F30: Primas Hijos : | H30: =IF($J$19=0,0,(VLOOKUP($J$19,Tablas!$A$1054:$I$1056,3,TRUE))) -> 0 | I30: =IF($J$19=0,0,(VLOOKUP($J$19,Tablas!$A$1054:$I$1056,4,TRUE))) -> 0 | J30: =IF($J$19=0,0,(VLOOKUP($J$19,Tablas!$A$1054:$I$1056,5,TRUE))) -> 0 | K30: =IF($J$19=0,0,(VLOOKUP($J$19,Tablas!$A$1054:$I$1056,6,TRUE))) -> 0 | L30: =IF($J$19=0,0,(VLOOKUP($J$19,Tablas!$A$1054:$I$1056,7,TRUE))) -> 0 | M30: =IF($J$19=0,0,(VLOOKUP($J$19,Tablas!$A$1054:$I$1056,8,TRUE))) -> 0 | N30: =IF($J$19=0,0,(VLOOKUP($J$19,Tablas!$A$1054:$I$1056,9,TRUE))) -> 0
F31: TOTAL PRIMA NETA : | H31: =SUM(H28:H30) -> 394.9464167 | I31: =SUM(I28:I30) -> 350.4705833 | J31: =SUM(J28:J30) -> 312.792 | K31: =SUM(K28:K30) -> 248.7635833 | L31: =SUM(L28:L30) -> 175.58825 | M31: =SUM(M28:M30) -> 132.9585833 | N31: 107.0283333
F32: Costo Administrativo Anual : | H32: 0 | I32: 0 | J32: 0 | K32: 0 | L32: 0 | M32: 0 | N32: 0
F33: Contrib. 3.5% Super. Bancos : | H33: =+H31*3.5% -> 13.82312458 | I33: =+I31*3.5% -> 12.26647042 | J33: 10.94772 | K33: 8.706725417 | L33: 6.14558875 | M33: 4.653550417 | N33: 3.745991667
F34: Contrib 0.5% Seg.Soc.Campes.: | H34: =+H31*0.5% -> 1.974732083 | I34: =+I31*0.5% -> 1.752352917 | J34: 1.56396 | K34: 1.243817917 | L34: 0.87794125 | M34: 0.6647929167 | N34: 0.5351416667
F35: TOTAL Primer Cuota : | H35: =SUM(H31:H34) -> 410.7442733 | I35: =SUM(I31:I34) -> 364.4894067 | J35: =SUM(J31:J34) -> 325.30368 | K35: =SUM(K31:K34) -> 258.7141267 | L35: =SUM(L31:L34) -> 182.61178 | M35: =SUM(M31:M34) -> 138.2769267 | N35: 111.3094667
F36: Valor Cuota Mensual 2 a 12 : | H36: =(H31 + H33 + H34)-52 -> 358.7442733 | I36: =(I31 + I33 + I34)-52 -> 312.4894067 | J36: =(J31 + J33 + J34)-52 -> 273.30368 | K36: =(K31 + K33 + K34)-52 -> 206.7141267 | L36: =(L31 + L33 + L34)-52 -> 130.61178 | M36: =(M31 + M33 + M34)-52 -> 86.27692667 | N36: 59.30946667
F38: Tarifas Anuales
F39: Prima de Titular : | H39: =VLOOKUP($L$17,Tablas!$A$920:$Q$982,3,TRUE)+(60)+50 -> 3958.45 | I39: =VLOOKUP($L$17,Tablas!$A$920:$Q$982,4,TRUE)+(60)+50 -> 3454.95 | J39: =VLOOKUP($L$17,Tablas!$A$920:$Q$982,5,TRUE)+(60)+50 -> 3028.4 | K39: =VLOOKUP($L$17,Tablas!$A$920:$Q$982,6,TRUE)+(60)+50 -> 2303.55 | L39: =VLOOKUP($L$17,Tablas!$A$920:$Q$982,7,TRUE)+(60)+50 -> 1475.15 | M39: =VLOOKUP($L$17,Tablas!$A$920:$Q$982,8,TRUE)+(60)+50 -> 992.55 | N39: =VLOOKUP($L$17,Tablas!$A$920:$Q$982,9,TRUE)+(60)+50 -> 699
F40: Prima de Cónyuge | H40: =IF($J$17=1,0,(VLOOKUP($L$19,Tablas!$A$920:$Q$982,3,TRUE))) -> 0 | I40: =IF($J$17=1,0,(VLOOKUP($L$19,Tablas!$A$920:$Q$982,4,TRUE))) -> 0 | J40: =IF($J$17=1,0,(VLOOKUP($L$19,Tablas!$A$920:$Q$982,5,TRUE))) -> 0 | K40: =IF($J$17=1,0,(VLOOKUP($L$19,Tablas!$A$920:$Q$982,6,TRUE))) -> 0 | L40: =IF($J$17=1,0,(VLOOKUP($L$19,Tablas!$A$920:$Q$982,7,TRUE))) -> 0 | M40: =IF($J$17=1,0,(VLOOKUP($L$19,Tablas!$A$920:$Q$982,8,TRUE))) -> 0 | N40: =IF($J$17=1,0,(VLOOKUP($L$19,Tablas!$A$920:$Q$982,9,TRUE))) -> 0
F41: Primas Hijos : | H41: =IF($J$19=0,0,(VLOOKUP($J$19,Tablas!$A$983:$Q$985,3,TRUE))) -> 0 | I41: =IF($J$19=0,0,(VLOOKUP($J$19,Tablas!$A$983:$Q$985,4,TRUE))) -> 0 | J41: =IF($J$19=0,0,(VLOOKUP($J$19,Tablas!$A$983:$Q$985,5,TRUE))) -> 0 | K41: =IF($J$19=0,0,(VLOOKUP($J$19,Tablas!$A$983:$Q$985,6,TRUE))) -> 0 | L41: =IF($J$19=0,0,(VLOOKUP($J$19,Tablas!$A$983:$Q$985,7,TRUE))) -> 0 | M41: =IF($J$19=0,0,(VLOOKUP($J$19,Tablas!$A$983:$Q$985,8,TRUE))) -> 0 | N41: =IF($J$19=0,0,(VLOOKUP($J$19,Tablas!$A$983:$Q$985,9,TRUE))) -> 0
F42: TOTAL PRIMA NETA : | H42: =SUM(H39:H41) -> 3958.45 | I42: =SUM(I39:I41) -> 3454.95 | J42: 3028.4 | K42: 2303.55 | L42: 1475.15 | M42: 992.55 | N42: 699
F43: Costo Administrativo Anual : | H43: 0 | I43: 0 | J43: 0 | K43: 0 | L43: 0 | M43: - | N43: -
F44: Contrib. 3.5% Super. Bancos : | H44: =+H42*3.5% -> 138.54575 | I44: =+I42*3.5% -> 120.92325 | J44: 105.994 | K44: 80.62425 | L44: 51.63025 | M44: 34.73925 | N44: 24.465
F45: Contrib 0.5% Seg.Soc.Campes.: | H45: =+H42*0.5% -> 19.79225 | I45: =+I42*0.5% -> 17.27475 | J45: 15.142 | K45: 11.51775 | L45: 7.37575 | M45: 4.96275 | N45: 3.495
F46: GRAN TOTAL ANUAL : | H46: =SUM(H42:H45) -> 4116.788 | I46: =SUM(I42:I45) -> 3593.148 | J46: =SUM(J42:J45) -> 3149.536 | K46: =SUM(K42:K45) -> 2395.692 | L46: =SUM(L42:L45) -> 1534.156 | M46: =SUM(M42:M45) -> 1032.252 | N46: 726.96
F48: Tarifas Semestrales
F49: Prima de Titular : | H49: =VLOOKUP($L$17,Tablas!$A$1133:$I$1195,3,TRUE)+(60/2)+50 -> 2061.95175 | I49: =VLOOKUP($L$17,Tablas!$A$1133:$I$1195,4,TRUE)+(60/2)+50 -> 1802.64925 | J49: =VLOOKUP($L$17,Tablas!$A$1133:$I$1195,5,TRUE)+(60/2)+50 -> 1582.976 | K49: =VLOOKUP($L$17,Tablas!$A$1133:$I$1195,6,TRUE)+(60/2)+50 -> 1209.67825 | L49: =VLOOKUP($L$17,Tablas!$A$1133:$I$1195,7,TRUE)+(60/2)+50 -> 783.05225 | M49: =VLOOKUP($L$17,Tablas!$A$1133:$I$1195,8,TRUE)+(60/2)+50 -> 534.51325 | N49: =VLOOKUP($L$17,Tablas!$A$1133:$I$1195,9,TRUE)+(60/2)+50 -> 383.335
F50: Prima de Cónyuge | H50: =IF($J$17=1,0,(VLOOKUP($L$19,Tablas!$A$1133:$I$1195,3,TRUE))) -> 0 | I50: =IF($J$17=1,0,(VLOOKUP($L$19,Tablas!$A$1133:$I$1195,4,TRUE))) -> 0 | J50: =IF($J$17=1,0,(VLOOKUP($L$19,Tablas!$A$1133:$I$1195,5,TRUE))) -> 0 | K50: =IF($J$17=1,0,(VLOOKUP($L$19,Tablas!$A$1133:$I$1195,6,TRUE))) -> 0 | L50: =IF($J$17=1,0,(VLOOKUP($L$19,Tablas!$A$1133:$I$1195,7,TRUE))) -> 0 | M50: =IF($J$17=1,0,(VLOOKUP($L$19,Tablas!$A$1133:$I$1195,8,TRUE))) -> 0 | N50: =IF($J$17=1,0,(VLOOKUP($L$19,Tablas!$A$1133:$I$1195,9,TRUE))) -> 0
F51: Primas Hijos : | H51: =IF($J$19=0,0,(VLOOKUP($J$19,Tablas!$A$1196:$I$1198,3,TRUE))) -> 0 | I51: =IF($J$19=0,0,(VLOOKUP($J$19,Tablas!$A$1196:$I$1198,4,TRUE))) -> 0 | J51: =IF($J$19=0,0,(VLOOKUP($J$19,Tablas!$A$1196:$I$1198,5,TRUE))) -> 0 | K51: =IF($J$19=0,0,(VLOOKUP($J$19,Tablas!$A$1196:$I$1198,6,TRUE))) -> 0 | L51: =IF($J$19=0,0,(VLOOKUP($J$19,Tablas!$A$1196:$I$1198,7,TRUE))) -> 0 | M51: =IF($J$19=0,0,(VLOOKUP($J$19,Tablas!$A$1196:$I$1198,8,TRUE))) -> 0 | N51: =IF($J$19=0,0,(VLOOKUP($J$19,Tablas!$A$1196:$I$1198,9,TRUE))) -> 0
F52: TOTAL PRIMA NETA : | H52: =SUM(H49:H51) -> 2061.95175 | I52: =SUM(I49:I51) -> 1802.64925 | J52: =SUM(J49:J51) -> 1582.976 | K52: =SUM(K49:K51) -> 1209.67825 | L52: =SUM(L49:L51) -> 783.05225 | M52: =SUM(M49:M51) -> 534.51325 | N52: 383.335
F53: Costo Administrativo Anual : | H53: 0 | I53: 0 | J53: 0 | K53: 0 | L53: 0 | M53: - | N53: -
F54: Contrib. 3.5% Super. Bancos : | H54: =+H52*3.5% -> 72.16831125 | I54: =+I52*3.5% -> 63.09272375 | J54: 55.40416 | K54: 42.33873875 | L54: 27.40682875 | M54: 18.70796375 | N54: 13.416725
F55: Contrib 0.5% Seg.Soc.Campes.: | H55: =+H52*0.5% -> 10.30975875 | I55: =+I52*0.5% -> 9.01324625 | J55: 7.91488 | K55: 6.04839125 | L55: 3.91526125 | M55: 2.67256625 | N55: 1.916675
F56: TOTAL Primer Cuota : | H56: =SUM(H52:H55) -> 2144.42982 | I56: =SUM(I52:I55) -> 1874.75522 | J56: =SUM(J52:J55) -> 1646.29504 | K56: =SUM(K52:K55) -> 1258.06538 | L56: =SUM(L52:L55) -> 814.37434 | M56: =SUM(M52:M55) -> 555.89378 | N56: 398.6684
F57: Valor Segunda Cuota : | H57: =(H52 + H54 + H55)-52 -> 2092.42982 | I57: =(I52 + I54 + I55)-52 -> 1822.75522 | J57: =(J52 + J54 + J55)-52 -> 1594.29504 | K57: =(K52 + K54 + K55)-52 -> 1206.06538 | L57: =(L52 + L54 + L55)-52 -> 762.37434 | M57: =(M52 + M54 + M55)-52 -> 503.89378 | N57: 346.6684
F59: Tarifas Trimestrales
F60: Prima de Titular : | H60: =VLOOKUP($L$17,Tablas!$A$1062:$I$1124,3,TRUE)+(60/4)+50 -> 1070.407563 | I60: =VLOOKUP($L$17,Tablas!$A$1062:$I$1124,4,TRUE)+(60/4)+50 -> 938.8681875 | J60: =VLOOKUP($L$17,Tablas!$A$1062:$I$1124,5,TRUE)+(60/4)+50 -> 827.432 | K60: =VLOOKUP($L$17,Tablas!$A$1062:$I$1124,6,TRUE)+(60/4)+50 -> 638.0649375 | L60: =VLOOKUP($L$17,Tablas!$A$1062:$I$1124,7,TRUE)+(60/4)+50 -> 421.6454375 | M60: =VLOOKUP($L$17,Tablas!$A$1062:$I$1124,8,TRUE)+(60/4)+50 -> 295.5661875 | N60: =VLOOKUP($L$17,Tablas!$A$1062:$I$1124,9,TRUE)+(60/4)+50 -> 218.87625
F61: Prima de Cónyuge | H61: =IF($J$17=1,0,(VLOOKUP($L$19,Tablas!$A$1062:$I$1124,3,TRUE))) -> 0 | I61: =IF($J$17=1,0,(VLOOKUP($L$19,Tablas!$A$1062:$I$1124,4,TRUE))) -> 0 | J61: =IF($J$17=1,0,(VLOOKUP($L$19,Tablas!$A$1062:$I$1124,5,TRUE))) -> 0 | K61: =IF($J$17=1,0,(VLOOKUP($L$19,Tablas!$A$1062:$I$1124,6,TRUE))) -> 0 | L61: =IF($J$17=1,0,(VLOOKUP($L$19,Tablas!$A$1062:$I$1124,7,TRUE))) -> 0 | M61: =IF($J$17=1,0,(VLOOKUP($L$19,Tablas!$A$1062:$I$1124,8,TRUE))) -> 0 | N61: =IF($J$17=1,0,(VLOOKUP($L$19,Tablas!$A$1062:$I$1124,9,TRUE))) -> 0
F62: Primas Hijos : | H62: =IF($J$19=0,0,(VLOOKUP($J$19,Tablas!$A$1125:$I$1127,3,TRUE))) -> 0 | I62: =IF($J$19=0,0,(VLOOKUP($J$19,Tablas!$A$1125:$I$1127,4,TRUE))) -> 0 | J62: =IF($J$19=0,0,(VLOOKUP($J$19,Tablas!$A$1125:$I$1127,5,TRUE))) -> 0 | K62: =IF($J$19=0,0,(VLOOKUP($J$19,Tablas!$A$1125:$I$1127,6,TRUE))) -> 0 | L62: =IF($J$19=0,0,(VLOOKUP($J$19,Tablas!$A$1125:$I$1127,7,TRUE))) -> 0 | M62: =IF($J$19=0,0,(VLOOKUP($J$19,Tablas!$A$1125:$I$1127,8,TRUE))) -> 0 | N62: =IF($J$19=0,0,(VLOOKUP($J$19,Tablas!$A$1125:$I$1127,9,TRUE))) -> 0
F63: TOTAL PRIMA NETA : | H63: =SUM(H60:H62) -> 1070.407563 | I63: =SUM(I60:I62) -> 938.8681875 | J63: =SUM(J60:J62) -> 827.432 | K63: =SUM(K60:K62) -> 638.0649375 | L63: =SUM(L60:L62) -> 421.6454375 | M63: =SUM(M60:M62) -> 295.5661875 | N63: 218.87625
F64: Costo Administrativo Anual : | H64: 0 | I64: 0 | J64: 0 | K64: 0 | L64: 0 | M64: - | N64: -
F65: Contrib. 3.5% Super. Bancos : | H65: =+H63*3.5% -> 37.46426469 | I65: =+I63*3.5% -> 32.86038656 | J65: 28.96012 | K65: 22.33227281 | L65: 14.75759031 | M65: 10.34481656 | N65: 7.66066875
F66: Contrib 0.5% Seg.Soc.Campes.: | H66: =+H63*0.5% -> 5.352037812 | I66: =+I63*0.5% -> 4.694340937 | J66: 4.13716 | K66: 3.190324687 | L66: 2.108227187 | M66: 1.477830937 | N66: 1.09438125
F67: TOTAL Primer Cuota : | H67: =SUM(H63:H66) -> 1113.223865 | I67: =SUM(I63:I66) -> 976.422915 | J67: =SUM(J63:J66) -> 860.52928 | K67: =SUM(K63:K66) -> 663.587535 | L67: =SUM(L63:L66) -> 438.511255 | M67: =SUM(M63:M66) -> 307.388835 | N67: 227.6313
F68: Valor Cuota Trimestral 2 a 4: | H68: =(H63 + H65 + H66)-52 -> 1061.223865 | I68: =(I63 + I65 + I66)-52 -> 924.422915 | J68: =(J63 + J65 + J66)-52 -> 808.52928 | K68: =(K63 + K65 + K66)-52 -> 611.587535 | L68: =(L63 + L65 + L66)-52 -> 386.511255 | M68: =(M63 + M65 + M66)-52 -> 255.388835 | N68: 175.6313
F69: Tarifas en US $ - Válidas desde el 1ro. de enero de 2023
F71: Este presupuesto solamente tiene carácter informativo y en ningún momento expresa compromiso legal para suministrarle cobertura de seguro. La emisión de una póliza de seguro Bupa está sujeta a todas las evaluaciones de riesgo por parte de Bupa y a la recepción de todos los pagos de prima requeridos.
A80: RED DE PROVEEDORES
A81: La Red para el producto Essential 1000 ofrece cobertura en Latinoamérica, el Caribe y los Estados Unidos de América. Sin embargo, ni la Compañía, ni USA Medical Services, ni ninguna de sus filiales o subsidiarias pertinentes relacionadas participarán en transacciones con cualquier parte o país donde dichas transacciones estén prohibidas por las leyes de los Estados Unidos de América. Por favor comuníquese con la Compañía para obtener más información sobre esta restricción.

Sheet Resumen tarifas
C12: Cotización de Seguro Médico: Productos Essential
B15: Nombre del asegurado : | C15: =+'INGRESO DE DATOS'!$D$15 -> NOMBRE EL AGENTE
B17: Broker / Agente : | C17: =+'INGRESO DE DATOS'!$D$26 -> NOMBRE DE LA AGENCIA
D19: Número de adultos en la póliza: | E19: =+'INGRESO DE DATOS'!$G$17 -> 1 | G19: Edad de Titular : | H19: =+'INGRESO DE DATOS'!$G$19 -> 40
D21: Número hijos (menos 24 años): | E21: =+'INGRESO DE DATOS'!$J$17 -> 0 | G21: Edad de Cónyuge: | H21: =+'INGRESO DE DATOS'!$J$19 -> 46
D23: Fecha cotización: | E23: =+TODAY() -> 2023-05-16 | G23: Zona de cotización: | H23: ='INGRESO DE DATOS'!G21 -> Resto de Ecuador
A25: Tarifas Mensuales
A27: Essential 1000
A28: Deducibles | C28: PLAN 1 | D28: PLAN 2 | E28: PLAN 3 | F28: PLAN 4 | G28: PLAN 5 | H28: PLAN 6 | I28: PLAN 7
A29: Dentro del pais de residencia | C29: 250 | D29: 500 | E29: 1000 | F29: 2000 | G29: 5000 | H29: 10000 | I29: 20000
A30: Fuera del pais de residencia | C30: 500 | D30: 1000 | E30: 2000 | F30: 4000 | G30: 5000 | H30: 10000 | I30: 20000
C31: Tarifas Mensuales
A32: Primera Cuota | C32: =+'Essential 1000'!H35 -> 410.7442733 | D32: =+'Essential 1000'!I35 -> 364.4894067 | E32: =+'Essential 1000'!J35 -> 325.30368 | F32: =+'Essential 1000'!K35 -> 258.7141267 | G32: =+'Essential 1000'!L35 -> 182.61178 | H32: =+'Essential 1000'!M35 -> 138.2769267 | I32: =+'Essential 1000'!N35 -> 111.3094667
A33: Valor cuota mensual 2 a 12 | C33: =+'Essential 1000'!H36 -> 358.7442733 | D33: =+'Essential 1000'!I36 -> 312.4894067 | E33: =+'Essential 1000'!J36 -> 273.30368 | F33: =+'Essential 1000'!K36 -> 206.7141267 | G33: =+'Essential 1000'!L36 -> 130.61178 | H33: =+'Essential 1000'!M36 -> 86.27692667 | I33: =+'Essential 1000'!N36 -> 59.30946667
A35: Essential 500
A36: Deducibles | C36: PLAN 1 | D36: PLAN 2 | E36: PLAN 3 | F36: PLAN 4 | G36: PLAN 5 | H36: PLAN 6 | I36: PLAN 7
A37: Dentro del pais de residencia | C37: 250 | D37: 500 | E37: 1000 | F37: 2000 | G37: 5000 | H37: 10000 | I37: 20000
A38: Fuera del pais de residencia | C38: 500 | D38: 1000 | E38: 2000 | F38: 4000 | G38: 5000 | H38: 10000 | I38: 20000
C39: Tarifas Mensuales
A40: Primera Cuota | C40: =+#REF! ->  | D40: =+#REF! ->  | E40: =+#REF! ->  | F40: =+#REF! ->  | G40: =+#REF! ->  | H40: =+#REF! ->  | I40: =+#REF! -> 
A41: Valor cuota mensual 2 a 12 | C41: =+#REF! ->  | D41: =+#REF! ->  | E41: =+#REF! ->  | F41: =+#REF! ->  | G41: =+#REF! ->  | H41: =+#REF! ->  | I41: =+#REF! -> 
A43: Essential 100 y Essential 50
A44: Deducibles | C44: PLAN 1 | D44: PLAN 2 | E44: PLAN 3 | F44: PLAN 4 | G44: PLAN 5
A45: Dentro del pais de residencia | C45: 100 | D45: 200 | E45: 500 | F45: 1000 | G45: 2000
A46: Fuera del pais de residencia | C46: 100 | D46: 200 | E46: 500 | F46: 1000 | G46: 2000
C47: Tarifas Mensuales
A48: Essential 100: Primera Cuota | C48: =+#REF! ->  | D48: =+#REF! ->  | E48: =+#REF! ->  | F48: =+#REF! ->  | G48: =+#REF! -> 
A49: Essential 100: Cuota Mensual 2 a 12 | C49: =+#REF! ->  | D49: =+#REF! ->  | E49: =+#REF! ->  | F49: =+#REF! ->  | G49: =+#REF! -> 
A50: Essential 50: Primera Cuota | C50: =+#REF! ->  | D50: =+#REF! ->  | E50: =+#REF! ->  | F50: =+#REF! ->  | G50: =+#REF! -> 
A51: Essential 50 - Cuota Mensual 2 a 12 | C51: =+#REF! ->  | D51: =+#REF! ->  | E51: =+#REF! ->  | F51: =+#REF! ->  | G51: =+#REF! -> 
A55: Tarifas Anuales
A57: Essential 1000
A58: Deducibles | C58: PLAN 1 | D58: PLAN 2 | E58: PLAN 3 | F58: PLAN 4 | G58: PLAN 5 | H58: PLAN 6 | I58: PLAN 7
A59: Dentro del pais de residencia | C59: 250 | D59: 500 | E59: 1000 | F59: 2000 | G59: 5000 | H59: 10000 | I59: 20000
A60: Fuera del pais de residencia | C60: 500 | D60: 1000 | E60: 2000 | F60: 4000 | G60: 5000 | H60: 10000 | I60: 20000
C61: Tarifas Anuales
A62: Primera Cuota | C62: =+'Essential 1000'!H46 -> 4116.788 | D62: =+'Essential 1000'!I46 -> 3593.148 | E62: =+'Essential 1000'!J46 -> 3149.536 | F62: =+'Essential 1000'!K46 -> 2395.692 | G62: =+'Essential 1000'!L46 -> 1534.156 | H62: =+'Essential 1000'!M46 -> 1032.252 | I62: =+'Essential 1000'!N46 -> 726.96
A64: Essential 500
A65: Deducibles | C65: PLAN 1 | D65: PLAN 2 | E65: PLAN 3 | F65: PLAN 4 | G65: PLAN 5 | H65: PLAN 6 | I65: PLAN 7
A66: Dentro del pais de residencia | C66: 250 | D66: 500 | E66: 1000 | F66: 2000 | G66: 5000 | H66: 10000 | I66: 20000
A67: Fuera del pais de residencia | C67: 500 | D67: 1000 | E67: 2000 | F67: 4000 | G67: 5000 | H67: 10000 | I67: 20000
C68: Tarifas Anuales
A69: Essential 500 | C69: =+#REF! ->  | D69: =+#REF! ->  | E69: =+#REF! ->  | F69: =+#REF! ->  | G69: =+#REF! ->  | H69: =+#REF! ->  | I69: =+#REF! -> 
A71: Essential 100 y Essential 50
A72: Deducibles | C72: PLAN 1 | D72: PLAN 2 | E72: PLAN 3 | F72: PLAN 4 | G72: PLAN 5
A73: Dentro del pais de residencia | C73: 100 | D73: 200 | E73: 500 | F73: 1000 | G73: 2000
A74: Fuera del pais de residencia | C74: 100 | D74: 200 | E74: 500 | F74: 1000 | G74: 2000
C75: Tarifas Anuales
A76: Essential 100 | C76: =+#REF! ->  | D76: =+#REF! ->  | E76: =+#REF! ->  | F76: =+#REF! ->  | G76: =+#REF! -> 
A77: Essential 50 | C77: =+#REF! ->  | D77: =+#REF! ->  | E77: =+#REF! ->  | F77: =+#REF! ->  | G77: =+#REF! -> 
A79: Tarifas Semestrales
A81: Essential 1000
A82: Deducibles | C82: PLAN 1 | D82: PLAN 2 | E82: PLAN 3 | F82: PLAN 4 | G82: PLAN 5 | H82: PLAN 6 | I82: PLAN 7
A83: Dentro del pais de residencia | C83: 250 | D83: 500 | E83: 1000 | F83: 2000 | G83: 5000 | H83: 10000 | I83: 20000
A84: Fuera del pais de residencia | C84: 500 | D84: 1000 | E84: 2000 | F84: 4000 | G84: 5000 | H84: 10000 | I84: 20000
C85: Tarifas Semestrales
A86: Primera Cuota | C86: =+'Essential 1000'!H56 -> 2144.42982 | D86: =+'Essential 1000'!I56 -> 1874.75522 | E86: =+'Essential 1000'!J56 -> 1646.29504 | F86: =+'Essential 1000'!K56 -> 1258.06538 | G86: =+'Essential 1000'!L56 -> 814.37434 | H86: =+'Essential 1000'!M56 -> 555.89378 | I86: =+'Essential 1000'!N56 -> 398.6684
A87: Segunda Cuota | C87: =+'Essential 1000'!H57 -> 2092.42982 | D87: =+'Essential 1000'!I57 -> 1822.75522 | E87: =+'Essential 1000'!J57 -> 1594.29504 | F87: =+'Essential 1000'!K57 -> 1206.06538 | G87: =+'Essential 1000'!L57 -> 762.37434 | H87: =+'Essential 1000'!M57 -> 503.89378 | I87: =+'Essential 1000'!N57 -> 346.6684
A89: Essential 500
A90: Deducibles | C90: PLAN 1 | D90: PLAN 2 | E90: PLAN 3 | F90: PLAN 4 | G90: PLAN 5 | H90: PLAN 6 | I90: PLAN 7
A91: Dentro del pais de residencia | C91: 250 | D91: 500 | E91: 1000 | F91: 2000 | G91: 5000 | H91: 10000 | I91: 20000
A92: Fuera del pais de residencia | C92: 500 | D92: 1000 | E92: 2000 | F92: 4000 | G92: 5000 | H92: 10000 | I92: 20000
C93: Tarifas Semestrales
A94: Primera Cuota | C94: =+#REF! ->  | D94: =+#REF! ->  | E94: =+#REF! ->  | F94: =+#REF! ->  | G94: =+#REF! ->  | H94: =+#REF! ->  | I94: =+#REF! -> 
A95: Segunda Cuota | C95: =+#REF! ->  | D95: =+#REF! ->  | E95: =+#REF! ->  | F95: =+#REF! ->  | G95: =+#REF! ->  | H95: =+#REF! ->  | I95: =+#REF! -> 
A97: Essential 100 y Essential 50
A98: Deducibles | C98: PLAN 1 | D98: PLAN 2 | E98: PLAN 3 | F98: PLAN 4 | G98: PLAN 5
A99: Dentro del pais de residencia | C99: 100 | D99: 200 | E99: 500 | F99: 1000 | G99: 2000
A100: Fuera del pais de residencia | C100: 100 | D100: 200 | E100: 500 | F100: 1000 | G100: 2000
C101: Tarifas Mensuales
A102: Essential 100 - Primera cuota | C102: =+#REF! ->  | D102: =+#REF! ->  | E102: =+#REF! ->  | F102: =+#REF! ->  | G102: =+#REF! -> 
A103: Essential 100 - Segunda Cuota | C103: =+#REF! ->  | D103: =+#REF! ->  | E103: =+#REF! ->  | F103: =+#REF! ->  | G103: =+#REF! -> 
A104: Essential 50 - Primera Cuota | C104: =+#REF! ->  | D104: =+#REF! ->  | E104: =+#REF! ->  | F104: =+#REF! ->  | G104: =+#REF! -> 
A105: Essential 50 - Seguda Cuota | C105: =+#REF! ->  | D105: =+#REF! ->  | E105: =+#REF! ->  | F105: =+#REF! ->  | G105: =+#REF! -> 
A109: Tarifas Trimestrales
A111: Essential 1000
A112: Deducibles | C112: PLAN 1 | D112: PLAN 2 | E112: PLAN 3 | F112: PLAN 4 | G112: PLAN 5 | H112: PLAN 6 | I112: PLAN 7
A113: Dentro del pais de residencia | C113: 250 | D113: 500 | E113: 1000 | F113: 2000 | G113: 5000 | H113: 10000 | I113: 20000
A114: Fuera del pais de residencia | C114: 500 | D114: 1000 | E114: 2000 | F114: 4000 | G114: 5000 | H114: 10000 | I114: 20000
C115: Tarifas Trimestrales
A116: Primera Cuota | C116: =+'Essential 1000'!H67 -> 1113.223865 | D116: =+'Essential 1000'!I67 -> 976.422915 | E116: =+'Essential 1000'!J67 -> 860.52928 | F116: =+'Essential 1000'!K67 -> 663.587535 | G116: =+'Essential 1000'!L67 -> 438.511255 | H116: =+'Essential 1000'!M67 -> 307.388835 | I116: =+'Essential 1000'!N67 -> 227.6313
A117: Valor de Cuota Trimestral 2 a 4 | C117: =+'Essential 1000'!H68 -> 1061.223865 | D117: =+'Essential 1000'!I68 -> 924.422915 | E117: =+'Essential 1000'!J68 -> 808.52928 | F117: =+'Essential 1000'!K68 -> 611.587535 | G117: =+'Essential 1000'!L68 -> 386.511255 | H117: =+'Essential 1000'!M68 -> 255.388835 | I117: =+'Essential 1000'!N68 -> 175.6313
A119: Essential 500
A120: Deducibles | C120: PLAN 1 | D120: PLAN 2 | E120: PLAN 3 | F120: PLAN 4 | G120: PLAN 5 | H120: PLAN 6 | I120: PLAN 7
A121: Dentro del pais de residencia | C121: 250 | D121: 500 | E121: 1000 | F121: 2000 | G121: 5000 | H121: 10000 | I121: 20000
A122: Fuera del pais de residencia | C122: 500 | D122: 1000 | E122: 2000 | F122: 4000 | G122: 5000 | H122: 10000 | I122: 20000
C123: Tarifas Trimestral
A124: Primera Cuota | C124: =+#REF! ->  | D124: =+#REF! ->  | E124: =+#REF! ->  | F124: =+#REF! ->  | G124: =+#REF! -> 
A125: Valor de Cuota Trimestral 2 a 4 | C125: =+#REF! ->  | D125: =+#REF! ->  | E125: =+#REF! ->  | F125: =+#REF! ->  | G125: =+#REF! -> 
A127: Essential 100 y Essential 50
A128: Deducibles | C128: PLAN 1 | D128: PLAN 2 | E128: PLAN 3 | F128: PLAN 4 | G128: PLAN 5
A129: Dentro del pais de residencia | C129: 100 | D129: 200 | E129: 500 | F129: 1000 | G129: 2000
A130: Fuera del pais de residencia | C130: 100 | D130: 200 | E130: 500 | F130: 1000 | G130: 2000
C131: Tarifas Mensuales
A132: Essential 100 - Primera Cuota | C132: =+#REF! ->  | D132: =+#REF! ->  | E132: =+#REF! ->  | F132: =+#REF! ->  | G132: =+#REF! -> 
A133: Essential 100 - Cuota Trimestral 2 a 4 | C133: =+#REF! ->  | D133: =+#REF! ->  | E133: =+#REF! ->  | F133: =+#REF! ->  | G133: =+#REF! -> 
A134: Essential 50 - Primera Cuota | C134: =+#REF! ->  | D134: =+#REF! ->  | E134: =+#REF! ->  | F134: =+#REF! ->  | G134: =+#REF! -> 
A135: Essential 50 - Cuota trimestral 2 a 4 | C135: =+#REF! ->  | D135: =+#REF! ->  | E135: =+#REF! ->  | F135: =+#REF! ->  | G135: =+#REF! -> 
A138: Tarifas en US $ - Válidas desde 1ro. de enero de 2023
A139: Este presupuesto solamente tiene carácter informativo y en ningún momento expresa compromiso legal para suministrarle cobertura de seguro. La emisión de una póliza de seguro Bupa está sujeta a todas las evaluaciones de riesgo por parte de Bupa y a la recepción de todos los pagos de prima requeridos.
D142: Las tarifas resaltadas en gris del PLAN 1 son solo para renovaciones.
A144: Essential Care
A145: Deducibles | C145: PLAN 1 | D145: PLAN 2 | E145: PLAN 3 | F145: PLAN 4 | G145: PLAN 5 | H145: PLAN 6
A146: Deducible en Ecuador | C146: 0 | D146: 1000 | E146: 2000 | F146: 5000 | G146: 10000 | H146: 20000
A147: Deducible fuera de Ecuador | C147: 1000 | D147: 2000 | E147: 3000 | F147: 5000 | G147: 10000 | H147: 20000
A148: Tarifas Anuales
A149: Gran Total | C149: =+#REF! ->  | D149: =+#REF! ->  | E149: =+#REF! ->  | F149: =+#REF! ->  | G149: =+#REF! ->  | H149: =+#REF! -> 
A150: Tarifas Semestrales
A151: Primera Cuota | C151: =+#REF! ->  | D151: =+#REF! ->  | E151: =+#REF! ->  | F151: =+#REF! ->  | G151: =+#REF! ->  | H151: =+#REF! -> 
A152: Segunda Cuota | C152: =+#REF! ->  | D152: =+#REF! ->  | E152: =+#REF! ->  | F152: =+#REF! ->  | G152: =+#REF! ->  | H152: =+#REF! -> 
A155: Tarifas en US $ - Válidas desde el 1ro. de enero de 2022
A157: Este presupuesto solamente tiene carácter informativo y en ningún momento expresa compromiso legal para suministrarle cobertura de seguro. La emisión de una póliza de seguro Bupa está sujeta a todas las evaluaciones de riesgo por parte de Bupa y a la recepción de todos los pagos de prima requeridos.
D160: Las tarifas resaltadas en gris del PLAN 1 son solo para renovaciones.

Sheet Tablas (hidden)
A2: FLEX 500 | K2: FACTOR MENSUAL: | M2: =1.06/12 -> 0.08833333333 | P2: Zonas
A3: TARIFAS ANUALES | K3: FACTOR SEMESTRAL: | M3: =1.03/2 -> 0.515 | P3: Guayas/Santa Elena
A4: EDAD | K4: FACTOR TRIMESTRAL: | M4: =1.045/4 -> 0.26125 | P4: Resto de Ecuador
C5: F500-1 | D5: F500-2 | E5: F500-3 | F5: F500-4 | G5: F500-5 | H5: F500-6 | I5: F500-7
A6: 18 | C6: =IF('INGRESO DE DATOS'!$G$21="Guayas/Santa Elena",'Tablas Guayaquil'!C6,'Tablas Resto de Ecuador'!C6) -> 2232 | D6: =IF('INGRESO DE DATOS'!$G$21="Guayas/Santa Elena",'Tablas Guayaquil'!D6,'Tablas Resto de Ecuador'!D6) -> 1909 | E6: =IF('INGRESO DE DATOS'!$G$21="Guayas/Santa Elena",'Tablas Guayaquil'!E6,'Tablas Resto de Ecuador'!E6) -> 1398 | F6: =IF('INGRESO DE DATOS'!$G$21="Guayas/Santa Elena",'Tablas Guayaquil'!F6,'Tablas Resto de Ecuador'!F6) -> 964 | G6: =IF('INGRESO DE DATOS'!$G$21="Guayas/Santa Elena",'Tablas Guayaquil'!G6,'Tablas Resto de Ecuador'!G6) -> 523 | H6: =IF('INGRESO DE DATOS'!$G$21="Guayas/Santa Elena",'Tablas Guayaquil'!H6,'Tablas Resto de Ecuador'!H6) -> 301 | I6: =IF('INGRESO DE DATOS'!$G$21="Guayas/Santa Elena",'Tablas Guayaquil'!I6,'Tablas Resto de Ecuador'!I6) -> 173
A7: 19 | C7: =IF('INGRESO DE DATOS'!$G$21="Guayas/Santa Elena",'Tablas Guayaquil'!C7,'Tablas Resto de Ecuador'!C7) -> 2268 | D7: =IF('INGRESO DE DATOS'!$G$21="Guayas/Santa Elena",'Tablas Guayaquil'!D7,'Tablas Resto de Ecuador'!D7) -> 1909 | E7: =IF('INGRESO DE DATOS'!$G$21="Guayas/Santa Elena",'Tablas Guayaquil'!E7,'Tablas Resto de Ecuador'!E7) -> 1398 | F7: =IF('INGRESO DE DATOS'!$G$21="Guayas/Santa Elena",'Tablas Guayaquil'!F7,'Tablas Resto de Ecuador'!F7) -> 965 | G7: =IF('INGRESO DE DATOS'!$G$21="Guayas/Santa Elena",'Tablas Guayaquil'!G7,'Tablas Resto de Ecuador'!G7) -> 529 | H7: =IF('INGRESO DE DATOS'!$G$21="Guayas/Santa Elena",'Tablas Guayaquil'!H7,'Tablas Resto de Ecuador'!H7) -> 305 | I7: =IF('INGRESO DE DATOS'!$G$21="Guayas/Santa Elena",'Tablas Guayaquil'!I7,'Tablas Resto de Ecuador'!I7) -> 177
A8: 20 | C8: =IF('INGRESO DE DATOS'!$G$21="Guayas/Santa Elena",'Tablas Guayaquil'!C8,'Tablas Resto de Ecuador'!C8) -> 2308 | D8: =IF('INGRESO DE DATOS'!$G$21="Guayas/Santa Elena",'Tablas Guayaquil'!D8,'Tablas Resto de Ecuador'!D8) -> 1909 | E8: =IF('INGRESO DE DATOS'!$G$21="Guayas/Santa Elena",'Tablas Guayaquil'!E8,'Tablas Resto de Ecuador'!E8) -> 1398 | F8: =IF('INGRESO DE DATOS'!$G$21="Guayas/Santa Elena",'Tablas Guayaquil'!F8,'Tablas Resto de Ecuador'!F8) -> 967 | G8: =IF('INGRESO DE DATOS'!$G$21="Guayas/Santa Elena",'Tablas Guayaquil'!G8,'Tablas Resto de Ecuador'!G8) -> 534 | H8: =IF('INGRESO DE DATOS'!$G$21="Guayas/Santa Elena",'Tablas Guayaquil'!H8,'Tablas Resto de Ecuador'!H8) -> 309 | I8: =IF('INGRESO DE DATOS'!$G$21="Guayas/Santa Elena",'Tablas Guayaquil'!I8,'Tablas Resto de Ecuador'!I8) -> 181
A9: 21 | C9: =IF('INGRESO DE DATOS'!$G$21="Guayas/Santa Elena",'Tablas Guayaquil'!C9,'Tablas Resto de Ecuador'!C9) -> 2351 | D9: =IF('INGRESO DE DATOS'!$G$21="Guayas/Santa Elena",'Tablas Guayaquil'!D9,'Tablas Resto de Ecuador'!D9) -> 1909 | E9: =IF('INGRESO DE DATOS'!$G$21="Guayas/Santa Elena",'Tablas Guayaquil'!E9,'Tablas Resto de Ecuador'!E9) -> 1400 | F9: =IF('INGRESO DE DATOS'!$G$21="Guayas/Santa Elena",'Tablas Guayaquil'!F9,'Tablas Resto de Ecuador'!F9) -> 974 | G9: =IF('INGRESO DE DATOS'!$G$21="Guayas/Santa Elena",'Tablas Guayaquil'!G9,'Tablas Resto de Ecuador'!G9) -> 541 | H9: =IF('INGRESO DE DATOS'!$G$21="Guayas/Santa Elena",'Tablas Guayaquil'!H9,'Tablas Resto de Ecuador'!H9) -> 316 | I9: =IF('INGRESO DE DATOS'!$G$21="Guayas/Santa Elena",'Tablas Guayaquil'!I9,'Tablas Resto de Ecuador'!I9) -> 186
A10: 22 | C10: =IF('INGRESO DE DATOS'!$G$21="Guayas/Santa Elena",'Tablas Guayaquil'!C10,'Tablas Resto de Ecuador'!C10) -> 2389 | D10: =IF('INGRESO DE DATOS'!$G$21="Guayas/Santa Elena",'Tablas Guayaquil'!D10,'Tablas Resto de Ecuador'!D10) -> 1909 | E10: =IF('INGRESO DE DATOS'!$G$21="Guayas/Santa Elena",'Tablas Guayaquil'!E10,'Tablas Resto de Ecuador'!E10) -> 1404 | F10: =IF('INGRESO DE DATOS'!$G$21="Guayas/Santa Elena",'Tablas Guayaquil'!F10,'Tablas Resto de Ecuador'!F10) -> 982 | G10: =IF('INGRESO DE DATOS'!$G$21="Guayas/Santa Elena",'Tablas Guayaquil'!G10,'Tablas Resto de Ecuador'!G10) -> 549 | H10: =IF('INGRESO DE DATOS'!$G$21="Guayas/Santa Elena",'Tablas Guayaquil'!H10,'Tablas Resto de Ecuador'!H10) -> 322 | I10: =IF('INGRESO DE DATOS'!$G$21="Guayas/Santa Elena",'Tablas Guayaquil'!I10,'Tablas Resto de Ecuador'!I10) -> 191
A11: 23 | C11: =IF('INGRESO DE DATOS'!$G$21="Guayas/Santa Elena",'Tablas Guayaquil'!C11,'Tablas Resto de Ecuador'!C11) -> 2429 | D11: =IF('INGRESO DE DATOS'!$G$21="Guayas/Santa Elena",'Tablas Guayaquil'!D11,'Tablas Resto de Ecuador'!D11) -> 1913 | E11: =IF('INGRESO DE DATOS'!$G$21="Guayas/Santa Elena",'Tablas Guayaquil'!E11,'Tablas Resto de Ecuador'!E11) -> 1412 | F11: =IF('INGRESO DE DATOS'!$G$21="Guayas/Santa Elena",'Tablas Guayaquil'!F11,'Tablas Resto de Ecuador'!F11) -> 992 | G11: =IF('INGRESO DE DATOS'!$G$21="Guayas/Santa Elena",'Tablas Guayaquil'!G11,'Tablas Resto de Ecuador'!G11) -> 558 | H11: =IF('INGRESO DE DATOS'!$G$21="Guayas/Santa Elena",'Tablas Guayaquil'!H11,'Tablas Resto de Ecuador'!H11) -> 330 | I11: =IF('INGRESO DE DATOS'!$G$21="Guayas/Santa Elena",'Tablas Guayaquil'!I11,'Tablas Resto de Ecuador'!I11) -> 196
A12: 24 | C12: =IF('INGRESO DE DATOS'!$G$21="Guayas/Santa Elena",'Tablas Guayaquil'!C12,'Tablas Resto de Ecuador'!C12) -> 2436 | D12: =IF('INGRESO DE DATOS'!$G$21="Guayas/Santa Elena",'Tablas Guayaquil'!D12,'Tablas Resto de Ecuador'!D12) -> 1922 | E12: =IF('INGRESO DE DATOS'!$G$21="Guayas/Santa Elena",'Tablas Guayaquil'!E12,'Tablas Resto de Ecuador'!E12) -> 1425 | F12: =IF('INGRESO DE DATOS'!$G$21="Guayas/Santa Elena",'Tablas Guayaquil'!F12,'Tablas Resto de Ecuador'!F12) -> 1004 | G12: =IF('INGRESO DE DATOS'!$G$21="Guayas/Santa Elena",'Tablas Guayaquil'!G12,'Tablas Resto de Ecuador'!G12) -> 569 | H12: =IF('INGRESO DE DATOS'!$G$21="Guayas/Santa Elena",'Tablas Guayaquil'!H12,'Tablas Resto de Ecuador'!H12) -> 337 | I12: =IF('INGRESO DE DATOS'!$G$21="Guayas/Santa Elena",'Tablas Guayaquil'!I12,'Tablas Resto de Ecuador'!I12) -> 202
A13: 25 | C13: =IF('INGRESO DE DATOS'!$G$21="Guayas/Santa Elena",'Tablas Guayaquil'!C13,'Tablas Resto de Ecuador'!C13) -> 2447 | D13: =IF('INGRESO DE DATOS'!$G$21="Guayas/Santa Elena",'Tablas Guayaquil'!D13,'Tablas Resto de Ecuador'!D13) -> 1936 | E13: =IF('INGRESO DE DATOS'!$G$21="Guayas/Santa Elena",'Tablas Guayaquil'!E13,'Tablas Resto de Ecuador'!E13) -> 1440 | F13: =IF('INGRESO DE DATOS'!$G$21="Guayas/Santa Elena",'Tablas Guayaquil'!F13,'Tablas Resto de Ecuador'!F13) -> 1019 | G13: =IF('INGRESO DE DATOS'!$G$21="Guayas/Santa Elena",'Tablas Guayaquil'!G13,'Tablas Resto de Ecuador'!G13) -> 581 | H13: =IF('INGRESO DE DATOS'!$G$21="Guayas/Santa Elena",'Tablas Guayaquil'!H13,'Tablas Resto de Ecuador'!H13) -> 347 | I13: =IF('INGRESO DE DATOS'!$G$21="Guayas/Santa Elena",'Tablas Guayaquil'!I13,'Tablas Resto de Ecuador'!I13) -> 210
A14: 26 | C14: =IF('INGRESO DE DATOS'!$G$21="Guayas/Santa Elena",'Tablas Guayaquil'!C14,'Tablas Resto de Ecuador'!C14) -> 2465 | D14: =IF('INGRESO DE DATOS'!$G$21="Guayas/Santa Elena",'Tablas Guayaquil'!D14,'Tablas Resto de Ecuador'!D14) -> 1955 | E14: =IF('INGRESO DE DATOS'!$G$21="Guayas/Santa Elena",'Tablas Guayaquil'!E14,'Tablas Resto de Ecuador'!E14) -> 1460 | F14: =IF('INGRESO DE DATOS'!$G$21="Guayas/Santa Elena",'Tablas Guayaquil'!F14,'Tablas Resto de Ecuador'!F14) -> 1037 | G14: =IF('INGRESO DE DATOS'!$G$21="Guayas/Santa Elena",'Tablas Guayaquil'!G14,'Tablas Resto de Ecuador'!G14) -> 594 | H14: =IF('INGRESO DE DATOS'!$G$21="Guayas/Santa Elena",'Tablas Guayaquil'!H14,'Tablas Resto de Ecuador'!H14) -> 357 | I14: =IF('INGRESO DE DATOS'!$G$21="Guayas/Santa Elena",'Tablas Guayaquil'!I14,'Tablas Resto de Ecuador'!I14) -> 216
A15: 27 | C15: =IF('INGRESO DE DATOS'!$G$21="Guayas/Santa Elena",'Tablas Guayaquil'!C15,'Tablas Resto de Ecuador'!C15) -> 2489 | D15: =IF('INGRESO DE DATOS'!$G$21="Guayas/Santa Elena",'Tablas Guayaquil'!D15,'Tablas Resto de Ecuador'!D15) -> 1980 | E15: =IF('INGRESO DE DATOS'!$G$21="Guayas/Santa Elena",'Tablas Guayaquil'!E15,'Tablas Resto de Ecuador'!E15) -> 1483 | F15: =IF('INGRESO DE DATOS'!$G$21="Guayas/Santa Elena",'Tablas Guayaquil'!F15,'Tablas Resto de Ecuador'!F15) -> 1058 | G15: =IF('INGRESO DE DATOS'!$G$21="Guayas/Santa Elena",'Tablas Guayaquil'!G15,'Tablas Resto de Ecuador'!G15) -> 610 | H15: =IF('INGRESO DE DATOS'!$G$21="Guayas/Santa Elena",'Tablas Guayaquil'!H15,'Tablas Resto de Ecuador'!H15) -> 369 | I15: =IF('INGRESO DE DATOS'!$G$21="Guayas/Santa Elena",'Tablas Guayaquil'!I15,'Tablas Resto de Ecuador'!I15) -> 224
A16: 28 | C16: =IF('INGRESO DE DATOS'!$G$21="Guayas/Santa Elena",'Tablas Guayaquil'!C16,'Tablas Resto de Ecuador'!C16) -> 2519 | D16: =IF('INGRESO DE DATOS'!$G$21="Guayas/Santa Elena",'Tablas Guayaquil'!D16,'Tablas Resto de Ecuador'!D16) -> 2008 | E16: =IF('INGRESO DE DATOS'!$G$21="Guayas/Santa Elena",'Tablas Guayaquil'!E16,'Tablas Resto de Ecuador'!E16) -> 1510 | F16: =IF('INGRESO DE DATOS'!$G$21="Guayas/Santa Elena",'Tablas Guayaquil'!F16,'Tablas Resto de Ecuador'!F16) -> 1081 | G16: =IF('INGRESO DE DATOS'!$G$21="Guayas/Santa Elena",'Tablas Guayaquil'!G16,'Tablas Resto de Ecuador'!G16) -> 628 | H16: =IF('INGRESO DE DATOS'!$G$21="Guayas/Santa Elena",'Tablas Guayaquil'!H16,'Tablas Resto de Ecuador'!H16) -> 381 | I16: =IF('INGRESO DE DATOS'!$G$21="Guayas/Santa Elena",'Tablas Guayaquil'!I16,'Tablas Resto de Ecuador'!I16) -> 234
A17: 29 | C17: =IF('INGRESO DE DATOS'!$G$21="Guayas/Santa Elena",'Tablas Guayaquil'!C17,'Tablas Resto de Ecuador'!C17) -> 2557 | D17: =IF('INGRESO DE DATOS'!$G$21="Guayas/Santa Elena",'Tablas Guayaquil'!D17,'Tablas Resto de Ecuador'!D17) -> 2043 | E17: =IF('INGRESO DE DATOS'!$G$21="Guayas/Santa Elena",'Tablas Guayaquil'!E17,'Tablas Resto de Ecuador'!E17) -> 1540 | F17: =IF('INGRESO DE DATOS'!$G$21="Guayas/Santa Elena",'Tablas Guayaquil'!F17,'Tablas Resto de Ecuador'!F17) -> 1108 | G17: =IF('INGRESO DE DATOS'!$G$21="Guayas/Santa Elena",'Tablas Guayaquil'!G17,'Tablas Resto de Ecuador'!G17) -> 647 | H17: =IF('INGRESO DE DATOS'!$G$21="Guayas/Santa Elena",'Tablas Guayaquil'!H17,'Tablas Resto de Ecuador'!H17) -> 395 | I17: =IF('INGRESO DE DATOS'!$G$21="Guayas/Santa Elena",'Tablas Guayaquil'!I17,'Tablas Resto de Ecuador'!I17) -> 243
A18: 30 | C18: =IF('INGRESO DE DATOS'!$G$21="Guayas/Santa Elena",'Tablas Guayaquil'!C18,'Tablas Resto de Ecuador'!C18) -> 2600 | D18: =IF('INGRESO DE DATOS'!$G$21="Guayas/Santa Elena",'Tablas Guayaquil'!D18,'Tablas Resto de Ecuador'!D18) -> 2084 | E18: =IF('INGRESO DE DATOS'!$G$21="Guayas/Santa Elena",'Tablas Guayaquil'!E18,'Tablas Resto de Ecuador'!E18) -> 1577 | F18: =IF('INGRESO DE DATOS'!$G$21="Guayas/Santa Elena",'Tablas Guayaquil'!F18,'Tablas Resto de Ecuador'!F18) -> 1137 | G18: =IF('INGRESO DE DATOS'!$G$21="Guayas/Santa Elena",'Tablas Guayaquil'!G18,'Tablas Resto de Ecuador'!G18) -> 668 | H18: =IF('INGRESO DE DATOS'!$G$21="Guayas/Santa Elena",'Tablas Guayaquil'!H18,'Tablas Resto de Ecuador'!H18) -> 409 | I18: =IF('INGRESO DE DATOS'!$G$21="Guayas/Santa Elena",'Tablas Guayaquil'!I18,'Tablas Resto de Ecuador'!I18) -> 254
A19: 31 | C19: =IF('INGRESO DE DATOS'!$G$21="Guayas/Santa Elena",'Tablas Guayaquil'!C19,'Tablas Resto de Ecuador'!C19) -> 2651 | D19: =IF('INGRESO DE DATOS'!$G$21="Guayas/Santa Elena",'Tablas Guayaquil'!D19,'Tablas Resto de Ecuador'!D19) -> 2131 | E19: =IF('INGRESO DE DATOS'!$G$21="Guayas/Santa Elena",'Tablas Guayaquil'!E19,'Tablas Resto de Ecuador'!E19) -> 1616 | F19: =IF('INGRESO DE DATOS'!$G$21="Guayas/Santa Elena",'Tablas Guayaquil'!F19,'Tablas Resto de Ecuador'!F19) -> 1170 | G19: =IF('INGRESO DE DATOS'!$G$21="Guayas/Santa Elena",'Tablas Guayaquil'!G19,'Tablas Resto de Ecuador'!G19) -> 691 | H19: =IF('INGRESO DE DATOS'!$G$21="Guayas/Santa Elena",'Tablas Guayaquil'!H19,'Tablas Resto de Ecuador'!H19) -> 425 | I19: =IF('INGRESO DE DATOS'!$G$21="Guayas/Santa Elena",'Tablas Guayaquil'!I19,'Tablas Resto de Ecuador'!I19) -> 266
A20: 32 | C20: =IF('INGRESO DE DATOS'!$G$21="Guayas/Santa Elena",'Tablas Guayaquil'!C20,'Tablas Resto de Ecuador'!C20) -> 2710 | D20: =IF('INGRESO DE DATOS'!$G$21="Guayas/Santa Elena",'Tablas Guayaquil'!D20,'Tablas Resto de Ecuador'!D20) -> 2183 | E20: =IF('INGRESO DE DATOS'!$G$21="Guayas/Santa Elena",'Tablas Guayaquil'!E20,'Tablas Resto de Ecuador'!E20) -> 1660 | F20: =IF('INGRESO DE DATOS'!$G$21="Guayas/Santa Elena",'Tablas Guayaquil'!F20,'Tablas Resto de Ecuador'!F20) -> 1206 | G20: =IF('INGRESO DE DATOS'!$G$21="Guayas/Santa Elena",'Tablas Guayaquil'!G20,'Tablas Resto de Ecuador'!G20) -> 716 | H20: =IF('INGRESO DE DATOS'!$G$21="Guayas/Santa Elena",'Tablas Guayaquil'!H20,'Tablas Resto de Ecuador'!H20) -> 443 | I20: =IF('INGRESO DE DATOS'!$G$21="Guayas/Santa Elena",'Tablas Guayaquil'!I20,'Tablas Resto de Ecuador'!I20) -> 279
A21: 33 | C21: =IF('INGRESO DE DATOS'!$G$21="Guayas/Santa Elena",'Tablas Guayaquil'!C21,'Tablas Resto de Ecuador'!C21) -> 2777 | D21: =IF('INGRESO DE DATOS'!$G$21="Guayas/Santa Elena",'Tablas Guayaquil'!D21,'Tablas Resto de Ecuador'!D21) -> 2242 | E21: =IF('INGRESO DE DATOS'!$G$21="Guayas/Santa Elena",'Tablas Guayaquil'!E21,'Tablas Resto de Ecuador'!E21) -> 1710 | F21: =IF('INGRESO DE DATOS'!$G$21="Guayas/Santa Elena",'Tablas Guayaquil'!F21,'Tablas Resto de Ecuador'!F21) -> 1247 | G21: =IF('INGRESO DE DATOS'!$G$21="Guayas/Santa Elena",'Tablas Guayaquil'!G21,'Tablas Resto de Ecuador'!G21) -> 743 | H21: =IF('INGRESO DE DATOS'!$G$21="Guayas/Santa Elena",'Tablas Guayaquil'!H21,'Tablas Resto de Ecuador'!H21) -> 463 | I21: =IF('INGRESO DE DATOS'!$G$21="Guayas/Santa Elena",'Tablas Guayaquil'!I21,'Tablas Resto de Ecuador'!I21) -> 292
A22: 34 | C22: =IF('INGRESO DE DATOS'!$G$21="Guayas/Santa Elena",'Tablas Guayaquil'!C22,'Tablas Resto de Ecuador'!C22) -> 2850 | D22: =IF('INGRESO DE DATOS'!$G$21="Guayas/Santa Elena",'Tablas Guayaquil'!D22,'Tablas Resto de Ecuador'!D22) -> 2306 | E22: =IF('INGRESO DE DATOS'!$G$21="Guayas/Santa Elena",'Tablas Guayaquil'!E22,'Tablas Resto de Ecuador'!E22) -> 1765 | F22: =IF('INGRESO DE DATOS'!$G$21="Guayas/Santa Elena",'Tablas Guayaquil'!F22,'Tablas Resto de Ecuador'!F22) -> 1291 | G22: =IF('INGRESO DE DATOS'!$G$21="Guayas/Santa Elena",'Tablas Guayaquil'!G22,'Tablas Resto de Ecuador'!G22) -> 774 | H22: =IF('INGRESO DE DATOS'!$G$21="Guayas/Santa Elena",'Tablas Guayaquil'!H22,'Tablas Resto de Ecuador'!H22) -> 483 | I22: =IF('INGRESO DE DATOS'!$G$21="Guayas/Santa Elena",'Tablas Guayaquil'!I22,'Tablas Resto de Ecuador'!I22) -> 308
A23: 35 | C23: =IF('INGRESO DE DATOS'!$G$21="Guayas/Santa Elena",'Tablas Guayaquil'!C23,'Tablas Resto de Ecuador'!C23) -> 2932 | D23: =IF('INGRESO DE DATOS'!$G$21="Guayas/Santa Elena",'Tablas Guayaquil'!D23,'Tablas Resto de Ecuador'!D23) -> 2378 | E23: =IF('INGRESO DE DATOS'!$G$21="Guayas/Santa Elena",'Tablas Guayaquil'!E23,'Tablas Resto de Ecuador'!E23) -> 1826 | F23: =IF('INGRESO DE DATOS'!$G$21="Guayas/Santa Elena",'Tablas Guayaquil'!F23,'Tablas Resto de Ecuador'!F23) -> 1340 | G23: =IF('INGRESO DE DATOS'!$G$21="Guayas/Santa Elena",'Tablas Guayaquil'!G23,'Tablas Resto de Ecuador'!G23) -> 806 | H23: =IF('INGRESO DE DATOS'!$G$21="Guayas/Santa Elena",'Tablas Guayaquil'!H23,'Tablas Resto de Ecuador'!H23) -> 507 | I23: =IF('INGRESO DE DATOS'!$G$21="Guayas/Santa Elena",'Tablas Guayaquil'!I23,'Tablas Resto de Ecuador'!I23) -> 324
A24: 36 | C24: =IF('INGRESO DE DATOS'!$G$21="Guayas/Santa Elena",'Tablas Guayaquil'!C24,'Tablas Resto de Ecuador'!C24) -> 3023 | D24: =IF('INGRESO DE DATOS'!$G$21="Guayas/Santa Elena",'Tablas Guayaquil'!D24,'Tablas Resto de Ecuador'!D24) -> 2458 | E24: =IF('INGRESO DE DATOS'!$G$21="Guayas/Santa Elena",'Tablas Guayaquil'!E24,'Tablas Resto de Ecuador'!E24) -> 1893 | F24: =IF('INGRESO DE DATOS'!$G$21="Guayas/Santa Elena",'Tablas Guayaquil'!F24,'Tablas Resto de Ecuador'!F24) -> 1392 | G24: =IF('INGRESO DE DATOS'!$G$21="Guayas/Santa Elena",'Tablas Guayaquil'!G24,'Tablas Resto de Ecuador'!G24) -> 843 | H24: =IF('INGRESO DE DATOS'!$G$21="Guayas/Santa Elena",'Tablas Guayaquil'!H24,'Tablas Resto de Ecuador'!H24) -> 532 | I24: =IF('INGRESO DE DATOS'!$G$21="Guayas/Santa Elena",'Tablas Guayaquil'!I24,'Tablas Resto de Ecuador'!I24) -> 343
A25: 37 | C25: =IF('INGRESO DE DATOS'!$G$21="Guayas/Santa Elena",'Tablas Guayaquil'!C25,'Tablas Resto de Ecuador'!C25) -> 3122 | D25: =IF('INGRESO DE DATOS'!$G$21="Guayas/Santa Elena",'Tablas Guayaquil'!D25,'Tablas Resto de Ecuador'!D25) -> 2545 | E25: =IF('INGRESO DE DATOS'!$G$21="Guayas/Santa Elena",'Tablas Guayaquil'!E25,'Tablas Resto de Ecuador'!E25) -> 1964 | F25: =IF('INGRESO DE DATOS'!$G$21="Guayas/Santa Elena",'Tablas Guayaquil'!F25,'Tablas Resto de Ecuador'!F25) -> 1451 | G25: =IF('INGRESO DE DATOS'!$G$21="Guayas/Santa Elena",'Tablas Guayaquil'!G25,'Tablas Resto de Ecuador'!G25) -> 883 | H25: =IF('INGRESO DE DATOS'!$G$21="Guayas/Santa Elena",'Tablas Guayaquil'!H25,'Tablas Resto de Ecuador'!H25) -> 559 | I25: =IF('INGRESO DE DATOS'!$G$21="Guayas/Santa Elena",'Tablas Guayaquil'!I25,'Tablas Resto de Ecuador'!I25) -> 361
A26: 38 | C26: =IF('INGRESO DE DATOS'!$G$21="Guayas/Santa Elena",'Tablas Guayaquil'!C26,'Tablas Resto de Ecuador'!C26) -> 3231 | D26: =IF('INGRESO DE DATOS'!$G$21="Guayas/Santa Elena",'Tablas Guayaquil'!D26,'Tablas Resto de Ecuador'!D26) -> 2640 | E26: =IF('INGRESO DE DATOS'!$G$21="Guayas/Santa Elena",'Tablas Guayaquil'!E26,'Tablas Resto de Ecuador'!E26) -> 2043 | F26: =IF('INGRESO DE DATOS'!$G$21="Guayas/Santa Elena",'Tablas Guayaquil'!F26,'Tablas Resto de Ecuador'!F26) -> 1513 | G26: =IF('INGRESO DE DATOS'!$G$21="Guayas/Santa Elena",'Tablas Guayaquil'!G26,'Tablas Resto de Ecuador'!G26) -> 925 | H26: =IF('INGRESO DE DATOS'!$G$21="Guayas/Santa Elena",'Tablas Guayaquil'!H26,'Tablas Resto de Ecuador'!H26) -> 588 | I26: =IF('INGRESO DE DATOS'!$G$21="Guayas/Santa Elena",'Tablas Guayaquil'!I26,'Tablas Resto de Ecuador'!I26) -> 383
A27: 39 | C27: =IF('INGRESO DE DATOS'!$G$21="Guayas/Santa Elena",'Tablas Guayaquil'!C27,'Tablas Resto de Ecuador'!C27) -> 3349 | D27: =IF('INGRESO DE DATOS'!$G$21="Guayas/Santa Elena",'Tablas Guayaquil'!D27,'Tablas Resto de Ecuador'!D27) -> 2743 | E27: =IF('INGRESO DE DATOS'!$G$21="Guayas/Santa Elena",'Tablas Guayaquil'!E27,'Tablas Resto de Ecuador'!E27) -> 2131 | F27: =IF('INGRESO DE DATOS'!$G$21="Guayas/Santa Elena",'Tablas Guayaquil'!F27,'Tablas Resto de Ecuador'!F27) -> 1582 | G27: =IF('INGRESO DE DATOS'!$G$21="Guayas/Santa Elena",'Tablas Guayaquil'!G27,'Tablas Resto de Ecuador'!G27) -> 972 | H27: =IF('INGRESO DE DATOS'!$G$21="Guayas/Santa Elena",'Tablas Guayaquil'!H27,'Tablas Resto de Ecuador'!H27) -> 620 | I27: =IF('INGRESO DE DATOS'!$G$21="Guayas/Santa Elena",'Tablas Guayaquil'!I27,'Tablas Resto de Ecuador'!I27) -> 405
A28: 40 | C28: =IF('INGRESO DE DATOS'!$G$21="Guayas/Santa Elena",'Tablas Guayaquil'!C28,'Tablas Resto de Ecuador'!C28) -> 3444 | D28: =IF('INGRESO DE DATOS'!$G$21="Guayas/Santa Elena",'Tablas Guayaquil'!D28,'Tablas Resto de Ecuador'!D28) -> 2855 | E28: =IF('INGRESO DE DATOS'!$G$21="Guayas/Santa Elena",'Tablas Guayaquil'!E28,'Tablas Resto de Ecuador'!E28) -> 2224 | F28: =IF('INGRESO DE DATOS'!$G$21="Guayas/Santa Elena",'Tablas Guayaquil'!F28,'Tablas Resto de Ecuador'!F28) -> 1657 | G28: =IF('INGRESO DE DATOS'!$G$21="Guayas/Santa Elena",'Tablas Guayaquil'!G28,'Tablas Resto de Ecuador'!G28) -> 1022 | H28: =IF('INGRESO DE DATOS'!$G$21="Guayas/Santa Elena",'Tablas Guayaquil'!H28,'Tablas Resto de Ecuador'!H28) -> 655 | I28: =IF('INGRESO DE DATOS'!$G$21="Guayas/Santa Elena",'Tablas Guayaquil'!I28,'Tablas Resto de Ecuador'!I28) -> 431
A29: 41 | C29: =IF('INGRESO DE DATOS'!$G$21="Guayas/Santa Elena",'Tablas Guayaquil'!C29,'Tablas Resto de Ecuador'!C29) -> 3520 | D29: =IF('INGRESO DE DATOS'!$G$21="Guayas/Santa Elena",'Tablas Guayaquil'!D29,'Tablas Resto de Ecuador'!D29) -> 2976 | E29: =IF('INGRESO DE DATOS'!$G$21="Guayas/Santa Elena",'Tablas Guayaquil'!E29,'Tablas Resto de Ecuador'!E29) -> 2324 | F29: =IF('INGRESO DE DATOS'!$G$21="Guayas/Santa Elena",'Tablas Guayaquil'!F29,'Tablas Resto de Ecuador'!F29) -> 1737 | G29: =IF('INGRESO DE DATOS'!$G$21="Guayas/Santa Elena",'Tablas Guayaquil'!G29,'Tablas Resto de Ecuador'!G29) -> 1075 | H29: =IF('INGRESO DE DATOS'!$G$21="Guayas/Santa Elena",'Tablas Guayaquil'!H29,'Tablas Resto de Ecuador'!H29) -> 693 | I29: =IF('INGRESO DE DATOS'!$G$21="Guayas/Santa Elena",'Tablas Guayaquil'!I29,'Tablas Resto de Ecuador'!I29) -> 459
A30: 42 | C30: =IF('INGRESO DE DATOS'!$G$21="Guayas/Santa Elena",'Tablas Guayaquil'!C30,'Tablas Resto de Ecuador'!C30) -> 3604 | D30: =IF('INGRESO DE DATOS'!$G$21="Guayas/Santa Elena",'Tablas Guayaquil'!D30,'Tablas Resto de Ecuador'!D30) -> 3110 | E30: =IF('INGRESO DE DATOS'!$G$21="Guayas/Santa Elena",'Tablas Guayaquil'!E30,'Tablas Resto de Ecuador'!E30) -> 2434 | F30: =IF('INGRESO DE DATOS'!$G$21="Guayas/Santa Elena",'Tablas Guayaquil'!F30,'Tablas Resto de Ecuador'!F30) -> 1825 | G30: =IF('INGRESO DE DATOS'!$G$21="Guayas/Santa Elena",'Tablas Guayaquil'!G30,'Tablas Resto de Ecuador'!G30) -> 1135 | H30: =IF('INGRESO DE DATOS'!$G$21="Guayas/Santa Elena",'Tablas Guayaquil'!H30,'Tablas Resto de Ecuador'!H30) -> 734 | I30: =IF('INGRESO DE DATOS'!$G$21="Guayas/Santa Elena",'Tablas Guayaquil'!I30,'Tablas Resto de Ecuador'!I30) -> 489
A31: 43 | C31: =IF('INGRESO DE DATOS'!$G$21="Guayas/Santa Elena",'Tablas Guayaquil'!C31,'Tablas Resto de Ecuador'!C31) -> 3741 | D31: =IF('INGRESO DE DATOS'!$G$21="Guayas/Santa Elena",'Tablas Guayaquil'!D31,'Tablas Resto de Ecuador'!D31) -> 3251 | E31: =IF('INGRESO DE DATOS'!$G$21="Guayas/Santa Elena",'Tablas Guayaquil'!E31,'Tablas Resto de Ecuador'!E31) -> 2552 | F31: =IF('INGRESO DE DATOS'!$G$21="Guayas/Santa Elena",'Tablas Guayaquil'!F31,'Tablas Resto de Ecuador'!F31) -> 1920 | G31: =IF('INGRESO DE DATOS'!$G$21="Guayas/Santa Elena",'Tablas Guayaquil'!G31,'Tablas Resto de Ecuador'!G31) -> 1199 | H31: =IF('INGRESO DE DATOS'!$G$21="Guayas/Santa Elena",'Tablas Guayaquil'!H31,'Tablas Resto de Ecuador'!H31) -> 779 | I31: =IF('INGRESO DE DATOS'!$G$21="Guayas/Santa Elena",'Tablas Guayaquil'!I31,'Tablas Resto de Ecuador'!I31) -> 521
A32: 44 | C32: =IF('INGRESO DE DATOS'!$G$21="Guayas/Santa Elena",'Tablas Guayaquil'!C32,'Tablas Resto de Ecuador'!C32) -> 3885 | D32: =IF('INGRESO DE DATOS'!$G$21="Guayas/Santa Elena",'Tablas Guayaquil'!D32,'Tablas Resto de Ecuador'!D32) -> 3380 | E32: =IF('INGRESO DE DATOS'!$G$21="Guayas/Santa Elena",'Tablas Guayaquil'!E32,'Tablas Resto de Ecuador'!E32) -> 2680 | F32: =IF('INGRESO DE DATOS'!$G$21="Guayas/Santa Elena",'Tablas Guayaquil'!F32,'Tablas Resto de Ecuador'!F32) -> 2022 | G32: =IF('INGRESO DE DATOS'!$G$21="Guayas/Santa Elena",'Tablas Guayaquil'!G32,'Tablas Resto de Ecuador'!G32) -> 1268 | H32: =IF('INGRESO DE DATOS'!$G$21="Guayas/Santa Elena",'Tablas Guayaquil'!H32,'Tablas Resto de Ecuador'!H32) -> 827 | I32: =IF('INGRESO DE DATOS'!$G$21="Guayas/Santa Elena",'Tablas Guayaquil'!I32,'Tablas Resto de Ecuador'!I32) -> 557
A33: 45 | C33: =IF('INGRESO DE DATOS'!$G$21="Guayas/Santa Elena",'Tablas Guayaquil'!C33,'Tablas Resto de Ecuador'!C33) -> 4030 | D33: =IF('INGRESO DE DATOS'!$G$21="Guayas/Santa Elena",'Tablas Guayaquil'!D33,'Tablas Resto de Ecuador'!D33) -> 3503 | E33: =IF('INGRESO DE DATOS'!$G$21="Guayas/Santa Elena",'Tablas Guayaquil'!E33,'Tablas Resto de Ecuador'!E33) -> 2819 | F33: =IF('INGRESO DE DATOS'!$G$21="Guayas/Santa Elena",'Tablas Guayaquil'!F33,'Tablas Resto de Ecuador'!F33) -> 2133 | G33: =IF('INGRESO DE DATOS'!$G$21="Guayas/Santa Elena",'Tablas Guayaquil'!G33,'Tablas Resto de Ecuador'!G33) -> 1342 | H33: =IF('INGRESO DE DATOS'!$G$21="Guayas/Santa Elena",'Tablas Guayaquil'!H33,'Tablas Resto de Ecuador'!H33) -> 879 | I33: =IF('INGRESO DE DATOS'!$G$21="Guayas/Santa Elena",'Tablas Guayaquil'!I33,'Tablas Resto de Ecuador'!I33) -> 594
A34: 46 | C34: =IF('INGRESO DE DATOS'!$G$21="Guayas/Santa Elena",'Tablas Guayaquil'!C34,'Tablas Resto de Ecuador'!C34) -> 4172 | D34: =IF('INGRESO DE DATOS'!$G$21="Guayas/Santa Elena",'Tablas Guayaquil'!D34,'Tablas Resto de Ecuador'!D34) -> 3628 | E34: =IF('INGRESO DE DATOS'!$G$21="Guayas/Santa Elena",'Tablas Guayaquil'!E34,'Tablas Resto de Ecuador'!E34) -> 2968 | F34: =IF('INGRESO DE DATOS'!$G$21="Guayas/Santa Elena",'Tablas Guayaquil'!F34,'Tablas Resto de Ecuador'!F34) -> 2252 | G34: =IF('INGRESO DE DATOS'!$G$21="Guayas/Santa Elena",'Tablas Guayaquil'!G34,'Tablas Resto de Ecuador'!G34) -> 1425 | H34: =IF('INGRESO DE DATOS'!$G$21="Guayas/Santa Elena",'Tablas Guayaquil'!H34,'Tablas Resto de Ecuador'!H34) -> 936 | I34: =IF('INGRESO DE DATOS'!$G$21="Guayas/Santa Elena",'Tablas Guayaquil'!I34,'Tablas Resto de Ecuador'!I34) -> 636
A35: 47 | C35: =IF('INGRESO DE DATOS'!$G$21="Guayas/Santa Elena",'Tablas Guayaquil'!C35,'Tablas Resto de Ecuador'!C35) -> 4317 | D35: =IF('INGRESO DE DATOS'!$G$21="Guayas/Santa Elena",'Tablas Guayaquil'!D35,'Tablas Resto de Ecuador'!D35) -> 3752 | E35: =IF('INGRESO DE DATOS'!$G$21="Guayas/Santa Elena",'Tablas Guayaquil'!E35,'Tablas Resto de Ecuador'!E35) -> 3127 | F35: =IF('INGRESO DE DATOS'!$G$21="Guayas/Santa Elena",'Tablas Guayaquil'!F35,'Tablas Resto de Ecuador'!F35) -> 2380 | G35: =IF('INGRESO DE DATOS'!$G$21="Guayas/Santa Elena",'Tablas Guayaquil'!G35,'Tablas Resto de Ecuador'!G35) -> 1511 | H35: =IF('INGRESO DE DATOS'!$G$21="Guayas/Santa Elena",'Tablas Guayaquil'!H35,'Tablas Resto de Ecuador'!H35) -> 996 | I35: =IF('INGRESO DE DATOS'!$G$21="Guayas/Santa Elena",'Tablas Guayaquil'!I35,'Tablas Resto de Ecuador'!I35) -> 681
A36: 48 | C36: =IF('INGRESO DE DATOS'!$G$21="Guayas/Santa Elena",'Tablas Guayaquil'!C36,'Tablas Resto de Ecuador'!C36) -> 4470 | D36: =IF('INGRESO DE DATOS'!$G$21="Guayas/Santa Elena",'Tablas Guayaquil'!D36,'Tablas Resto de Ecuador'!D36) -> 3885 | E36: =IF('INGRESO DE DATOS'!$G$21="Guayas/Santa Elena",'Tablas Guayaquil'!E36,'Tablas Resto de Ecuador'!E36) -> 3301 | F36: =IF('INGRESO DE DATOS'!$G$21="Guayas/Santa Elena",'Tablas Guayaquil'!F36,'Tablas Resto de Ecuador'!F36) -> 2519 | G36: =IF('INGRESO DE DATOS'!$G$21="Guayas/Santa Elena",'Tablas Guayaquil'!G36,'Tablas Resto de Ecuador'!G36) -> 1607 | H36: =IF('INGRESO DE DATOS'!$G$21="Guayas/Santa Elena",'Tablas Guayaquil'!H36,'Tablas Resto de Ecuador'!H36) -> 1063 | I36: =IF('INGRESO DE DATOS'!$G$21="Guayas/Santa Elena",'Tablas Guayaquil'!I36,'Tablas Resto de Ecuador'!I36) -> 731
A37: 49 | C37: =IF('INGRESO DE DATOS'!$G$21="Guayas/Santa Elena",'Tablas Guayaquil'!C37,'Tablas Resto de Ecuador'!C37) -> 4619 | D37: =IF('INGRESO DE DATOS'!$G$21="Guayas/Santa Elena",'Tablas Guayaquil'!D37,'Tablas Resto de Ecuador'!D37) -> 4016 | E37: =IF('INGRESO DE DATOS'!$G$21="Guayas/Santa Elena",'Tablas Guayaquil'!E37,'Tablas Resto de Ecuador'!E37) -> 3487 | F37: =IF('INGRESO DE DATOS'!$G$21="Guayas/Santa Elena",'Tablas Guayaquil'!F37,'Tablas Resto de Ecuador'!F37) -> 2670 | G37: =IF('INGRESO DE DATOS'!$G$21="Guayas/Santa Elena",'Tablas Guayaquil'!G37,'Tablas Resto de Ecuador'!G37) -> 1709 | H37: =IF('INGRESO DE DATOS'!$G$21="Guayas/Santa Elena",'Tablas Guayaquil'!H37,'Tablas Resto de Ecuador'!H37) -> 1137 | I37: =IF('INGRESO DE DATOS'!$G$21="Guayas/Santa Elena",'Tablas Guayaquil'!I37,'Tablas Resto de Ecuador'!I37) -> 783
A38: 50 | C38: =IF('INGRESO DE DATOS'!$G$21="Guayas/Santa Elena",'Tablas Guayaquil'!C38,'Tablas Resto de Ecuador'!C38) -> 4770 | D38: =IF('INGRESO DE DATOS'!$G$21="Guayas/Santa Elena",'Tablas Guayaquil'!D38,'Tablas Resto de Ecuador'!D38) -> 4150 | E38: =IF('INGRESO DE DATOS'!$G$21="Guayas/Santa Elena",'Tablas Guayaquil'!E38,'Tablas Resto de Ecuador'!E38) -> 3701 | F38: =IF('INGRESO DE DATOS'!$G$21="Guayas/Santa Elena",'Tablas Guayaquil'!F38,'Tablas Resto de Ecuador'!F38) -> 2844 | G38: =IF('INGRESO DE DATOS'!$G$21="Guayas/Santa Elena",'Tablas Guayaquil'!G38,'Tablas Resto de Ecuador'!G38) -> 1829 | H38: =IF('INGRESO DE DATOS'!$G$21="Guayas/Santa Elena",'Tablas Guayaquil'!H38,'Tablas Resto de Ecuador'!H38) -> 1220 | I38: =IF('INGRESO DE DATOS'!$G$21="Guayas/Santa Elena",'Tablas Guayaquil'!I38,'Tablas Resto de Ecuador'!I38) -> 846
A39: 51 | C39: =IF('INGRESO DE DATOS'!$G$21="Guayas/Santa Elena",'Tablas Guayaquil'!C39,'Tablas Resto de Ecuador'!C39) -> 4919 | D39: =IF('INGRESO DE DATOS'!$G$21="Guayas/Santa Elena",'Tablas Guayaquil'!D39,'Tablas Resto de Ecuador'!D39) -> 4280 | E39: =IF('INGRESO DE DATOS'!$G$21="Guayas/Santa Elena",'Tablas Guayaquil'!E39,'Tablas Resto de Ecuador'!E39) -> 3902 | F39: =IF('INGRESO DE DATOS'!$G$21="Guayas/Santa Elena",'Tablas Guayaquil'!F39,'Tablas Resto de Ecuador'!F39) -> 3053 | G39: =IF('INGRESO DE DATOS'!$G$21="Guayas/Santa Elena",'Tablas Guayaquil'!G39,'Tablas Resto de Ecuador'!G39) -> 1974 | H39: =IF('INGRESO DE DATOS'!$G$21="Guayas/Santa Elena",'Tablas Guayaquil'!H39,'Tablas Resto de Ecuador'!H39) -> 1323 | I39: =IF('INGRESO DE DATOS'!$G$21="Guayas/Santa Elena",'Tablas Guayaquil'!I39,'Tablas Resto de Ecuador'!I39) -> 922
A40: 52 | C40: =IF('INGRESO DE DATOS'!$G$21="Guayas/Santa Elena",'Tablas Guayaquil'!C40,'Tablas Resto de Ecuador'!C40) -> 5071 | D40: =IF('INGRESO DE DATOS'!$G$21="Guayas/Santa Elena",'Tablas Guayaquil'!D40,'Tablas Resto de Ecuador'!D40) -> 4412 | E40: =IF('INGRESO DE DATOS'!$G$21="Guayas/Santa Elena",'Tablas Guayaquil'!E40,'Tablas Resto de Ecuador'!E40) -> 4022 | F40: =IF('INGRESO DE DATOS'!$G$21="Guayas/Santa Elena",'Tablas Guayaquil'!F40,'Tablas Resto de Ecuador'!F40) -> 3278 | G40: =IF('INGRESO DE DATOS'!$G$21="Guayas/Santa Elena",'Tablas Guayaquil'!G40,'Tablas Resto de Ecuador'!G40) -> 2129 | H40: =IF('INGRESO DE DATOS'!$G$21="Guayas/Santa Elena",'Tablas Guayaquil'!H40,'Tablas Resto de Ecuador'!H40) -> 1434 | I40: =IF('INGRESO DE DATOS'!$G$21="Guayas/Santa Elena",'Tablas Guayaquil'!I40,'Tablas Resto de Ecuador'!I40) -> 1004
A41: 53 | C41: =IF('INGRESO DE DATOS'!$G$21="Guayas/Santa Elena",'Tablas Guayaquil'!C41,'Tablas Resto de Ecuador'!C41) -> 5251 | D41: =IF('INGRESO DE DATOS'!$G$21="Guayas/Santa Elena",'Tablas Guayaquil'!D41,'Tablas Resto de Ecuador'!D41) -> 4566 | E41: =IF('INGRESO DE DATOS'!$G$21="Guayas/Santa Elena",'Tablas Guayaquil'!E41,'Tablas Resto de Ecuador'!E41) -> 4166 | F41: =IF('INGRESO DE DATOS'!$G$21="Guayas/Santa Elena",'Tablas Guayaquil'!F41,'Tablas Resto de Ecuador'!F41) -> 3519 | G41: =IF('INGRESO DE DATOS'!$G$21="Guayas/Santa Elena",'Tablas Guayaquil'!G41,'Tablas Resto de Ecuador'!G41) -> 2296 | H41: =IF('INGRESO DE DATOS'!$G$21="Guayas/Santa Elena",'Tablas Guayaquil'!H41,'Tablas Resto de Ecuador'!H41) -> 1551 | I41: =IF('INGRESO DE DATOS'!$G$21="Guayas/Santa Elena",'Tablas Guayaquil'!I41,'Tablas Resto de Ecuador'!I41) -> 1092
A42: 54 | C42: =IF('INGRESO DE DATOS'!$G$21="Guayas/Santa Elena",'Tablas Guayaquil'!C42,'Tablas Resto de Ecuador'!C42) -> 5432 | D42: =IF('INGRESO DE DATOS'!$G$21="Guayas/Santa Elena",'Tablas Guayaquil'!D42,'Tablas Resto de Ecuador'!D42) -> 4722 | E42: =IF('INGRESO DE DATOS'!$G$21="Guayas/Santa Elena",'Tablas Guayaquil'!E42,'Tablas Resto de Ecuador'!E42) -> 4306 | F42: =IF('INGRESO DE DATOS'!$G$21="Guayas/Santa Elena",'Tablas Guayaquil'!F42,'Tablas Resto de Ecuador'!F42) -> 3779 | G42: =IF('INGRESO DE DATOS'!$G$21="Guayas/Santa Elena",'Tablas Guayaquil'!G42,'Tablas Resto de Ecuador'!G42) -> 2476 | H42: =IF('INGRESO DE DATOS'!$G$21="Guayas/Santa Elena",'Tablas Guayaquil'!H42,'Tablas Resto de Ecuador'!H42) -> 1678 | I42: =IF('INGRESO DE DATOS'!$G$21="Guayas/Santa Elena",'Tablas Guayaquil'!I42,'Tablas Resto de Ecuador'!I42) -> 1187
A43: 55 | C43: =IF('INGRESO DE DATOS'!$G$21="Guayas/Santa Elena",'Tablas Guayaquil'!C43,'Tablas Resto de Ecuador'!C43) -> 5614 | D43: =IF('INGRESO DE DATOS'!$G$21="Guayas/Santa Elena",'Tablas Guayaquil'!D43,'Tablas Resto de Ecuador'!D43) -> 4881 | E43: =IF('INGRESO DE DATOS'!$G$21="Guayas/Santa Elena",'Tablas Guayaquil'!E43,'Tablas Resto de Ecuador'!E43) -> 4448 | F43: =IF('INGRESO DE DATOS'!$G$21="Guayas/Santa Elena",'Tablas Guayaquil'!F43,'Tablas Resto de Ecuador'!F43) -> 3925 | G43: =IF('INGRESO DE DATOS'!$G$21="Guayas/Santa Elena",'Tablas Guayaquil'!G43,'Tablas Resto de Ecuador'!G43) -> 2669 | H43: =IF('INGRESO DE DATOS'!$G$21="Guayas/Santa Elena",'Tablas Guayaquil'!H43,'Tablas Resto de Ecuador'!H43) -> 1814 | I43: =IF('INGRESO DE DATOS'!$G$21="Guayas/Santa Elena",'Tablas Guayaquil'!I43,'Tablas Resto de Ecuador'!I43) -> 1288
A44: 56 | C44: =IF('INGRESO DE DATOS'!$G$21="Guayas/Santa Elena",'Tablas Guayaquil'!C44,'Tablas Resto de Ecuador'!C44) -> 5792 | D44: =IF('INGRESO DE DATOS'!$G$21="Guayas/Santa Elena",'Tablas Guayaquil'!D44,'Tablas Resto de Ecuador'!D44) -> 5035 | E44: =IF('INGRESO DE DATOS'!$G$21="Guayas/Santa Elena",'Tablas Guayaquil'!E44,'Tablas Resto de Ecuador'!E44) -> 4589 | F44: =IF('INGRESO DE DATOS'!$G$21="Guayas/Santa Elena",'Tablas Guayaquil'!F44,'Tablas Resto de Ecuador'!F44) -> 4060 | G44: =IF('INGRESO DE DATOS'!$G$21="Guayas/Santa Elena",'Tablas Guayaquil'!G44,'Tablas Resto de Ecuador'!G44) -> 2824 | H44: =IF('INGRESO DE DATOS'!$G$21="Guayas/Santa Elena",'Tablas Guayaquil'!H44,'Tablas Resto de Ecuador'!H44) -> 1961 | I44: =IF('INGRESO DE DATOS'!$G$21="Guayas/Santa Elena",'Tablas Guayaquil'!I44,'Tablas Resto de Ecuador'!I44) -> 1397
A45: 57 | C45: =IF('INGRESO DE DATOS'!$G$21="Guayas/Santa Elena",'Tablas Guayaquil'!C45,'Tablas Resto de Ecuador'!C45) -> 5969 | D45: =IF('INGRESO DE DATOS'!$G$21="Guayas/Santa Elena",'Tablas Guayaquil'!D45,'Tablas Resto de Ecuador'!D45) -> 5193 | E45: =IF('INGRESO DE DATOS'!$G$21="Guayas/Santa Elena",'Tablas Guayaquil'!E45,'Tablas Resto de Ecuador'!E45) -> 4734 | F45: =IF('INGRESO DE DATOS'!$G$21="Guayas/Santa Elena",'Tablas Guayaquil'!F45,'Tablas Resto de Ecuador'!F45) -> 4197 | G45: =IF('INGRESO DE DATOS'!$G$21="Guayas/Santa Elena",'Tablas Guayaquil'!G45,'Tablas Resto de Ecuador'!G45) -> 2912 | H45: =IF('INGRESO DE DATOS'!$G$21="Guayas/Santa Elena",'Tablas Guayaquil'!H45,'Tablas Resto de Ecuador'!H45) -> 2118 | I45: =IF('INGRESO DE DATOS'!$G$21="Guayas/Santa Elena",'Tablas Guayaquil'!I45,'Tablas Resto de Ecuador'!I45) -> 1515
A46: 58 | C46: =IF('INGRESO DE DATOS'!$G$21="Guayas/Santa Elena",'Tablas Guayaquil'!C46,'Tablas Resto de Ecuador'!C46) -> 6175 | D46: =IF('INGRESO DE DATOS'!$G$21="Guayas/Santa Elena",'Tablas Guayaquil'!D46,'Tablas Resto de Ecuador'!D46) -> 5368 | E46: =IF('INGRESO DE DATOS'!$G$21="Guayas/Santa Elena",'Tablas Guayaquil'!E46,'Tablas Resto de Ecuador'!E46) -> 4882 | F46: =IF('INGRESO DE DATOS'!$G$21="Guayas/Santa Elena",'Tablas Guayaquil'!F46,'Tablas Resto de Ecuador'!F46) -> 4377 | G46: =IF('INGRESO DE DATOS'!$G$21="Guayas/Santa Elena",'Tablas Guayaquil'!G46,'Tablas Resto de Ecuador'!G46) -> 3027 | H46: =IF('INGRESO DE DATOS'!$G$21="Guayas/Santa Elena",'Tablas Guayaquil'!H46,'Tablas Resto de Ecuador'!H46) -> 2287 | I46: =IF('INGRESO DE DATOS'!$G$21="Guayas/Santa Elena",'Tablas Guayaquil'!I46,'Tablas Resto de Ecuador'!I46) -> 1641
A47: 59 | C47: =IF('INGRESO DE DATOS'!$G$21="Guayas/Santa Elena",'Tablas Guayaquil'!C47,'Tablas Resto de Ecuador'!C47) -> 6382 | D47: =IF('INGRESO DE DATOS'!$G$21="Guayas/Santa Elena",'Tablas Guayaquil'!D47,'Tablas Resto de Ecuador'!D47) -> 5550 | E47: =IF('INGRESO DE DATOS'!$G$21="Guayas/Santa Elena",'Tablas Guayaquil'!E47,'Tablas Resto de Ecuador'!E47) -> 5029 | F47: =IF('INGRESO DE DATOS'!$G$21="Guayas/Santa Elena",'Tablas Guayaquil'!F47,'Tablas Resto de Ecuador'!F47) -> 4553 | G47: =IF('INGRESO DE DATOS'!$G$21="Guayas/Santa Elena",'Tablas Guayaquil'!G47,'Tablas Resto de Ecuador'!G47) -> 3142 | H47: =IF('INGRESO DE DATOS'!$G$21="Guayas/Santa Elena",'Tablas Guayaquil'!H47,'Tablas Resto de Ecuador'!H47) -> 2468 | I47: =IF('INGRESO DE DATOS'!$G$21="Guayas/Santa Elena",'Tablas Guayaquil'!I47,'Tablas Resto de Ecuador'!I47) -> 1776
A48: 60 | C48: =IF('INGRESO DE DATOS'!$G$21="Guayas/Santa Elena",'Tablas Guayaquil'!C48,'Tablas Resto de Ecuador'!C48) -> 6587 | D48: =IF('INGRESO DE DATOS'!$G$21="Guayas/Santa Elena",'Tablas Guayaquil'!D48,'Tablas Resto de Ecuador'!D48) -> 5727 | E48: =IF('INGRESO DE DATOS'!$G$21="Guayas/Santa Elena",'Tablas Guayaquil'!E48,'Tablas Resto de Ecuador'!E48) -> 5180 | F48: =IF('INGRESO DE DATOS'!$G$21="Guayas/Santa Elena",'Tablas Guayaquil'!F48,'Tablas Resto de Ecuador'!F48) -> 4731 | G48: =IF('INGRESO DE DATOS'!$G$21="Guayas/Santa Elena",'Tablas Guayaquil'!G48,'Tablas Resto de Ecuador'!G48) -> 3257 | H48: =IF('INGRESO DE DATOS'!$G$21="Guayas/Santa Elena",'Tablas Guayaquil'!H48,'Tablas Resto de Ecuador'!H48) -> 2665 | I48: =IF('INGRESO DE DATOS'!$G$21="Guayas/Santa Elena",'Tablas Guayaquil'!I48,'Tablas Resto de Ecuador'!I48) -> 1922
A49: 61 | C49: =IF('INGRESO DE DATOS'!$G$21="Guayas/Santa Elena",'Tablas Guayaquil'!C49,'Tablas Resto de Ecuador'!C49) -> 6841 | D49: =IF('INGRESO DE DATOS'!$G$21="Guayas/Santa Elena",'Tablas Guayaquil'!D49,'Tablas Resto de Ecuador'!D49) -> 5947 | E49: =IF('INGRESO DE DATOS'!$G$21="Guayas/Santa Elena",'Tablas Guayaquil'!E49,'Tablas Resto de Ecuador'!E49) -> 5403 | F49: =IF('INGRESO DE DATOS'!$G$21="Guayas/Santa Elena",'Tablas Guayaquil'!F49,'Tablas Resto de Ecuador'!F49) -> 4908 | G49: =IF('INGRESO DE DATOS'!$G$21="Guayas/Santa Elena",'Tablas Guayaquil'!G49,'Tablas Resto de Ecuador'!G49) -> 3378 | H49: =IF('INGRESO DE DATOS'!$G$21="Guayas/Santa Elena",'Tablas Guayaquil'!H49,'Tablas Resto de Ecuador'!H49) -> 2874 | I49: =IF('INGRESO DE DATOS'!$G$21="Guayas/Santa Elena",'Tablas Guayaquil'!I49,'Tablas Resto de Ecuador'!I49) -> 2078
A50: 62 | C50: =IF('INGRESO DE DATOS'!$G$21="Guayas/Santa Elena",'Tablas Guayaquil'!C50,'Tablas Resto de Ecuador'!C50) -> 7148 | D50: =IF('INGRESO DE DATOS'!$G$21="Guayas/Santa Elena",'Tablas Guayaquil'!D50,'Tablas Resto de Ecuador'!D50) -> 6215 | E50: =IF('INGRESO DE DATOS'!$G$21="Guayas/Santa Elena",'Tablas Guayaquil'!E50,'Tablas Resto de Ecuador'!E50) -> 5667 | F50: =IF('INGRESO DE DATOS'!$G$21="Guayas/Santa Elena",'Tablas Guayaquil'!F50,'Tablas Resto de Ecuador'!F50) -> 5129 | G50: =IF('INGRESO DE DATOS'!$G$21="Guayas/Santa Elena",'Tablas Guayaquil'!G50,'Tablas Resto de Ecuador'!G50) -> 3533 | H50: =IF('INGRESO DE DATOS'!$G$21="Guayas/Santa Elena",'Tablas Guayaquil'!H50,'Tablas Resto de Ecuador'!H50) -> 3102 | I50: =IF('INGRESO DE DATOS'!$G$21="Guayas/Santa Elena",'Tablas Guayaquil'!I50,'Tablas Resto de Ecuador'!I50) -> 2248
A51: 63 | C51: =IF('INGRESO DE DATOS'!$G$21="Guayas/Santa Elena",'Tablas Guayaquil'!C51,'Tablas Resto de Ecuador'!C51) -> 7516 | D51: =IF('INGRESO DE DATOS'!$G$21="Guayas/Santa Elena",'Tablas Guayaquil'!D51,'Tablas Resto de Ecuador'!D51) -> 6534 | E51: =IF('INGRESO DE DATOS'!$G$21="Guayas/Santa Elena",'Tablas Guayaquil'!E51,'Tablas Resto de Ecuador'!E51) -> 5961 | F51: =IF('INGRESO DE DATOS'!$G$21="Guayas/Santa Elena",'Tablas Guayaquil'!F51,'Tablas Resto de Ecuador'!F51) -> 5393 | G51: =IF('INGRESO DE DATOS'!$G$21="Guayas/Santa Elena",'Tablas Guayaquil'!G51,'Tablas Resto de Ecuador'!G51) -> 3717 | H51: =IF('INGRESO DE DATOS'!$G$21="Guayas/Santa Elena",'Tablas Guayaquil'!H51,'Tablas Resto de Ecuador'!H51) -> 3346 | I51: =IF('INGRESO DE DATOS'!$G$21="Guayas/Santa Elena",'Tablas Guayaquil'!I51,'Tablas Resto de Ecuador'!I51) -> 2429
A52: 64 | C52: =IF('INGRESO DE DATOS'!$G$21="Guayas/Santa Elena",'Tablas Guayaquil'!C52,'Tablas Resto de Ecuador'!C52) -> 7948 | D52: =IF('INGRESO DE DATOS'!$G$21="Guayas/Santa Elena",'Tablas Guayaquil'!D52,'Tablas Resto de Ecuador'!D52) -> 6914 | E52: =IF('INGRESO DE DATOS'!$G$21="Guayas/Santa Elena",'Tablas Guayaquil'!E52,'Tablas Resto de Ecuador'!E52) -> 6302 | F52: =IF('INGRESO DE DATOS'!$G$21="Guayas/Santa Elena",'Tablas Guayaquil'!F52,'Tablas Resto de Ecuador'!F52) -> 5704 | G52: =IF('INGRESO DE DATOS'!$G$21="Guayas/Santa Elena",'Tablas Guayaquil'!G52,'Tablas Resto de Ecuador'!G52) -> 4126 | H52: =IF('INGRESO DE DATOS'!$G$21="Guayas/Santa Elena",'Tablas Guayaquil'!H52,'Tablas Resto de Ecuador'!H52) -> 3611 | I52: =IF('INGRESO DE DATOS'!$G$21="Guayas/Santa Elena",'Tablas Guayaquil'!I52,'Tablas Resto de Ecuador'!I52) -> 2624
A53: 65 | C53: =IF('INGRESO DE DATOS'!$G$21="Guayas/Santa Elena",'Tablas Guayaquil'!C53,'Tablas Resto de Ecuador'!C53) -> 8470 | D53: =IF('INGRESO DE DATOS'!$G$21="Guayas/Santa Elena",'Tablas Guayaquil'!D53,'Tablas Resto de Ecuador'!D53) -> 7363 | E53: =IF('INGRESO DE DATOS'!$G$21="Guayas/Santa Elena",'Tablas Guayaquil'!E53,'Tablas Resto de Ecuador'!E53) -> 6713 | F53: =IF('INGRESO DE DATOS'!$G$21="Guayas/Santa Elena",'Tablas Guayaquil'!F53,'Tablas Resto de Ecuador'!F53) -> 6130 | G53: =IF('INGRESO DE DATOS'!$G$21="Guayas/Santa Elena",'Tablas Guayaquil'!G53,'Tablas Resto de Ecuador'!G53) -> 4417 | H53: =IF('INGRESO DE DATOS'!$G$21="Guayas/Santa Elena",'Tablas Guayaquil'!H53,'Tablas Resto de Ecuador'!H53) -> 3895 | I53: =IF('INGRESO DE DATOS'!$G$21="Guayas/Santa Elena",'Tablas Guayaquil'!I53,'Tablas Resto de Ecuador'!I53) -> 2834
A54: 66 | C54: =IF('INGRESO DE DATOS'!$G$21="Guayas/Santa Elena",'Tablas Guayaquil'!C54,'Tablas Resto de Ecuador'!C54) -> 9077 | D54: =IF('INGRESO DE DATOS'!$G$21="Guayas/Santa Elena",'Tablas Guayaquil'!D54,'Tablas Resto de Ecuador'!D54) -> 7894 | E54: =IF('INGRESO DE DATOS'!$G$21="Guayas/Santa Elena",'Tablas Guayaquil'!E54,'Tablas Resto de Ecuador'!E54) -> 7198 | F54: =IF('INGRESO DE DATOS'!$G$21="Guayas/Santa Elena",'Tablas Guayaquil'!F54,'Tablas Resto de Ecuador'!F54) -> 6619 | G54: =IF('INGRESO DE DATOS'!$G$21="Guayas/Santa Elena",'Tablas Guayaquil'!G54,'Tablas Resto de Ecuador'!G54) -> 4758 | H54: =IF('INGRESO DE DATOS'!$G$21="Guayas/Santa Elena",'Tablas Guayaquil'!H54,'Tablas Resto de Ecuador'!H54) -> 4203 | I54: =IF('INGRESO DE DATOS'!$G$21="Guayas/Santa Elena",'Tablas Guayaquil'!I54,'Tablas Resto de Ecuador'!I54) -> 3061
A55: 67 | C55: =IF('INGRESO DE DATOS'!$G$21="Guayas/Santa Elena",'Tablas Guayaquil'!C55,'Tablas Resto de Ecuador'!C55) -> 9802 | D55: =IF('INGRESO DE DATOS'!$G$21="Guayas/Santa Elena",'Tablas Guayaquil'!D55,'Tablas Resto de Ecuador'!D55) -> 8524 | E55: =IF('INGRESO DE DATOS'!$G$21="Guayas/Santa Elena",'Tablas Guayaquil'!E55,'Tablas Resto de Ecuador'!E55) -> 7774 | F55: =IF('INGRESO DE DATOS'!$G$21="Guayas/Santa Elena",'Tablas Guayaquil'!F55,'Tablas Resto de Ecuador'!F55) -> 7154 | G55: =IF('INGRESO DE DATOS'!$G$21="Guayas/Santa Elena",'Tablas Guayaquil'!G55,'Tablas Resto de Ecuador'!G55) -> 5139 | H55: =IF('INGRESO DE DATOS'!$G$21="Guayas/Santa Elena",'Tablas Guayaquil'!H55,'Tablas Resto de Ecuador'!H55) -> 4533 | I55: =IF('INGRESO DE DATOS'!$G$21="Guayas/Santa Elena",'Tablas Guayaquil'!I55,'Tablas Resto de Ecuador'!I55) -> 3305
A56: 68 | C56: =IF('INGRESO DE DATOS'!$G$21="Guayas/Santa Elena",'Tablas Guayaquil'!C56,'Tablas Resto de Ecuador'!C56) -> 10637 | D56: =IF('INGRESO DE DATOS'!$G$21="Guayas/Santa Elena",'Tablas Guayaquil'!D56,'Tablas Resto de Ecuador'!D56) -> 9247 | E56: =IF('INGRESO DE DATOS'!$G$21="Guayas/Santa Elena",'Tablas Guayaquil'!E56,'Tablas Resto de Ecuador'!E56) -> 8433 | F56: =IF('INGRESO DE DATOS'!$G$21="Guayas/Santa Elena",'Tablas Guayaquil'!F56,'Tablas Resto de Ecuador'!F56) -> 7757 | G56: =IF('INGRESO DE DATOS'!$G$21="Guayas/Santa Elena",'Tablas Guayaquil'!G56,'Tablas Resto de Ecuador'!G56) -> 5573 | H56: =IF('INGRESO DE DATOS'!$G$21="Guayas/Santa Elena",'Tablas Guayaquil'!H56,'Tablas Resto de Ecuador'!H56) -> 4891 | I56: =IF('INGRESO DE DATOS'!$G$21="Guayas/Santa Elena",'Tablas Guayaquil'!I56,'Tablas Resto de Ecuador'!I56) -> 3569
A57: 69 | C57: =IF('INGRESO DE DATOS'!$G$21="Guayas/Santa Elena",'Tablas Guayaquil'!C57,'Tablas Resto de Ecuador'!C57) -> 11606 | D57: =IF('INGRESO DE DATOS'!$G$21="Guayas/Santa Elena",'Tablas Guayaquil'!D57,'Tablas Resto de Ecuador'!D57) -> 10092 | E57: =IF('INGRESO DE DATOS'!$G$21="Guayas/Santa Elena",'Tablas Guayaquil'!E57,'Tablas Resto de Ecuador'!E57) -> 9202 | F57: =IF('INGRESO DE DATOS'!$G$21="Guayas/Santa Elena",'Tablas Guayaquil'!F57,'Tablas Resto de Ecuador'!F57) -> 8471 | G57: =IF('INGRESO DE DATOS'!$G$21="Guayas/Santa Elena",'Tablas Guayaquil'!G57,'Tablas Resto de Ecuador'!G57) -> 5797 | H57: =IF('INGRESO DE DATOS'!$G$21="Guayas/Santa Elena",'Tablas Guayaquil'!H57,'Tablas Resto de Ecuador'!H57) -> 5276 | I57: =IF('INGRESO DE DATOS'!$G$21="Guayas/Santa Elena",'Tablas Guayaquil'!I57,'Tablas Resto de Ecuador'!I57) -> 3851
A58: 70 | C58: =IF('INGRESO DE DATOS'!$G$21="Guayas/Santa Elena",'Tablas Guayaquil'!C58,'Tablas Resto de Ecuador'!C58) -> 12729 | D58: =IF('INGRESO DE DATOS'!$G$21="Guayas/Santa Elena",'Tablas Guayaquil'!D58,'Tablas Resto de Ecuador'!D58) -> 11069 | E58: =IF('INGRESO DE DATOS'!$G$21="Guayas/Santa Elena",'Tablas Guayaquil'!E58,'Tablas Resto de Ecuador'!E58) -> 10005 | F58: =IF('INGRESO DE DATOS'!$G$21="Guayas/Santa Elena",'Tablas Guayaquil'!F58,'Tablas Resto de Ecuador'!F58) -> 9427 | G58: =IF('INGRESO DE DATOS'!$G$21="Guayas/Santa Elena",'Tablas Guayaquil'!G58,'Tablas Resto de Ecuador'!G58) -> 6410 | H58: =IF('INGRESO DE DATOS'!$G$21="Guayas/Santa Elena",'Tablas Guayaquil'!H58,'Tablas Resto de Ecuador'!H58) -> 5690 | I58: =IF('INGRESO DE DATOS'!$G$21="Guayas/Santa Elena",'Tablas Guayaquil'!I58,'Tablas Resto de Ecuador'!I58) -> 4154
A59: 71 | C59: =IF('INGRESO DE DATOS'!$G$21="Guayas/Santa Elena",'Tablas Guayaquil'!C59,'Tablas Resto de Ecuador'!C59) -> 14020 | D59: =IF('INGRESO DE DATOS'!$G$21="Guayas/Santa Elena",'Tablas Guayaquil'!D59,'Tablas Resto de Ecuador'!D59) -> 12192 | E59: =IF('INGRESO DE DATOS'!$G$21="Guayas/Santa Elena",'Tablas Guayaquil'!E59,'Tablas Resto de Ecuador'!E59) -> 11114 | F59: =IF('INGRESO DE DATOS'!$G$21="Guayas/Santa Elena",'Tablas Guayaquil'!F59,'Tablas Resto de Ecuador'!F59) -> 10380 | G59: =IF('INGRESO DE DATOS'!$G$21="Guayas/Santa Elena",'Tablas Guayaquil'!G59,'Tablas Resto de Ecuador'!G59) -> 7061 | H59: =IF('INGRESO DE DATOS'!$G$21="Guayas/Santa Elena",'Tablas Guayaquil'!H59,'Tablas Resto de Ecuador'!H59) -> 6136 | I59: =IF('INGRESO DE DATOS'!$G$21="Guayas/Santa Elena",'Tablas Guayaquil'!I59,'Tablas Resto de Ecuador'!I59) -> 4477
A60: 72 | C60: =IF('INGRESO DE DATOS'!$G$21="Guayas/Santa Elena",'Tablas Guayaquil'!C60,'Tablas Resto de Ecuador'!C60) -> 15508 | D60: =IF('INGRESO DE DATOS'!$G$21="Guayas/Santa Elena",'Tablas Guayaquil'!D60,'Tablas Resto de Ecuador'!D60) -> 13485 | E60: =IF('INGRESO DE DATOS'!$G$21="Guayas/Santa Elena",'Tablas Guayaquil'!E60,'Tablas Resto de Ecuador'!E60) -> 12297 | F60: =IF('INGRESO DE DATOS'!$G$21="Guayas/Santa Elena",'Tablas Guayaquil'!F60,'Tablas Resto de Ecuador'!F60) -> 11488 | G60: =IF('INGRESO DE DATOS'!$G$21="Guayas/Santa Elena",'Tablas Guayaquil'!G60,'Tablas Resto de Ecuador'!G60) -> 7815 | H60: =IF('INGRESO DE DATOS'!$G$21="Guayas/Santa Elena",'Tablas Guayaquil'!H60,'Tablas Resto de Ecuador'!H60) -> 6613 | I60: =IF('INGRESO DE DATOS'!$G$21="Guayas/Santa Elena",'Tablas Guayaquil'!I60,'Tablas Resto de Ecuador'!I60) -> 4823
A61: 73 | C61: =IF('INGRESO DE DATOS'!$G$21="Guayas/Santa Elena",'Tablas Guayaquil'!C61,'Tablas Resto de Ecuador'!C61) -> 17224 | D61: =IF('INGRESO DE DATOS'!$G$21="Guayas/Santa Elena",'Tablas Guayaquil'!D61,'Tablas Resto de Ecuador'!D61) -> 14977 | E61: =IF('INGRESO DE DATOS'!$G$21="Guayas/Santa Elena",'Tablas Guayaquil'!E61,'Tablas Resto de Ecuador'!E61) -> 13655 | F61: =IF('INGRESO DE DATOS'!$G$21="Guayas/Santa Elena",'Tablas Guayaquil'!F61,'Tablas Resto de Ecuador'!F61) -> 12753 | G61: =IF('INGRESO DE DATOS'!$G$21="Guayas/Santa Elena",'Tablas Guayaquil'!G61,'Tablas Resto de Ecuador'!G61) -> 8673 | H61: =IF('INGRESO DE DATOS'!$G$21="Guayas/Santa Elena",'Tablas Guayaquil'!H61,'Tablas Resto de Ecuador'!H61) -> 7125 | I61: =IF('INGRESO DE DATOS'!$G$21="Guayas/Santa Elena",'Tablas Guayaquil'!I61,'Tablas Resto de Ecuador'!I61) -> 5190
A62: 74 | C62: =IF('INGRESO DE DATOS'!$G$21="Guayas/Santa Elena",'Tablas Guayaquil'!C62,'Tablas Resto de Ecuador'!C62) -> 19203 | D62: =IF('INGRESO DE DATOS'!$G$21="Guayas/Santa Elena",'Tablas Guayaquil'!D62,'Tablas Resto de Ecuador'!D62) -> 16696 | E62: =IF('INGRESO DE DATOS'!$G$21="Guayas/Santa Elena",'Tablas Guayaquil'!E62,'Tablas Resto de Ecuador'!E62) -> 15223 | F62: =IF('INGRESO DE DATOS'!$G$21="Guayas/Santa Elena",'Tablas Guayaquil'!F62,'Tablas Resto de Ecuador'!F62) -> 14221 | G62: =IF('INGRESO DE DATOS'!$G$21="Guayas/Santa Elena",'Tablas Guayaquil'!G62,'Tablas Resto de Ecuador'!G62) -> 9673 | H62: =IF('INGRESO DE DATOS'!$G$21="Guayas/Santa Elena",'Tablas Guayaquil'!H62,'Tablas Resto de Ecuador'!H62) -> 7671 | I62: =IF('INGRESO DE DATOS'!$G$21="Guayas/Santa Elena",'Tablas Guayaquil'!I62,'Tablas Resto de Ecuador'!I62) -> 5578
A63: 75 | C63: =IF('INGRESO DE DATOS'!$G$21="Guayas/Santa Elena",'Tablas Guayaquil'!C63,'Tablas Resto de Ecuador'!C63) -> 21470 | D63: =IF('INGRESO DE DATOS'!$G$21="Guayas/Santa Elena",'Tablas Guayaquil'!D63,'Tablas Resto de Ecuador'!D63) -> 18671 | E63: =IF('INGRESO DE DATOS'!$G$21="Guayas/Santa Elena",'Tablas Guayaquil'!E63,'Tablas Resto de Ecuador'!E63) -> 16955 | F63: =IF('INGRESO DE DATOS'!$G$21="Guayas/Santa Elena",'Tablas Guayaquil'!F63,'Tablas Resto de Ecuador'!F63) -> 16001 | G63: =IF('INGRESO DE DATOS'!$G$21="Guayas/Santa Elena",'Tablas Guayaquil'!G63,'Tablas Resto de Ecuador'!G63) -> 10853 | H63: =IF('INGRESO DE DATOS'!$G$21="Guayas/Santa Elena",'Tablas Guayaquil'!H63,'Tablas Resto de Ecuador'!H63) -> 8248 | I63: =IF('INGRESO DE DATOS'!$G$21="Guayas/Santa Elena",'Tablas Guayaquil'!I63,'Tablas Resto de Ecuador'!I63) -> 5985
A64: 76 | C64: =IF('INGRESO DE DATOS'!$G$21="Guayas/Santa Elena",'Tablas Guayaquil'!C64,'Tablas Resto de Ecuador'!C64) -> 24080 | D64: =IF('INGRESO DE DATOS'!$G$21="Guayas/Santa Elena",'Tablas Guayaquil'!D64,'Tablas Resto de Ecuador'!D64) -> 20937 | E64: =IF('INGRESO DE DATOS'!$G$21="Guayas/Santa Elena",'Tablas Guayaquil'!E64,'Tablas Resto de Ecuador'!E64) -> 19076 | F64: =IF('INGRESO DE DATOS'!$G$21="Guayas/Santa Elena",'Tablas Guayaquil'!F64,'Tablas Resto de Ecuador'!F64) -> 17941 | G64: =IF('INGRESO DE DATOS'!$G$21="Guayas/Santa Elena",'Tablas Guayaquil'!G64,'Tablas Resto de Ecuador'!G64) -> 12169 | H64: =IF('INGRESO DE DATOS'!$G$21="Guayas/Santa Elena",'Tablas Guayaquil'!H64,'Tablas Resto de Ecuador'!H64) -> 8859 | I64: =IF('INGRESO DE DATOS'!$G$21="Guayas/Santa Elena",'Tablas Guayaquil'!I64,'Tablas Resto de Ecuador'!I64) -> 6409
A65: 77 | C65: =IF('INGRESO DE DATOS'!$G$21="Guayas/Santa Elena",'Tablas Guayaquil'!C65,'Tablas Resto de Ecuador'!C65) -> 27040 | D65: =IF('INGRESO DE DATOS'!$G$21="Guayas/Santa Elena",'Tablas Guayaquil'!D65,'Tablas Resto de Ecuador'!D65) -> 23516 | E65: =IF('INGRESO DE DATOS'!$G$21="Guayas/Santa Elena",'Tablas Guayaquil'!E65,'Tablas Resto de Ecuador'!E65) -> 21440 | F65: =IF('INGRESO DE DATOS'!$G$21="Guayas/Santa Elena",'Tablas Guayaquil'!F65,'Tablas Resto de Ecuador'!F65) -> 20003 | G65: =IF('INGRESO DE DATOS'!$G$21="Guayas/Santa Elena",'Tablas Guayaquil'!G65,'Tablas Resto de Ecuador'!G65) -> 13670 | H65: =IF('INGRESO DE DATOS'!$G$21="Guayas/Santa Elena",'Tablas Guayaquil'!H65,'Tablas Resto de Ecuador'!H65) -> 9497 | I65: =IF('INGRESO DE DATOS'!$G$21="Guayas/Santa Elena",'Tablas Guayaquil'!I65,'Tablas Resto de Ecuador'!I65) -> 6846
A66: 78 | C66: =IF('INGRESO DE DATOS'!$G$21="Guayas/Santa Elena",'Tablas Guayaquil'!C66,'Tablas Resto de Ecuador'!C66) -> 30385 | D66: =IF('INGRESO DE DATOS'!$G$21="Guayas/Santa Elena",'Tablas Guayaquil'!D66,'Tablas Resto de Ecuador'!D66) -> 26421 | E66: =IF('INGRESO DE DATOS'!$G$21="Guayas/Santa Elena",'Tablas Guayaquil'!E66,'Tablas Resto de Ecuador'!E66) -> 24089 | F66: =IF('INGRESO DE DATOS'!$G$21="Guayas/Santa Elena",'Tablas Guayaquil'!F66,'Tablas Resto de Ecuador'!F66) -> 21457 | G66: =IF('INGRESO DE DATOS'!$G$21="Guayas/Santa Elena",'Tablas Guayaquil'!G66,'Tablas Resto de Ecuador'!G66) -> 14720 | H66: =IF('INGRESO DE DATOS'!$G$21="Guayas/Santa Elena",'Tablas Guayaquil'!H66,'Tablas Resto de Ecuador'!H66) -> 10160 | I66: =IF('INGRESO DE DATOS'!$G$21="Guayas/Santa Elena",'Tablas Guayaquil'!I66,'Tablas Resto de Ecuador'!I66) -> 7290
A67: 79 | C67: =IF('INGRESO DE DATOS'!$G$21="Guayas/Santa Elena",'Tablas Guayaquil'!C67,'Tablas Resto de Ecuador'!C67) -> 34139 | D67: =IF('INGRESO DE DATOS'!$G$21="Guayas/Santa Elena",'Tablas Guayaquil'!D67,'Tablas Resto de Ecuador'!D67) -> 29683 | E67: =IF('INGRESO DE DATOS'!$G$21="Guayas/Santa Elena",'Tablas Guayaquil'!E67,'Tablas Resto de Ecuador'!E67) -> 27067 | F67: =IF('INGRESO DE DATOS'!$G$21="Guayas/Santa Elena",'Tablas Guayaquil'!F67,'Tablas Resto de Ecuador'!F67) -> 22983 | G67: =IF('INGRESO DE DATOS'!$G$21="Guayas/Santa Elena",'Tablas Guayaquil'!G67,'Tablas Resto de Ecuador'!G67) -> 15756 | H67: =IF('INGRESO DE DATOS'!$G$21="Guayas/Santa Elena",'Tablas Guayaquil'!H67,'Tablas Resto de Ecuador'!H67) -> 10842 | I67: =IF('INGRESO DE DATOS'!$G$21="Guayas/Santa Elena",'Tablas Guayaquil'!I67,'Tablas Resto de Ecuador'!I67) -> 7731
A68: 80 | B68: o más | C68: =IF('INGRESO DE DATOS'!$G$21="Guayas/Santa Elena",'Tablas Guayaquil'!C68,'Tablas Resto de Ecuador'!C68) -> 38368 | D68: =IF('INGRESO DE DATOS'!$G$21="Guayas/Santa Elena",'Tablas Guayaquil'!D68,'Tablas Resto de Ecuador'!D68) -> 33594 | E68: =IF('INGRESO DE DATOS'!$G$21="Guayas/Santa Elena",'Tablas Guayaquil'!E68,'Tablas Resto de Ecuador'!E68) -> 29903 | F68: =IF('INGRESO DE DATOS'!$G$21="Guayas/Santa Elena",'Tablas Guayaquil'!F68,'Tablas Resto de Ecuador'!F68) -> 24576 | G68: =IF('INGRESO DE DATOS'!$G$21="Guayas/Santa Elena",'Tablas Guayaquil'!G68,'Tablas Resto de Ecuador'!G68) -> 16824 | H68: =IF('INGRESO DE DATOS'!$G$21="Guayas/Santa Elena",'Tablas Guayaquil'!H68,'Tablas Resto de Ecuador'!H68) -> 11531 | I68: =IF('INGRESO DE DATOS'!$G$21="Guayas/Santa Elena",'Tablas Guayaquil'!I68,'Tablas Resto de Ecuador'!I68) -> 8160
A69: 1 | B69: Hijo | C69: =IF('INGRESO DE DATOS'!$G$21="Guayas/Santa Elena",'Tablas Guayaquil'!C69,'Tablas Resto de Ecuador'!C69) -> 1472 | D69: =IF('INGRESO DE DATOS'!$G$21="Guayas/Santa Elena",'Tablas Guayaquil'!D69,'Tablas Resto de Ecuador'!D69) -> 1280 | E69: =IF('INGRESO DE DATOS'!$G$21="Guayas/Santa Elena",'Tablas Guayaquil'!E69,'Tablas Resto de Ecuador'!E69) -> 927 | F69: =IF('INGRESO DE DATOS'!$G$21="Guayas/Santa Elena",'Tablas Guayaquil'!F69,'Tablas Resto de Ecuador'!F69) -> 635 | G69: =IF('INGRESO DE DATOS'!$G$21="Guayas/Santa Elena",'Tablas Guayaquil'!G69,'Tablas Resto de Ecuador'!G69) -> 347 | H69: =IF('INGRESO DE DATOS'!$G$21="Guayas/Santa Elena",'Tablas Guayaquil'!H69,'Tablas Resto de Ecuador'!H69) -> 198 | I69: =IF('INGRESO DE DATOS'!$G$21="Guayas/Santa Elena",'Tablas Guayaquil'!I69,'Tablas Resto de Ecuador'!I69) -> 114
A70: 2 | B70: Hijos | C70: =IF('INGRESO DE DATOS'!$G$21="Guayas/Santa Elena",'Tablas Guayaquil'!C70,'Tablas Resto de Ecuador'!C70) -> 1741 | D70: =IF('INGRESO DE DATOS'!$G$21="Guayas/Santa Elena",'Tablas Guayaquil'!D70,'Tablas Resto de Ecuador'!D70) -> 1512 | E70: =IF('INGRESO DE DATOS'!$G$21="Guayas/Santa Elena",'Tablas Guayaquil'!E70,'Tablas Resto de Ecuador'!E70) -> 1096 | F70: =IF('INGRESO DE DATOS'!$G$21="Guayas/Santa Elena",'Tablas Guayaquil'!F70,'Tablas Resto de Ecuador'!F70) -> 752 | G70: =IF('INGRESO DE DATOS'!$G$21="Guayas/Santa Elena",'Tablas Guayaquil'!G70,'Tablas Resto de Ecuador'!G70) -> 409 | H70: =IF('INGRESO DE DATOS'!$G$21="Guayas/Santa Elena",'Tablas Guayaquil'!H70,'Tablas Resto de Ecuador'!H70) -> 235 | I70: =IF('INGRESO DE DATOS'!$G$21="Guayas/Santa Elena",'Tablas Guayaquil'!I70,'Tablas Resto de Ecuador'!I70) -> 134
A71: 3 | B71: Hijos o más | C71: =IF('INGRESO DE DATOS'!$G$21="Guayas/Santa Elena",'Tablas Guayaquil'!C71,'Tablas Resto de Ecuador'!C71) -> 2410 | D71: =IF('INGRESO DE DATOS'!$G$21="Guayas/Santa Elena",'Tablas Guayaquil'!D71,'Tablas Resto de Ecuador'!D71) -> 2094 | E71: =IF('INGRESO DE DATOS'!$G$21="Guayas/Santa Elena",'Tablas Guayaquil'!E71,'Tablas Resto de Ecuador'!E71) -> 1518 | F71: =IF('INGRESO DE DATOS'!$G$21="Guayas/Santa Elena",'Tablas Guayaquil'!F71,'Tablas Resto de Ecuador'!F71) -> 1041 | G71: =IF('INGRESO DE DATOS'!$G$21="Guayas/Santa Elena",'Tablas Guayaquil'!G71,'Tablas Resto de Ecuador'!G71) -> 567 | H71: =IF('INGRESO DE DATOS'!$G$21="Guayas/Santa Elena",'Tablas Guayaquil'!H71,'Tablas Resto de Ecuador'!H71) -> 324 | I71: =IF('INGRESO DE DATOS'!$G$21="Guayas/Santa Elena",'Tablas Guayaquil'!I71,'Tablas Resto de Ecuador'!I71) -> 187
A73: TARIFAS MENSUALES
A74: EDAD
C75: F500-1 | D75: F500-2 | E75: F500-3 | F75: F500-4 | G75: F500-5
A76: 18 | C76: =IF('INGRESO DE DATOS'!$G$21="Guayas/Santa Elena",'Tablas Guayaquil'!C76,'Tablas Resto de Ecuador'!C76) -> 197.16 | D76: =IF('INGRESO DE DATOS'!$G$21="Guayas/Santa Elena",'Tablas Guayaquil'!D76,'Tablas Resto de Ecuador'!D76) -> 168.6283333 | E76: =IF('INGRESO DE DATOS'!$G$21="Guayas/Santa Elena",'Tablas Guayaquil'!E76,'Tablas Resto de Ecuador'!E76) -> 123.49 | F76: =IF('INGRESO DE DATOS'!$G$21="Guayas/Santa Elena",'Tablas Guayaquil'!F76,'Tablas Resto de Ecuador'!F76) -> 85.15333333 | G76: =IF('INGRESO DE DATOS'!$G$21="Guayas/Santa Elena",'Tablas Guayaquil'!G76,'Tablas Resto de Ecuador'!G76) -> 46.19833333 | H76: =IF('INGRESO DE DATOS'!$G$21="Guayas/Santa Elena",'Tablas Guayaquil'!H76,'Tablas Resto de Ecuador'!H76) -> 26.58833333 | I76: =IF('INGRESO DE DATOS'!$G$21="Guayas/Santa Elena",'Tablas Guayaquil'!I76,'Tablas Resto de Ecuador'!I76) -> 15.28166667
A77: 19 | C77: =IF('INGRESO DE DATOS'!$G$21="Guayas/Santa Elena",'Tablas Guayaquil'!C77,'Tablas Resto de Ecuador'!C77) -> 200.34 | D77: =IF('INGRESO DE DATOS'!$G$21="Guayas/Santa Elena",'Tablas Guayaquil'!D77,'Tablas Resto de Ecuador'!D77) -> 168.6283333 | E77: =IF('INGRESO DE DATOS'!$G$21="Guayas/Santa Elena",'Tablas Guayaquil'!E77,'Tablas Resto de Ecuador'!E77) -> 123.49 | F77: =IF('INGRESO DE DATOS'!$G$21="Guayas/Santa Elena",'Tablas Guayaquil'!F77,'Tablas Resto de Ecuador'!F77) -> 85.24166667 | G77: =IF('INGRESO DE DATOS'!$G$21="Guayas/Santa Elena",'Tablas Guayaquil'!G77,'Tablas Resto de Ecuador'!G77) -> 46.72833333 | H77: =IF('INGRESO DE DATOS'!$G$21="Guayas/Santa Elena",'Tablas Guayaquil'!H77,'Tablas Resto de Ecuador'!H77) -> 26.94166667 | I77: =IF('INGRESO DE DATOS'!$G$21="Guayas/Santa Elena",'Tablas Guayaquil'!I77,'Tablas Resto de Ecuador'!I77) -> 15.635
A78: 20 | C78: =IF('INGRESO DE DATOS'!$G$21="Guayas/Santa Elena",'Tablas Guayaquil'!C78,'Tablas Resto de Ecuador'!C78) -> 203.8733333 | D78: =IF('INGRESO DE DATOS'!$G$21="Guayas/Santa Elena",'Tablas Guayaquil'!D78,'Tablas Resto de Ecuador'!D78) -> 168.6283333 | E78: =IF('INGRESO DE DATOS'!$G$21="Guayas/Santa Elena",'Tablas Guayaquil'!E78,'Tablas Resto de Ecuador'!E78) -> 123.49 | F78: =IF('INGRESO DE DATOS'!$G$21="Guayas/Santa Elena",'Tablas Guayaquil'!F78,'Tablas Resto de Ecuador'!F78) -> 85.41833333 | G78: =IF('INGRESO DE DATOS'!$G$21="Guayas/Santa Elena",'Tablas Guayaquil'!G78,'Tablas Resto de Ecuador'!G78) -> 47.17 | H78: =IF('INGRESO DE DATOS'!$G$21="Guayas/Santa Elena",'Tablas Guayaquil'!H78,'Tablas Resto de Ecuador'!H78) -> 27.295 | I78: =IF('INGRESO DE DATOS'!$G$21="Guayas/Santa Elena",'Tablas Guayaquil'!I78,'Tablas Resto de Ecuador'!I78) -> 15.98833333
A79: 21 | C79: =IF('INGRESO DE DATOS'!$G$21="Guayas/Santa Elena",'Tablas Guayaquil'!C79,'Tablas Resto de Ecuador'!C79) -> 207.6716667 | D79: =IF('INGRESO DE DATOS'!$G$21="Guayas/Santa Elena",'Tablas Guayaquil'!D79,'Tablas Resto de Ecuador'!D79) -> 168.6283333 | E79: =IF('INGRESO DE DATOS'!$G$21="Guayas/Santa Elena",'Tablas Guayaquil'!E79,'Tablas Resto de Ecuador'!E79) -> 123.6666667 | F79: =IF('INGRESO DE DATOS'!$G$21="Guayas/Santa Elena",'Tablas Guayaquil'!F79,'Tablas Resto de Ecuador'!F79) -> 86.03666667 | G79: =IF('INGRESO DE DATOS'!$G$21="Guayas/Santa Elena",'Tablas Guayaquil'!G79,'Tablas Resto de Ecuador'!G79) -> 47.78833333 | H79: =IF('INGRESO DE DATOS'!$G$21="Guayas/Santa Elena",'Tablas Guayaquil'!H79,'Tablas Resto de Ecuador'!H79) -> 27.91333333 | I79: =IF('INGRESO DE DATOS'!$G$21="Guayas/Santa Elena",'Tablas Guayaquil'!I79,'Tablas Resto de Ecuador'!I79) -> 16.43
A80: 22 | C80: =IF('INGRESO DE DATOS'!$G$21="Guayas/Santa Elena",'Tablas Guayaquil'!C80,'Tablas Resto de Ecuador'!C80) -> 211.0283333 | D80: =IF('INGRESO DE DATOS'!$G$21="Guayas/Santa Elena",'Tablas Guayaquil'!D80,'Tablas Resto de Ecuador'!D80) -> 168.6283333 | E80: =IF('INGRESO DE DATOS'!$G$21="Guayas/Santa Elena",'Tablas Guayaquil'!E80,'Tablas Resto de Ecuador'!E80) -> 124.02 | F80: =IF('INGRESO DE DATOS'!$G$21="Guayas/Santa Elena",'Tablas Guayaquil'!F80,'Tablas Resto de Ecuador'!F80) -> 86.74333333 | G80: =IF('INGRESO DE DATOS'!$G$21="Guayas/Santa Elena",'Tablas Guayaquil'!G80,'Tablas Resto de Ecuador'!G80) -> 48.495 | H80: =IF('INGRESO DE DATOS'!$G$21="Guayas/Santa Elena",'Tablas Guayaquil'!H80,'Tablas Resto de Ecuador'!H80) -> 28.44333333 | I80: =IF('INGRESO DE DATOS'!$G$21="Guayas/Santa Elena",'Tablas Guayaquil'!I80,'Tablas Resto de Ecuador'!I80) -> 16.87166667
A81: 23 | C81: =IF('INGRESO DE DATOS'!$G$21="Guayas/Santa Elena",'Tablas Guayaquil'!C81,'Tablas Resto de Ecuador'!C81) -> 214.5616667 | D81: =IF('INGRESO DE DATOS'!$G$21="Guayas/Santa Elena",'Tablas Guayaquil'!D81,'Tablas Resto de Ecuador'!D81) -> 168.9816667 | E81: =IF('INGRESO DE DATOS'!$G$21="Guayas/Santa Elena",'Tablas Guayaquil'!E81,'Tablas Resto de Ecuador'!E81) -> 124.7266667 | F81: =IF('INGRESO DE DATOS'!$G$21="Guayas/Santa Elena",'Tablas Guayaquil'!F81,'Tablas Resto de Ecuador'!F81) -> 87.62666667 | G81: =IF('INGRESO DE DATOS'!$G$21="Guayas/Santa Elena",'Tablas Guayaquil'!G81,'Tablas Resto de Ecuador'!G81) -> 49.29 | H81: =IF('INGRESO DE DATOS'!$G$21="Guayas/Santa Elena",'Tablas Guayaquil'!H81,'Tablas Resto de Ecuador'!H81) -> 29.15 | I81: =IF('INGRESO DE DATOS'!$G$21="Guayas/Santa Elena",'Tablas Guayaquil'!I81,'Tablas Resto de Ecuador'!I81) -> 17.31333333
A82: 24 | C82: =IF('INGRESO DE DATOS'!$G$21="Guayas/Santa Elena",'Tablas Guayaquil'!C82,'Tablas Resto de Ecuador'!C82) -> 215.18 | D82: =IF('INGRESO DE DATOS'!$G$21="Guayas/Santa Elena",'Tablas Guayaquil'!D82,'Tablas Resto de Ecuador'!D82) -> 169.7766667 | E82: =IF('INGRESO DE DATOS'!$G$21="Guayas/Santa Elena",'Tablas Guayaquil'!E82,'Tablas Resto de Ecuador'!E82) -> 125.875 | F82: =IF('INGRESO DE DATOS'!$G$21="Guayas/Santa Elena",'Tablas Guayaquil'!F82,'Tablas Resto de Ecuador'!F82) -> 88.68666667 | G82: =IF('INGRESO DE DATOS'!$G$21="Guayas/Santa Elena",'Tablas Guayaquil'!G82,'Tablas Resto de Ecuador'!G82) -> 50.26166667 | H82: =IF('INGRESO DE DATOS'!$G$21="Guayas/Santa Elena",'Tablas Guayaquil'!H82,'Tablas Resto de Ecuador'!H82) -> 29.76833333 | I82: =IF('INGRESO DE DATOS'!$G$21="Guayas/Santa Elena",'Tablas Guayaquil'!I82,'Tablas Resto de Ecuador'!I82) -> 17.84333333
A83: 25 | C83: =IF('INGRESO DE DATOS'!$G$21="Guayas/Santa Elena",'Tablas Guayaquil'!C83,'Tablas Resto de Ecuador'!C83) -> 216.1516667 | D83: =IF('INGRESO DE DATOS'!$G$21="Guayas/Santa Elena",'Tablas Guayaquil'!D83,'Tablas Resto de Ecuador'!D83) -> 171.0133333 | E83: =IF('INGRESO DE DATOS'!$G$21="Guayas/Santa Elena",'Tablas Guayaquil'!E83,'Tablas Resto de Ecuador'!E83) -> 127.2 | F83: =IF('INGRESO DE DATOS'!$G$21="Guayas/Santa Elena",'Tablas Guayaquil'!F83,'Tablas Resto de Ecuador'!F83) -> 90.01166667 | G83: =IF('INGRESO DE DATOS'!$G$21="Guayas/Santa Elena",'Tablas Guayaquil'!G83,'Tablas Resto de Ecuador'!G83) -> 51.32166667 | H83: =IF('INGRESO DE DATOS'!$G$21="Guayas/Santa Elena",'Tablas Guayaquil'!H83,'Tablas Resto de Ecuador'!H83) -> 30.65166667 | I83: =IF('INGRESO DE DATOS'!$G$21="Guayas/Santa Elena",'Tablas Guayaquil'!I83,'Tablas Resto de Ecuador'!I83) -> 18.55
A84: 26 | C84: =IF('INGRESO DE DATOS'!$G$21="Guayas/Santa Elena",'Tablas Guayaquil'!C84,'Tablas Resto de Ecuador'!C84) -> 217.7416667 | D84: =IF('INGRESO DE DATOS'!$G$21="Guayas/Santa Elena",'Tablas Guayaquil'!D84,'Tablas Resto de Ecuador'!D84) -> 172.6916667 | E84: =IF('INGRESO DE DATOS'!$G$21="Guayas/Santa Elena",'Tablas Guayaquil'!E84,'Tablas Resto de Ecuador'!E84) -> 128.9666667 | F84: =IF('INGRESO DE DATOS'!$G$21="Guayas/Santa Elena",'Tablas Guayaquil'!F84,'Tablas Resto de Ecuador'!F84) -> 91.60166667 | G84: =IF('INGRESO DE DATOS'!$G$21="Guayas/Santa Elena",'Tablas Guayaquil'!G84,'Tablas Resto de Ecuador'!G84) -> 52.47 | H84: =IF('INGRESO DE DATOS'!$G$21="Guayas/Santa Elena",'Tablas Guayaquil'!H84,'Tablas Resto de Ecuador'!H84) -> 31.535 | I84: =IF('INGRESO DE DATOS'!$G$21="Guayas/Santa Elena",'Tablas Guayaquil'!I84,'Tablas Resto de Ecuador'!I84) -> 19.08
A85: 27 | C85: =IF('INGRESO DE DATOS'!$G$21="Guayas/Santa Elena",'Tablas Guayaquil'!C85,'Tablas Resto de Ecuador'!C85) -> 219.8616667 | D85: =IF('INGRESO DE DATOS'!$G$21="Guayas/Santa Elena",'Tablas Guayaquil'!D85,'Tablas Resto de Ecuador'!D85) -> 174.9 | E85: =IF('INGRESO DE DATOS'!$G$21="Guayas/Santa Elena",'Tablas Guayaquil'!E85,'Tablas Resto de Ecuador'!E85) -> 130.9983333 | F85: =IF('INGRESO DE DATOS'!$G$21="Guayas/Santa Elena",'Tablas Guayaquil'!F85,'Tablas Resto de Ecuador'!F85) -> 93.45666667 | G85: =IF('INGRESO DE DATOS'!$G$21="Guayas/Santa Elena",'Tablas Guayaquil'!G85,'Tablas Resto de Ecuador'!G85) -> 53.88333333 | H85: =IF('INGRESO DE DATOS'!$G$21="Guayas/Santa Elena",'Tablas Guayaquil'!H85,'Tablas Resto de Ecuador'!H85) -> 32.595 | I85: =IF('INGRESO DE DATOS'!$G$21="Guayas/Santa Elena",'Tablas Guayaquil'!I85,'Tablas Resto de Ecuador'!I85) -> 19.78666667
A86: 28 | C86: =IF('INGRESO DE DATOS'!$G$21="Guayas/Santa Elena",'Tablas Guayaquil'!C86,'Tablas Resto de Ecuador'!C86) -> 222.5116667 | D86: =IF('INGRESO DE DATOS'!$G$21="Guayas/Santa Elena",'Tablas Guayaquil'!D86,'Tablas Resto de Ecuador'!D86) -> 177.3733333 | E86: =IF('INGRESO DE DATOS'!$G$21="Guayas/Santa Elena",'Tablas Guayaquil'!E86,'Tablas Resto de Ecuador'!E86) -> 133.3833333 | F86: =IF('INGRESO DE DATOS'!$G$21="Guayas/Santa Elena",'Tablas Guayaquil'!F86,'Tablas Resto de Ecuador'!F86) -> 95.48833333 | G86: =IF('INGRESO DE DATOS'!$G$21="Guayas/Santa Elena",'Tablas Guayaquil'!G86,'Tablas Resto de Ecuador'!G86) -> 55.47333333 | H86: =IF('INGRESO DE DATOS'!$G$21="Guayas/Santa Elena",'Tablas Guayaquil'!H86,'Tablas Resto de Ecuador'!H86) -> 33.655 | I86: =IF('INGRESO DE DATOS'!$G$21="Guayas/Santa Elena",'Tablas Guayaquil'!I86,'Tablas Resto de Ecuador'!I86) -> 20.67
A87: 29 | C87: =IF('INGRESO DE DATOS'!$G$21="Guayas/Santa Elena",'Tablas Guayaquil'!C87,'Tablas Resto de Ecuador'!C87) -> 225.8683333 | D87: =IF('INGRESO DE DATOS'!$G$21="Guayas/Santa Elena",'Tablas Guayaquil'!D87,'Tablas Resto de Ecuador'!D87) -> 180.465 | E87: =IF('INGRESO DE DATOS'!$G$21="Guayas/Santa Elena",'Tablas Guayaquil'!E87,'Tablas Resto de Ecuador'!E87) -> 136.0333333 | F87: =IF('INGRESO DE DATOS'!$G$21="Guayas/Santa Elena",'Tablas Guayaquil'!F87,'Tablas Resto de Ecuador'!F87) -> 97.87333333 | G87: =IF('INGRESO DE DATOS'!$G$21="Guayas/Santa Elena",'Tablas Guayaquil'!G87,'Tablas Resto de Ecuador'!G87) -> 57.15166667 | H87: =IF('INGRESO DE DATOS'!$G$21="Guayas/Santa Elena",'Tablas Guayaquil'!H87,'Tablas Resto de Ecuador'!H87) -> 34.89166667 | I87: =IF('INGRESO DE DATOS'!$G$21="Guayas/Santa Elena",'Tablas Guayaquil'!I87,'Tablas Resto de Ecuador'!I87) -> 21.465
A88: 30 | C88: =IF('INGRESO DE DATOS'!$G$21="Guayas/Santa Elena",'Tablas Guayaquil'!C88,'Tablas Resto de Ecuador'!C88) -> 229.6666667 | D88: =IF('INGRESO DE DATOS'!$G$21="Guayas/Santa Elena",'Tablas Guayaquil'!D88,'Tablas Resto de Ecuador'!D88) -> 184.0866667 | E88: =IF('INGRESO DE DATOS'!$G$21="Guayas/Santa Elena",'Tablas Guayaquil'!E88,'Tablas Resto de Ecuador'!E88) -> 139.3016667 | F88: =IF('INGRESO DE DATOS'!$G$21="Guayas/Santa Elena",'Tablas Guayaquil'!F88,'Tablas Resto de Ecuador'!F88) -> 100.435 | G88: =IF('INGRESO DE DATOS'!$G$21="Guayas/Santa Elena",'Tablas Guayaquil'!G88,'Tablas Resto de Ecuador'!G88) -> 59.00666667 | H88: =IF('INGRESO DE DATOS'!$G$21="Guayas/Santa Elena",'Tablas Guayaquil'!H88,'Tablas Resto de Ecuador'!H88) -> 36.12833333 | I88: =IF('INGRESO DE DATOS'!$G$21="Guayas/Santa Elena",'Tablas Guayaquil'!I88,'Tablas Resto de Ecuador'!I88) -> 22.43666667
A89: 31 | C89: =IF('INGRESO DE DATOS'!$G$21="Guayas/Santa Elena",'Tablas Guayaquil'!C89,'Tablas Resto de Ecuador'!C89) -> 234.1716667 | D89: =IF('INGRESO DE DATOS'!$G$21="Guayas/Santa Elena",'Tablas Guayaquil'!D89,'Tablas Resto de Ecuador'!D89) -> 188.2383333 | E89: =IF('INGRESO DE DATOS'!$G$21="Guayas/Santa Elena",'Tablas Guayaquil'!E89,'Tablas Resto de Ecuador'!E89) -> 142.7466667 | F89: =IF('INGRESO DE DATOS'!$G$21="Guayas/Santa Elena",'Tablas Guayaquil'!F89,'Tablas Resto de Ecuador'!F89) -> 103.35 | G89: =IF('INGRESO DE DATOS'!$G$21="Guayas/Santa Elena",'Tablas Guayaquil'!G89,'Tablas Resto de Ecuador'!G89) -> 61.03833333 | H89: =IF('INGRESO DE DATOS'!$G$21="Guayas/Santa Elena",'Tablas Guayaquil'!H89,'Tablas Resto de Ecuador'!H89) -> 37.54166667 | I89: =IF('INGRESO DE DATOS'!$G$21="Guayas/Santa Elena",'Tablas Guayaquil'!I89,'Tablas Resto de Ecuador'!I89) -> 23.49666667
A90: 32 | C90: =IF('INGRESO DE DATOS'!$G$21="Guayas/Santa Elena",'Tablas Guayaquil'!C90,'Tablas Resto de Ecuador'!C90) -> 239.3833333 | D90: =IF('INGRESO DE DATOS'!$G$21="Guayas/Santa Elena",'Tablas Guayaquil'!D90,'Tablas Resto de Ecuador'!D90) -> 192.8316667 | E90: =IF('INGRESO DE DATOS'!$G$21="Guayas/Santa Elena",'Tablas Guayaquil'!E90,'Tablas Resto de Ecuador'!E90) -> 146.6333333 | F90: =IF('INGRESO DE DATOS'!$G$21="Guayas/Santa Elena",'Tablas Guayaquil'!F90,'Tablas Resto de Ecuador'!F90) -> 106.53 | G90: =IF('INGRESO DE DATOS'!$G$21="Guayas/Santa Elena",'Tablas Guayaquil'!G90,'Tablas Resto de Ecuador'!G90) -> 63.24666667 | H90: =IF('INGRESO DE DATOS'!$G$21="Guayas/Santa Elena",'Tablas Guayaquil'!H90,'Tablas Resto de Ecuador'!H90) -> 39.13166667 | I90: =IF('INGRESO DE DATOS'!$G$21="Guayas/Santa Elena",'Tablas Guayaquil'!I90,'Tablas Resto de Ecuador'!I90) -> 24.645
A91: 33 | C91: =IF('INGRESO DE DATOS'!$G$21="Guayas/Santa Elena",'Tablas Guayaquil'!C91,'Tablas Resto de Ecuador'!C91) -> 245.3016667 | D91: =IF('INGRESO DE DATOS'!$G$21="Guayas/Santa Elena",'Tablas Guayaquil'!D91,'Tablas Resto de Ecuador'!D91) -> 198.0433333 | E91: =IF('INGRESO DE DATOS'!$G$21="Guayas/Santa Elena",'Tablas Guayaquil'!E91,'Tablas Resto de Ecuador'!E91) -> 151.05 | F91: =IF('INGRESO DE DATOS'!$G$21="Guayas/Santa Elena",'Tablas Guayaquil'!F91,'Tablas Resto de Ecuador'!F91) -> 110.1516667 | G91: =IF('INGRESO DE DATOS'!$G$21="Guayas/Santa Elena",'Tablas Guayaquil'!G91,'Tablas Resto de Ecuador'!G91) -> 65.63166667 | H91: =IF('INGRESO DE DATOS'!$G$21="Guayas/Santa Elena",'Tablas Guayaquil'!H91,'Tablas Resto de Ecuador'!H91) -> 40.89833333 | I91: =IF('INGRESO DE DATOS'!$G$21="Guayas/Santa Elena",'Tablas Guayaquil'!I91,'Tablas Resto de Ecuador'!I91) -> 25.79333333
A92: 34 | C92: =IF('INGRESO DE DATOS'!$G$21="Guayas/Santa Elena",'Tablas Guayaquil'!C92,'Tablas Resto de Ecuador'!C92) -> 251.75 | D92: =IF('INGRESO DE DATOS'!$G$21="Guayas/Santa Elena",'Tablas Guayaquil'!D92,'Tablas Resto de Ecuador'!D92) -> 203.6966667 | E92: =IF('INGRESO DE DATOS'!$G$21="Guayas/Santa Elena",'Tablas Guayaquil'!E92,'Tablas Resto de Ecuador'!E92) -> 155.9083333 | F92: =IF('INGRESO DE DATOS'!$G$21="Guayas/Santa Elena",'Tablas Guayaquil'!F92,'Tablas Resto de Ecuador'!F92) -> 114.0383333 | G92: =IF('INGRESO DE DATOS'!$G$21="Guayas/Santa Elena",'Tablas Guayaquil'!G92,'Tablas Resto de Ecuador'!G92) -> 68.37 | H92: =IF('INGRESO DE DATOS'!$G$21="Guayas/Santa Elena",'Tablas Guayaquil'!H92,'Tablas Resto de Ecuador'!H92) -> 42.665 | I92: =IF('INGRESO DE DATOS'!$G$21="Guayas/Santa Elena",'Tablas Guayaquil'!I92,'Tablas Resto de Ecuador'!I92) -> 27.20666667
A93: 35 | C93: =IF('INGRESO DE DATOS'!$G$21="Guayas/Santa Elena",'Tablas Guayaquil'!C93,'Tablas Resto de Ecuador'!C93) -> 258.9933333 | D93: =IF('INGRESO DE DATOS'!$G$21="Guayas/Santa Elena",'Tablas Guayaquil'!D93,'Tablas Resto de Ecuador'!D93) -> 210.0566667 | E93: =IF('INGRESO DE DATOS'!$G$21="Guayas/Santa Elena",'Tablas Guayaquil'!E93,'Tablas Resto de Ecuador'!E93) -> 161.2966667 | F93: =IF('INGRESO DE DATOS'!$G$21="Guayas/Santa Elena",'Tablas Guayaquil'!F93,'Tablas Resto de Ecuador'!F93) -> 118.3666667 | G93: =IF('INGRESO DE DATOS'!$G$21="Guayas/Santa Elena",'Tablas Guayaquil'!G93,'Tablas Resto de Ecuador'!G93) -> 71.19666667 | H93: =IF('INGRESO DE DATOS'!$G$21="Guayas/Santa Elena",'Tablas Guayaquil'!H93,'Tablas Resto de Ecuador'!H93) -> 44.785 | I93: =IF('INGRESO DE DATOS'!$G$21="Guayas/Santa Elena",'Tablas Guayaquil'!I93,'Tablas Resto de Ecuador'!I93) -> 28.62
A94: 36 | C94: =IF('INGRESO DE DATOS'!$G$21="Guayas/Santa Elena",'Tablas Guayaquil'!C94,'Tablas Resto de Ecuador'!C94) -> 267.0316667 | D94: =IF('INGRESO DE DATOS'!$G$21="Guayas/Santa Elena",'Tablas Guayaquil'!D94,'Tablas Resto de Ecuador'!D94) -> 217.1233333 | E94: =IF('INGRESO DE DATOS'!$G$21="Guayas/Santa Elena",'Tablas Guayaquil'!E94,'Tablas Resto de Ecuador'!E94) -> 167.215 | F94: =IF('INGRESO DE DATOS'!$G$21="Guayas/Santa Elena",'Tablas Guayaquil'!F94,'Tablas Resto de Ecuador'!F94) -> 122.96 | G94: =IF('INGRESO DE DATOS'!$G$21="Guayas/Santa Elena",'Tablas Guayaquil'!G94,'Tablas Resto de Ecuador'!G94) -> 74.465 | H94: =IF('INGRESO DE DATOS'!$G$21="Guayas/Santa Elena",'Tablas Guayaquil'!H94,'Tablas Resto de Ecuador'!H94) -> 46.99333333 | I94: =IF('INGRESO DE DATOS'!$G$21="Guayas/Santa Elena",'Tablas Guayaquil'!I94,'Tablas Resto de Ecuador'!I94) -> 30.29833333
A95: 37 | C95: =IF('INGRESO DE DATOS'!$G$21="Guayas/Santa Elena",'Tablas Guayaquil'!C95,'Tablas Resto de Ecuador'!C95) -> 275.7766667 | D95: =IF('INGRESO DE DATOS'!$G$21="Guayas/Santa Elena",'Tablas Guayaquil'!D95,'Tablas Resto de Ecuador'!D95) -> 224.8083333 | E95: =IF('INGRESO DE DATOS'!$G$21="Guayas/Santa Elena",'Tablas Guayaquil'!E95,'Tablas Resto de Ecuador'!E95) -> 173.4866667 | F95: =IF('INGRESO DE DATOS'!$G$21="Guayas/Santa Elena",'Tablas Guayaquil'!F95,'Tablas Resto de Ecuador'!F95) -> 128.1716667 | G95: =IF('INGRESO DE DATOS'!$G$21="Guayas/Santa Elena",'Tablas Guayaquil'!G95,'Tablas Resto de Ecuador'!G95) -> 77.99833333 | H95: =IF('INGRESO DE DATOS'!$G$21="Guayas/Santa Elena",'Tablas Guayaquil'!H95,'Tablas Resto de Ecuador'!H95) -> 49.37833333 | I95: =IF('INGRESO DE DATOS'!$G$21="Guayas/Santa Elena",'Tablas Guayaquil'!I95,'Tablas Resto de Ecuador'!I95) -> 31.88833333
A96: 38 | C96: =IF('INGRESO DE DATOS'!$G$21="Guayas/Santa Elena",'Tablas Guayaquil'!C96,'Tablas Resto de Ecuador'!C96) -> 285.405 | D96: =IF('INGRESO DE DATOS'!$G$21="Guayas/Santa Elena",'Tablas Guayaquil'!D96,'Tablas Resto de Ecuador'!D96) -> 233.2 | E96: =IF('INGRESO DE DATOS'!$G$21="Guayas/Santa Elena",'Tablas Guayaquil'!E96,'Tablas Resto de Ecuador'!E96) -> 180.465 | F96: =IF('INGRESO DE DATOS'!$G$21="Guayas/Santa Elena",'Tablas Guayaquil'!F96,'Tablas Resto de Ecuador'!F96) -> 133.6483333 | G96: =IF('INGRESO DE DATOS'!$G$21="Guayas/Santa Elena",'Tablas Guayaquil'!G96,'Tablas Resto de Ecuador'!G96) -> 81.70833333 | H96: =IF('INGRESO DE DATOS'!$G$21="Guayas/Santa Elena",'Tablas Guayaquil'!H96,'Tablas Resto de Ecuador'!H96) -> 51.94 | I96: =IF('INGRESO DE DATOS'!$G$21="Guayas/Santa Elena",'Tablas Guayaquil'!I96,'Tablas Resto de Ecuador'!I96) -> 33.83166667
A97: 39 | C97: =IF('INGRESO DE DATOS'!$G$21="Guayas/Santa Elena",'Tablas Guayaquil'!C97,'Tablas Resto de Ecuador'!C97) -> 295.8283333 | D97: =IF('INGRESO DE DATOS'!$G$21="Guayas/Santa Elena",'Tablas Guayaquil'!D97,'Tablas Resto de Ecuador'!D97) -> 242.2983333 | E97: =IF('INGRESO DE DATOS'!$G$21="Guayas/Santa Elena",'Tablas Guayaquil'!E97,'Tablas Resto de Ecuador'!E97) -> 188.2383333 | F97: =IF('INGRESO DE DATOS'!$G$21="Guayas/Santa Elena",'Tablas Guayaquil'!F97,'Tablas Resto de Ecuador'!F97) -> 139.7433333 | G97: =IF('INGRESO DE DATOS'!$G$21="Guayas/Santa Elena",'Tablas Guayaquil'!G97,'Tablas Resto de Ecuador'!G97) -> 85.86 | H97: =IF('INGRESO DE DATOS'!$G$21="Guayas/Santa Elena",'Tablas Guayaquil'!H97,'Tablas Resto de Ecuador'!H97) -> 54.76666667 | I97: =IF('INGRESO DE DATOS'!$G$21="Guayas/Santa Elena",'Tablas Guayaquil'!I97,'Tablas Resto de Ecuador'!I97) -> 35.775
A98: 40 | C98: =IF('INGRESO DE DATOS'!$G$21="Guayas/Santa Elena",'Tablas Guayaquil'!C98,'Tablas Resto de Ecuador'!C98) -> 304.22 | D98: =IF('INGRESO DE DATOS'!$G$21="Guayas/Santa Elena",'Tablas Guayaquil'!D98,'Tablas Resto de Ecuador'!D98) -> 252.1916667 | E98: =IF('INGRESO DE DATOS'!$G$21="Guayas/Santa Elena",'Tablas Guayaquil'!E98,'Tablas Resto de Ecuador'!E98) -> 196.4533333 | F98: =IF('INGRESO DE DATOS'!$G$21="Guayas/Santa Elena",'Tablas Guayaquil'!F98,'Tablas Resto de Ecuador'!F98) -> 146.3683333 | G98: =IF('INGRESO DE DATOS'!$G$21="Guayas/Santa Elena",'Tablas Guayaquil'!G98,'Tablas Resto de Ecuador'!G98) -> 90.27666667 | H98: =IF('INGRESO DE DATOS'!$G$21="Guayas/Santa Elena",'Tablas Guayaquil'!H98,'Tablas Resto de Ecuador'!H98) -> 57.85833333 | I98: =IF('INGRESO DE DATOS'!$G$21="Guayas/Santa Elena",'Tablas Guayaquil'!I98,'Tablas Resto de Ecuador'!I98) -> 38.07166667
A99: 41 | C99: =IF('INGRESO DE DATOS'!$G$21="Guayas/Santa Elena",'Tablas Guayaquil'!C99,'Tablas Resto de Ecuador'!C99) -> 310.9333333 | D99: =IF('INGRESO DE DATOS'!$G$21="Guayas/Santa Elena",'Tablas Guayaquil'!D99,'Tablas Resto de Ecuador'!D99) -> 262.88 | E99: =IF('INGRESO DE DATOS'!$G$21="Guayas/Santa Elena",'Tablas Guayaquil'!E99,'Tablas Resto de Ecuador'!E99) -> 205.2866667 | F99: =IF('INGRESO DE DATOS'!$G$21="Guayas/Santa Elena",'Tablas Guayaquil'!F99,'Tablas Resto de Ecuador'!F99) -> 153.435 | G99: =IF('INGRESO DE DATOS'!$G$21="Guayas/Santa Elena",'Tablas Guayaquil'!G99,'Tablas Resto de Ecuador'!G99) -> 94.95833333 | H99: =IF('INGRESO DE DATOS'!$G$21="Guayas/Santa Elena",'Tablas Guayaquil'!H99,'Tablas Resto de Ecuador'!H99) -> 61.215 | I99: =IF('INGRESO DE DATOS'!$G$21="Guayas/Santa Elena",'Tablas Guayaquil'!I99,'Tablas Resto de Ecuador'!I99) -> 40.545
A100: 42 | C100: =IF('INGRESO DE DATOS'!$G$21="Guayas/Santa Elena",'Tablas Guayaquil'!C100,'Tablas Resto de Ecuador'!C100) -> 318.3533333 | D100: =IF('INGRESO DE DATOS'!$G$21="Guayas/Santa Elena",'Tablas Guayaquil'!D100,'Tablas Resto de Ecuador'!D100) -> 274.7166667 | E100: =IF('INGRESO DE DATOS'!$G$21="Guayas/Santa Elena",'Tablas Guayaquil'!E100,'Tablas Resto de Ecuador'!E100) -> 215.0033333 | F100: =IF('INGRESO DE DATOS'!$G$21="Guayas/Santa Elena",'Tablas Guayaquil'!F100,'Tablas Resto de Ecuador'!F100) -> 161.2083333 | G100: =IF('INGRESO DE DATOS'!$G$21="Guayas/Santa Elena",'Tablas Guayaquil'!G100,'Tablas Resto de Ecuador'!G100) -> 100.2583333 | H100: =IF('INGRESO DE DATOS'!$G$21="Guayas/Santa Elena",'Tablas Guayaquil'!H100,'Tablas Resto de Ecuador'!H100) -> 64.83666667 | I100: =IF('INGRESO DE DATOS'!$G$21="Guayas/Santa Elena",'Tablas Guayaquil'!I100,'Tablas Resto de Ecuador'!I100) -> 43.195
A101: 43 | C101: =IF('INGRESO DE DATOS'!$G$21="Guayas/Santa Elena",'Tablas Guayaquil'!C101,'Tablas Resto de Ecuador'!C101) -> 330.455 | D101: =IF('INGRESO DE DATOS'!$G$21="Guayas/Santa Elena",'Tablas Guayaquil'!D101,'Tablas Resto de Ecuador'!D101) -> 287.1716667 | E101: =IF('INGRESO DE DATOS'!$G$21="Guayas/Santa Elena",'Tablas Guayaquil'!E101,'Tablas Resto de Ecuador'!E101) -> 225.4266667 | F101: =IF('INGRESO DE DATOS'!$G$21="Guayas/Santa Elena",'Tablas Guayaquil'!F101,'Tablas Resto de Ecuador'!F101) -> 169.6 | G101: =IF('INGRESO DE DATOS'!$G$21="Guayas/Santa Elena",'Tablas Guayaquil'!G101,'Tablas Resto de Ecuador'!G101) -> 105.9116667 | H101: =IF('INGRESO DE DATOS'!$G$21="Guayas/Santa Elena",'Tablas Guayaquil'!H101,'Tablas Resto de Ecuador'!H101) -> 68.81166667 | I101: =IF('INGRESO DE DATOS'!$G$21="Guayas/Santa Elena",'Tablas Guayaquil'!I101,'Tablas Resto de Ecuador'!I101) -> 46.02166667
A102: 44 | C102: =IF('INGRESO DE DATOS'!$G$21="Guayas/Santa Elena",'Tablas Guayaquil'!C102,'Tablas Resto de Ecuador'!C102) -> 343.175 | D102: =IF('INGRESO DE DATOS'!$G$21="Guayas/Santa Elena",'Tablas Guayaquil'!D102,'Tablas Resto de Ecuador'!D102) -> 298.5666667 | E102: =IF('INGRESO DE DATOS'!$G$21="Guayas/Santa Elena",'Tablas Guayaquil'!E102,'Tablas Resto de Ecuador'!E102) -> 236.7333333 | F102: =IF('INGRESO DE DATOS'!$G$21="Guayas/Santa Elena",'Tablas Guayaquil'!F102,'Tablas Resto de Ecuador'!F102) -> 178.61 | G102: =IF('INGRESO DE DATOS'!$G$21="Guayas/Santa Elena",'Tablas Guayaquil'!G102,'Tablas Resto de Ecuador'!G102) -> 112.0066667 | H102: =IF('INGRESO DE DATOS'!$G$21="Guayas/Santa Elena",'Tablas Guayaquil'!H102,'Tablas Resto de Ecuador'!H102) -> 73.05166667 | I102: =IF('INGRESO DE DATOS'!$G$21="Guayas/Santa Elena",'Tablas Guayaquil'!I102,'Tablas Resto de Ecuador'!I102) -> 49.20166667
A103: 45 | C103: =IF('INGRESO DE DATOS'!$G$21="Guayas/Santa Elena",'Tablas Guayaquil'!C103,'Tablas Resto de Ecuador'!C103) -> 355.9833333 | D103: =IF('INGRESO DE DATOS'!$G$21="Guayas/Santa Elena",'Tablas Guayaquil'!D103,'Tablas Resto de Ecuador'!D103) -> 309.4316667 | E103: =IF('INGRESO DE DATOS'!$G$21="Guayas/Santa Elena",'Tablas Guayaquil'!E103,'Tablas Resto de Ecuador'!E103) -> 249.0116667 | F103: =IF('INGRESO DE DATOS'!$G$21="Guayas/Santa Elena",'Tablas Guayaquil'!F103,'Tablas Resto de Ecuador'!F103) -> 188.415 | G103: =IF('INGRESO DE DATOS'!$G$21="Guayas/Santa Elena",'Tablas Guayaquil'!G103,'Tablas Resto de Ecuador'!G103) -> 118.5433333 | H103: =IF('INGRESO DE DATOS'!$G$21="Guayas/Santa Elena",'Tablas Guayaquil'!H103,'Tablas Resto de Ecuador'!H103) -> 77.645 | I103: =IF('INGRESO DE DATOS'!$G$21="Guayas/Santa Elena",'Tablas Guayaquil'!I103,'Tablas Resto de Ecuador'!I103) -> 52.47
A104: 46 | C104: =IF('INGRESO DE DATOS'!$G$21="Guayas/Santa Elena",'Tablas Guayaquil'!C104,'Tablas Resto de Ecuador'!C104) -> 368.5266667 | D104: =IF('INGRESO DE DATOS'!$G$21="Guayas/Santa Elena",'Tablas Guayaquil'!D104,'Tablas Resto de Ecuador'!D104) -> 320.4733333 | E104: =IF('INGRESO DE DATOS'!$G$21="Guayas/Santa Elena",'Tablas Guayaquil'!E104,'Tablas Resto de Ecuador'!E104) -> 262.1733333 | F104: =IF('INGRESO DE DATOS'!$G$21="Guayas/Santa Elena",'Tablas Guayaquil'!F104,'Tablas Resto de Ecuador'!F104) -> 198.9266667 | G104: =IF('INGRESO DE DATOS'!$G$21="Guayas/Santa Elena",'Tablas Guayaquil'!G104,'Tablas Resto de Ecuador'!G104) -> 125.875 | H104: =IF('INGRESO DE DATOS'!$G$21="Guayas/Santa Elena",'Tablas Guayaquil'!H104,'Tablas Resto de Ecuador'!H104) -> 82.68 | I104: =IF('INGRESO DE DATOS'!$G$21="Guayas/Santa Elena",'Tablas Guayaquil'!I104,'Tablas Resto de Ecuador'!I104) -> 56.18
A105: 47 | C105: =IF('INGRESO DE DATOS'!$G$21="Guayas/Santa Elena",'Tablas Guayaquil'!C105,'Tablas Resto de Ecuador'!C105) -> 381.335 | D105: =IF('INGRESO DE DATOS'!$G$21="Guayas/Santa Elena",'Tablas Guayaquil'!D105,'Tablas Resto de Ecuador'!D105) -> 331.4266667 | E105: =IF('INGRESO DE DATOS'!$G$21="Guayas/Santa Elena",'Tablas Guayaquil'!E105,'Tablas Resto de Ecuador'!E105) -> 276.2183333 | F105: =IF('INGRESO DE DATOS'!$G$21="Guayas/Santa Elena",'Tablas Guayaquil'!F105,'Tablas Resto de Ecuador'!F105) -> 210.2333333 | G105: =IF('INGRESO DE DATOS'!$G$21="Guayas/Santa Elena",'Tablas Guayaquil'!G105,'Tablas Resto de Ecuador'!G105) -> 133.4716667 | H105: =IF('INGRESO DE DATOS'!$G$21="Guayas/Santa Elena",'Tablas Guayaquil'!H105,'Tablas Resto de Ecuador'!H105) -> 87.98 | I105: =IF('INGRESO DE DATOS'!$G$21="Guayas/Santa Elena",'Tablas Guayaquil'!I105,'Tablas Resto de Ecuador'!I105) -> 60.155
A106: 48 | C106: =IF('INGRESO DE DATOS'!$G$21="Guayas/Santa Elena",'Tablas Guayaquil'!C106,'Tablas Resto de Ecuador'!C106) -> 394.85 | D106: =IF('INGRESO DE DATOS'!$G$21="Guayas/Santa Elena",'Tablas Guayaquil'!D106,'Tablas Resto de Ecuador'!D106) -> 343.175 | E106: =IF('INGRESO DE DATOS'!$G$21="Guayas/Santa Elena",'Tablas Guayaquil'!E106,'Tablas Resto de Ecuador'!E106) -> 291.5883333 | F106: =IF('INGRESO DE DATOS'!$G$21="Guayas/Santa Elena",'Tablas Guayaquil'!F106,'Tablas Resto de Ecuador'!F106) -> 222.5116667 | G106: =IF('INGRESO DE DATOS'!$G$21="Guayas/Santa Elena",'Tablas Guayaquil'!G106,'Tablas Resto de Ecuador'!G106) -> 141.9516667 | H106: =IF('INGRESO DE DATOS'!$G$21="Guayas/Santa Elena",'Tablas Guayaquil'!H106,'Tablas Resto de Ecuador'!H106) -> 93.89833333 | I106: =IF('INGRESO DE DATOS'!$G$21="Guayas/Santa Elena",'Tablas Guayaquil'!I106,'Tablas Resto de Ecuador'!I106) -> 64.57166667
A107: 49 | C107: =IF('INGRESO DE DATOS'!$G$21="Guayas/Santa Elena",'Tablas Guayaquil'!C107,'Tablas Resto de Ecuador'!C107) -> 408.0116667 | D107: =IF('INGRESO DE DATOS'!$G$21="Guayas/Santa Elena",'Tablas Guayaquil'!D107,'Tablas Resto de Ecuador'!D107) -> 354.7466667 | E107: =IF('INGRESO DE DATOS'!$G$21="Guayas/Santa Elena",'Tablas Guayaquil'!E107,'Tablas Resto de Ecuador'!E107) -> 308.0183333 | F107: =IF('INGRESO DE DATOS'!$G$21="Guayas/Santa Elena",'Tablas Guayaquil'!F107,'Tablas Resto de Ecuador'!F107) -> 235.85 | G107: =IF('INGRESO DE DATOS'!$G$21="Guayas/Santa Elena",'Tablas Guayaquil'!G107,'Tablas Resto de Ecuador'!G107) -> 150.9616667 | H107: =IF('INGRESO DE DATOS'!$G$21="Guayas/Santa Elena",'Tablas Guayaquil'!H107,'Tablas Resto de Ecuador'!H107) -> 100.435 | I107: =IF('INGRESO DE DATOS'!$G$21="Guayas/Santa Elena",'Tablas Guayaquil'!I107,'Tablas Resto de Ecuador'!I107) -> 69.165
A108: 50 | C108: =IF('INGRESO DE DATOS'!$G$21="Guayas/Santa Elena",'Tablas Guayaquil'!C108,'Tablas Resto de Ecuador'!C108) -> 421.35 | D108: =IF('INGRESO DE DATOS'!$G$21="Guayas/Santa Elena",'Tablas Guayaquil'!D108,'Tablas Resto de Ecuador'!D108) -> 366.5833333 | E108: =IF('INGRESO DE DATOS'!$G$21="Guayas/Santa Elena",'Tablas Guayaquil'!E108,'Tablas Resto de Ecuador'!E108) -> 326.9216667 | F108: =IF('INGRESO DE DATOS'!$G$21="Guayas/Santa Elena",'Tablas Guayaquil'!F108,'Tablas Resto de Ecuador'!F108) -> 251.22 | G108: =IF('INGRESO DE DATOS'!$G$21="Guayas/Santa Elena",'Tablas Guayaquil'!G108,'Tablas Resto de Ecuador'!G108) -> 161.5616667 | H108: =IF('INGRESO DE DATOS'!$G$21="Guayas/Santa Elena",'Tablas Guayaquil'!H108,'Tablas Resto de Ecuador'!H108) -> 107.7666667 | I108: =IF('INGRESO DE DATOS'!$G$21="Guayas/Santa Elena",'Tablas Guayaquil'!I108,'Tablas Resto de Ecuador'!I108) -> 74.73
A109: 51 | C109: =IF('INGRESO DE DATOS'!$G$21="Guayas/Santa Elena",'Tablas Guayaquil'!C109,'Tablas Resto de Ecuador'!C109) -> 434.5116667 | D109: =IF('INGRESO DE DATOS'!$G$21="Guayas/Santa Elena",'Tablas Guayaquil'!D109,'Tablas Resto de Ecuador'!D109) -> 378.0666667 | E109: =IF('INGRESO DE DATOS'!$G$21="Guayas/Santa Elena",'Tablas Guayaquil'!E109,'Tablas Resto de Ecuador'!E109) -> 344.6766667 | F109: =IF('INGRESO DE DATOS'!$G$21="Guayas/Santa Elena",'Tablas Guayaquil'!F109,'Tablas Resto de Ecuador'!F109) -> 269.6816667 | G109: =IF('INGRESO DE DATOS'!$G$21="Guayas/Santa Elena",'Tablas Guayaquil'!G109,'Tablas Resto de Ecuador'!G109) -> 174.37 | H109: =IF('INGRESO DE DATOS'!$G$21="Guayas/Santa Elena",'Tablas Guayaquil'!H109,'Tablas Resto de Ecuador'!H109) -> 116.865 | I109: =IF('INGRESO DE DATOS'!$G$21="Guayas/Santa Elena",'Tablas Guayaquil'!I109,'Tablas Resto de Ecuador'!I109) -> 81.44333333
A110: 52 | C110: =IF('INGRESO DE DATOS'!$G$21="Guayas/Santa Elena",'Tablas Guayaquil'!C110,'Tablas Resto de Ecuador'!C110) -> 447.9383333 | D110: =IF('INGRESO DE DATOS'!$G$21="Guayas/Santa Elena",'Tablas Guayaquil'!D110,'Tablas Resto de Ecuador'!D110) -> 389.7266667 | E110: =IF('INGRESO DE DATOS'!$G$21="Guayas/Santa Elena",'Tablas Guayaquil'!E110,'Tablas Resto de Ecuador'!E110) -> 355.2766667 | F110: =IF('INGRESO DE DATOS'!$G$21="Guayas/Santa Elena",'Tablas Guayaquil'!F110,'Tablas Resto de Ecuador'!F110) -> 289.5566667 | G110: =IF('INGRESO DE DATOS'!$G$21="Guayas/Santa Elena",'Tablas Guayaquil'!G110,'Tablas Resto de Ecuador'!G110) -> 188.0616667 | H110: =IF('INGRESO DE DATOS'!$G$21="Guayas/Santa Elena",'Tablas Guayaquil'!H110,'Tablas Resto de Ecuador'!H110) -> 126.67 | I110: =IF('INGRESO DE DATOS'!$G$21="Guayas/Santa Elena",'Tablas Guayaquil'!I110,'Tablas Resto de Ecuador'!I110) -> 88.68666667
A111: 53 | C111: =IF('INGRESO DE DATOS'!$G$21="Guayas/Santa Elena",'Tablas Guayaquil'!C111,'Tablas Resto de Ecuador'!C111) -> 463.8383333 | D111: =IF('INGRESO DE DATOS'!$G$21="Guayas/Santa Elena",'Tablas Guayaquil'!D111,'Tablas Resto de Ecuador'!D111) -> 403.33 | E111: =IF('INGRESO DE DATOS'!$G$21="Guayas/Santa Elena",'Tablas Guayaquil'!E111,'Tablas Resto de Ecuador'!E111) -> 367.9966667 | F111: =IF('INGRESO DE DATOS'!$G$21="Guayas/Santa Elena",'Tablas Guayaquil'!F111,'Tablas Resto de Ecuador'!F111) -> 310.845 | G111: =IF('INGRESO DE DATOS'!$G$21="Guayas/Santa Elena",'Tablas Guayaquil'!G111,'Tablas Resto de Ecuador'!G111) -> 202.8133333 | H111: =IF('INGRESO DE DATOS'!$G$21="Guayas/Santa Elena",'Tablas Guayaquil'!H111,'Tablas Resto de Ecuador'!H111) -> 137.005 | I111: =IF('INGRESO DE DATOS'!$G$21="Guayas/Santa Elena",'Tablas Guayaquil'!I111,'Tablas Resto de Ecuador'!I111) -> 96.46
A112: 54 | C112: =IF('INGRESO DE DATOS'!$G$21="Guayas/Santa Elena",'Tablas Guayaquil'!C112,'Tablas Resto de Ecuador'!C112) -> 479.8266667 | D112: =IF('INGRESO DE DATOS'!$G$21="Guayas/Santa Elena",'Tablas Guayaquil'!D112,'Tablas Resto de Ecuador'!D112) -> 417.11 | E112: =IF('INGRESO DE DATOS'!$G$21="Guayas/Santa Elena",'Tablas Guayaquil'!E112,'Tablas Resto de Ecuador'!E112) -> 380.3633333 | F112: =IF('INGRESO DE DATOS'!$G$21="Guayas/Santa Elena",'Tablas Guayaquil'!F112,'Tablas Resto de Ecuador'!F112) -> 333.8116667 | G112: =IF('INGRESO DE DATOS'!$G$21="Guayas/Santa Elena",'Tablas Guayaquil'!G112,'Tablas Resto de Ecuador'!G112) -> 218.7133333 | H112: =IF('INGRESO DE DATOS'!$G$21="Guayas/Santa Elena",'Tablas Guayaquil'!H112,'Tablas Resto de Ecuador'!H112) -> 148.2233333 | I112: =IF('INGRESO DE DATOS'!$G$21="Guayas/Santa Elena",'Tablas Guayaquil'!I112,'Tablas Resto de Ecuador'!I112) -> 104.8516667
A113: 55 | C113: =IF('INGRESO DE DATOS'!$G$21="Guayas/Santa Elena",'Tablas Guayaquil'!C113,'Tablas Resto de Ecuador'!C113) -> 495.9033333 | D113: =IF('INGRESO DE DATOS'!$G$21="Guayas/Santa Elena",'Tablas Guayaquil'!D113,'Tablas Resto de Ecuador'!D113) -> 431.155 | E113: =IF('INGRESO DE DATOS'!$G$21="Guayas/Santa Elena",'Tablas Guayaquil'!E113,'Tablas Resto de Ecuador'!E113) -> 392.9066667 | F113: =IF('INGRESO DE DATOS'!$G$21="Guayas/Santa Elena",'Tablas Guayaquil'!F113,'Tablas Resto de Ecuador'!F113) -> 346.7083333 | G113: =IF('INGRESO DE DATOS'!$G$21="Guayas/Santa Elena",'Tablas Guayaquil'!G113,'Tablas Resto de Ecuador'!G113) -> 235.7616667 | H113: =IF('INGRESO DE DATOS'!$G$21="Guayas/Santa Elena",'Tablas Guayaquil'!H113,'Tablas Resto de Ecuador'!H113) -> 160.2366667 | I113: =IF('INGRESO DE DATOS'!$G$21="Guayas/Santa Elena",'Tablas Guayaquil'!I113,'Tablas Resto de Ecuador'!I113) -> 113.7733333
A114: 56 | C114: =IF('INGRESO DE DATOS'!$G$21="Guayas/Santa Elena",'Tablas Guayaquil'!C114,'Tablas Resto de Ecuador'!C114) -> 511.6266667 | D114: =IF('INGRESO DE DATOS'!$G$21="Guayas/Santa Elena",'Tablas Guayaquil'!D114,'Tablas Resto de Ecuador'!D114) -> 444.7583333 | E114: =IF('INGRESO DE DATOS'!$G$21="Guayas/Santa Elena",'Tablas Guayaquil'!E114,'Tablas Resto de Ecuador'!E114) -> 405.3616667 | F114: =IF('INGRESO DE DATOS'!$G$21="Guayas/Santa Elena",'Tablas Guayaquil'!F114,'Tablas Resto de Ecuador'!F114) -> 358.6333333 | G114: =IF('INGRESO DE DATOS'!$G$21="Guayas/Santa Elena",'Tablas Guayaquil'!G114,'Tablas Resto de Ecuador'!G114) -> 249.4533333 | H114: =IF('INGRESO DE DATOS'!$G$21="Guayas/Santa Elena",'Tablas Guayaquil'!H114,'Tablas Resto de Ecuador'!H114) -> 173.2216667 | I114: =IF('INGRESO DE DATOS'!$G$21="Guayas/Santa Elena",'Tablas Guayaquil'!I114,'Tablas Resto de Ecuador'!I114) -> 123.4016667
A115: 57 | C115: =IF('INGRESO DE DATOS'!$G$21="Guayas/Santa Elena",'Tablas Guayaquil'!C115,'Tablas Resto de Ecuador'!C115) -> 527.2616667 | D115: =IF('INGRESO DE DATOS'!$G$21="Guayas/Santa Elena",'Tablas Guayaquil'!D115,'Tablas Resto de Ecuador'!D115) -> 458.715 | E115: =IF('INGRESO DE DATOS'!$G$21="Guayas/Santa Elena",'Tablas Guayaquil'!E115,'Tablas Resto de Ecuador'!E115) -> 418.17 | F115: =IF('INGRESO DE DATOS'!$G$21="Guayas/Santa Elena",'Tablas Guayaquil'!F115,'Tablas Resto de Ecuador'!F115) -> 370.735 | G115: =IF('INGRESO DE DATOS'!$G$21="Guayas/Santa Elena",'Tablas Guayaquil'!G115,'Tablas Resto de Ecuador'!G115) -> 257.2266667 | H115: =IF('INGRESO DE DATOS'!$G$21="Guayas/Santa Elena",'Tablas Guayaquil'!H115,'Tablas Resto de Ecuador'!H115) -> 187.09 | I115: =IF('INGRESO DE DATOS'!$G$21="Guayas/Santa Elena",'Tablas Guayaquil'!I115,'Tablas Resto de Ecuador'!I115) -> 133.825
A116: 58 | C116: =IF('INGRESO DE DATOS'!$G$21="Guayas/Santa Elena",'Tablas Guayaquil'!C116,'Tablas Resto de Ecuador'!C116) -> 545.4583333 | D116: =IF('INGRESO DE DATOS'!$G$21="Guayas/Santa Elena",'Tablas Guayaquil'!D116,'Tablas Resto de Ecuador'!D116) -> 474.1733333 | E116: =IF('INGRESO DE DATOS'!$G$21="Guayas/Santa Elena",'Tablas Guayaquil'!E116,'Tablas Resto de Ecuador'!E116) -> 431.2433333 | F116: =IF('INGRESO DE DATOS'!$G$21="Guayas/Santa Elena",'Tablas Guayaquil'!F116,'Tablas Resto de Ecuador'!F116) -> 386.635 | G116: =IF('INGRESO DE DATOS'!$G$21="Guayas/Santa Elena",'Tablas Guayaquil'!G116,'Tablas Resto de Ecuador'!G116) -> 267.385 | H116: =IF('INGRESO DE DATOS'!$G$21="Guayas/Santa Elena",'Tablas Guayaquil'!H116,'Tablas Resto de Ecuador'!H116) -> 202.0183333 | I116: =IF('INGRESO DE DATOS'!$G$21="Guayas/Santa Elena",'Tablas Guayaquil'!I116,'Tablas Resto de Ecuador'!I116) -> 144.955
A117: 59 | C117: =IF('INGRESO DE DATOS'!$G$21="Guayas/Santa Elena",'Tablas Guayaquil'!C117,'Tablas Resto de Ecuador'!C117) -> 563.7433333 | D117: =IF('INGRESO DE DATOS'!$G$21="Guayas/Santa Elena",'Tablas Guayaquil'!D117,'Tablas Resto de Ecuador'!D117) -> 490.25 | E117: =IF('INGRESO DE DATOS'!$G$21="Guayas/Santa Elena",'Tablas Guayaquil'!E117,'Tablas Resto de Ecuador'!E117) -> 444.2283333 | F117: =IF('INGRESO DE DATOS'!$G$21="Guayas/Santa Elena",'Tablas Guayaquil'!F117,'Tablas Resto de Ecuador'!F117) -> 402.1816667 | G117: =IF('INGRESO DE DATOS'!$G$21="Guayas/Santa Elena",'Tablas Guayaquil'!G117,'Tablas Resto de Ecuador'!G117) -> 277.5433333 | H117: =IF('INGRESO DE DATOS'!$G$21="Guayas/Santa Elena",'Tablas Guayaquil'!H117,'Tablas Resto de Ecuador'!H117) -> 218.0066667 | I117: =IF('INGRESO DE DATOS'!$G$21="Guayas/Santa Elena",'Tablas Guayaquil'!I117,'Tablas Resto de Ecuador'!I117) -> 156.88
A118: 60 | C118: =IF('INGRESO DE DATOS'!$G$21="Guayas/Santa Elena",'Tablas Guayaquil'!C118,'Tablas Resto de Ecuador'!C118) -> 581.8516667 | D118: =IF('INGRESO DE DATOS'!$G$21="Guayas/Santa Elena",'Tablas Guayaquil'!D118,'Tablas Resto de Ecuador'!D118) -> 505.885 | E118: =IF('INGRESO DE DATOS'!$G$21="Guayas/Santa Elena",'Tablas Guayaquil'!E118,'Tablas Resto de Ecuador'!E118) -> 457.5666667 | F118: =IF('INGRESO DE DATOS'!$G$21="Guayas/Santa Elena",'Tablas Guayaquil'!F118,'Tablas Resto de Ecuador'!F118) -> 417.905 | G118: =IF('INGRESO DE DATOS'!$G$21="Guayas/Santa Elena",'Tablas Guayaquil'!G118,'Tablas Resto de Ecuador'!G118) -> 287.7016667 | H118: =IF('INGRESO DE DATOS'!$G$21="Guayas/Santa Elena",'Tablas Guayaquil'!H118,'Tablas Resto de Ecuador'!H118) -> 235.4083333 | I118: =IF('INGRESO DE DATOS'!$G$21="Guayas/Santa Elena",'Tablas Guayaquil'!I118,'Tablas Resto de Ecuador'!I118) -> 169.7766667
A119: 61 | C119: =IF('INGRESO DE DATOS'!$G$21="Guayas/Santa Elena",'Tablas Guayaquil'!C119,'Tablas Resto de Ecuador'!C119) -> 604.2883333 | D119: =IF('INGRESO DE DATOS'!$G$21="Guayas/Santa Elena",'Tablas Guayaquil'!D119,'Tablas Resto de Ecuador'!D119) -> 525.3183333 | E119: =IF('INGRESO DE DATOS'!$G$21="Guayas/Santa Elena",'Tablas Guayaquil'!E119,'Tablas Resto de Ecuador'!E119) -> 477.265 | F119: =IF('INGRESO DE DATOS'!$G$21="Guayas/Santa Elena",'Tablas Guayaquil'!F119,'Tablas Resto de Ecuador'!F119) -> 433.54 | G119: =IF('INGRESO DE DATOS'!$G$21="Guayas/Santa Elena",'Tablas Guayaquil'!G119,'Tablas Resto de Ecuador'!G119) -> 298.39 | H119: =IF('INGRESO DE DATOS'!$G$21="Guayas/Santa Elena",'Tablas Guayaquil'!H119,'Tablas Resto de Ecuador'!H119) -> 253.87 | I119: =IF('INGRESO DE DATOS'!$G$21="Guayas/Santa Elena",'Tablas Guayaquil'!I119,'Tablas Resto de Ecuador'!I119) -> 183.5566667
A120: 62 | C120: =IF('INGRESO DE DATOS'!$G$21="Guayas/Santa Elena",'Tablas Guayaquil'!C120,'Tablas Resto de Ecuador'!C120) -> 631.4066667 | D120: =IF('INGRESO DE DATOS'!$G$21="Guayas/Santa Elena",'Tablas Guayaquil'!D120,'Tablas Resto de Ecuador'!D120) -> 548.9916667 | E120: =IF('INGRESO DE DATOS'!$G$21="Guayas/Santa Elena",'Tablas Guayaquil'!E120,'Tablas Resto de Ecuador'!E120) -> 500.585 | F120: =IF('INGRESO DE DATOS'!$G$21="Guayas/Santa Elena",'Tablas Guayaquil'!F120,'Tablas Resto de Ecuador'!F120) -> 453.0616667 | G120: =IF('INGRESO DE DATOS'!$G$21="Guayas/Santa Elena",'Tablas Guayaquil'!G120,'Tablas Resto de Ecuador'!G120) -> 312.0816667 | H120: =IF('INGRESO DE DATOS'!$G$21="Guayas/Santa Elena",'Tablas Guayaquil'!H120,'Tablas Resto de Ecuador'!H120) -> 274.01 | I120: =IF('INGRESO DE DATOS'!$G$21="Guayas/Santa Elena",'Tablas Guayaquil'!I120,'Tablas Resto de Ecuador'!I120) -> 198.5733333
A121: 63 | C121: =IF('INGRESO DE DATOS'!$G$21="Guayas/Santa Elena",'Tablas Guayaquil'!C121,'Tablas Resto de Ecuador'!C121) -> 663.9133333 | D121: =IF('INGRESO DE DATOS'!$G$21="Guayas/Santa Elena",'Tablas Guayaquil'!D121,'Tablas Resto de Ecuador'!D121) -> 577.17 | E121: =IF('INGRESO DE DATOS'!$G$21="Guayas/Santa Elena",'Tablas Guayaquil'!E121,'Tablas Resto de Ecuador'!E121) -> 526.555 | F121: =IF('INGRESO DE DATOS'!$G$21="Guayas/Santa Elena",'Tablas Guayaquil'!F121,'Tablas Resto de Ecuador'!F121) -> 476.3816667 | G121: =IF('INGRESO DE DATOS'!$G$21="Guayas/Santa Elena",'Tablas Guayaquil'!G121,'Tablas Resto de Ecuador'!G121) -> 328.335 | H121: =IF('INGRESO DE DATOS'!$G$21="Guayas/Santa Elena",'Tablas Guayaquil'!H121,'Tablas Resto de Ecuador'!H121) -> 295.5633333 | I121: =IF('INGRESO DE DATOS'!$G$21="Guayas/Santa Elena",'Tablas Guayaquil'!I121,'Tablas Resto de Ecuador'!I121) -> 214.5616667
A122: 64 | C122: =IF('INGRESO DE DATOS'!$G$21="Guayas/Santa Elena",'Tablas Guayaquil'!C122,'Tablas Resto de Ecuador'!C122) -> 702.0733333 | D122: =IF('INGRESO DE DATOS'!$G$21="Guayas/Santa Elena",'Tablas Guayaquil'!D122,'Tablas Resto de Ecuador'!D122) -> 610.7366667 | E122: =IF('INGRESO DE DATOS'!$G$21="Guayas/Santa Elena",'Tablas Guayaquil'!E122,'Tablas Resto de Ecuador'!E122) -> 556.6766667 | F122: =IF('INGRESO DE DATOS'!$G$21="Guayas/Santa Elena",'Tablas Guayaquil'!F122,'Tablas Resto de Ecuador'!F122) -> 503.8533333 | G122: =IF('INGRESO DE DATOS'!$G$21="Guayas/Santa Elena",'Tablas Guayaquil'!G122,'Tablas Resto de Ecuador'!G122) -> 364.4633333 | H122: =IF('INGRESO DE DATOS'!$G$21="Guayas/Santa Elena",'Tablas Guayaquil'!H122,'Tablas Resto de Ecuador'!H122) -> 318.9716667 | I122: =IF('INGRESO DE DATOS'!$G$21="Guayas/Santa Elena",'Tablas Guayaquil'!I122,'Tablas Resto de Ecuador'!I122) -> 231.7866667
A123: 65 | C123: =IF('INGRESO DE DATOS'!$G$21="Guayas/Santa Elena",'Tablas Guayaquil'!C123,'Tablas Resto de Ecuador'!C123) -> 748.1833333 | D123: =IF('INGRESO DE DATOS'!$G$21="Guayas/Santa Elena",'Tablas Guayaquil'!D123,'Tablas Resto de Ecuador'!D123) -> 650.3983333 | E123: =IF('INGRESO DE DATOS'!$G$21="Guayas/Santa Elena",'Tablas Guayaquil'!E123,'Tablas Resto de Ecuador'!E123) -> 592.9816667 | F123: =IF('INGRESO DE DATOS'!$G$21="Guayas/Santa Elena",'Tablas Guayaquil'!F123,'Tablas Resto de Ecuador'!F123) -> 541.4833333 | G123: =IF('INGRESO DE DATOS'!$G$21="Guayas/Santa Elena",'Tablas Guayaquil'!G123,'Tablas Resto de Ecuador'!G123) -> 390.1683333 | H123: =IF('INGRESO DE DATOS'!$G$21="Guayas/Santa Elena",'Tablas Guayaquil'!H123,'Tablas Resto de Ecuador'!H123) -> 344.0583333 | I123: =IF('INGRESO DE DATOS'!$G$21="Guayas/Santa Elena",'Tablas Guayaquil'!I123,'Tablas Resto de Ecuador'!I123) -> 250.3366667
A124: 66 | C124: =IF('INGRESO DE DATOS'!$G$21="Guayas/Santa Elena",'Tablas Guayaquil'!C124,'Tablas Resto de Ecuador'!C124) -> 801.8016667 | D124: =IF('INGRESO DE DATOS'!$G$21="Guayas/Santa Elena",'Tablas Guayaquil'!D124,'Tablas Resto de Ecuador'!D124) -> 697.3033333 | E124: =IF('INGRESO DE DATOS'!$G$21="Guayas/Santa Elena",'Tablas Guayaquil'!E124,'Tablas Resto de Ecuador'!E124) -> 635.8233333 | F124: =IF('INGRESO DE DATOS'!$G$21="Guayas/Santa Elena",'Tablas Guayaquil'!F124,'Tablas Resto de Ecuador'!F124) -> 584.6783333 | G124: =IF('INGRESO DE DATOS'!$G$21="Guayas/Santa Elena",'Tablas Guayaquil'!G124,'Tablas Resto de Ecuador'!G124) -> 420.29 | H124: =IF('INGRESO DE DATOS'!$G$21="Guayas/Santa Elena",'Tablas Guayaquil'!H124,'Tablas Resto de Ecuador'!H124) -> 371.265 | I124: =IF('INGRESO DE DATOS'!$G$21="Guayas/Santa Elena",'Tablas Guayaquil'!I124,'Tablas Resto de Ecuador'!I124) -> 270.3883333
A125: 67 | C125: =IF('INGRESO DE DATOS'!$G$21="Guayas/Santa Elena",'Tablas Guayaquil'!C125,'Tablas Resto de Ecuador'!C125) -> 865.8433333 | D125: =IF('INGRESO DE DATOS'!$G$21="Guayas/Santa Elena",'Tablas Guayaquil'!D125,'Tablas Resto de Ecuador'!D125) -> 752.9533333 | E125: =IF('INGRESO DE DATOS'!$G$21="Guayas/Santa Elena",'Tablas Guayaquil'!E125,'Tablas Resto de Ecuador'!E125) -> 686.7033333 | F125: =IF('INGRESO DE DATOS'!$G$21="Guayas/Santa Elena",'Tablas Guayaquil'!F125,'Tablas Resto de Ecuador'!F125) -> 631.9366667 | G125: =IF('INGRESO DE DATOS'!$G$21="Guayas/Santa Elena",'Tablas Guayaquil'!G125,'Tablas Resto de Ecuador'!G125) -> 453.945 | H125: =IF('INGRESO DE DATOS'!$G$21="Guayas/Santa Elena",'Tablas Guayaquil'!H125,'Tablas Resto de Ecuador'!H125) -> 400.415 | I125: =IF('INGRESO DE DATOS'!$G$21="Guayas/Santa Elena",'Tablas Guayaquil'!I125,'Tablas Resto de Ecuador'!I125) -> 291.9416667
A126: 68 | C126: =IF('INGRESO DE DATOS'!$G$21="Guayas/Santa Elena",'Tablas Guayaquil'!C126,'Tablas Resto de Ecuador'!C126) -> 939.6016667 | D126: =IF('INGRESO DE DATOS'!$G$21="Guayas/Santa Elena",'Tablas Guayaquil'!D126,'Tablas Resto de Ecuador'!D126) -> 816.8183333 | E126: =IF('INGRESO DE DATOS'!$G$21="Guayas/Santa Elena",'Tablas Guayaquil'!E126,'Tablas Resto de Ecuador'!E126) -> 744.915 | F126: =IF('INGRESO DE DATOS'!$G$21="Guayas/Santa Elena",'Tablas Guayaquil'!F126,'Tablas Resto de Ecuador'!F126) -> 685.2016667 | G126: =IF('INGRESO DE DATOS'!$G$21="Guayas/Santa Elena",'Tablas Guayaquil'!G126,'Tablas Resto de Ecuador'!G126) -> 492.2816667 | H126: =IF('INGRESO DE DATOS'!$G$21="Guayas/Santa Elena",'Tablas Guayaquil'!H126,'Tablas Resto de Ecuador'!H126) -> 432.0383333 | I126: =IF('INGRESO DE DATOS'!$G$21="Guayas/Santa Elena",'Tablas Guayaquil'!I126,'Tablas Resto de Ecuador'!I126) -> 315.2616667
A127: 69 | C127: =IF('INGRESO DE DATOS'!$G$21="Guayas/Santa Elena",'Tablas Guayaquil'!C127,'Tablas Resto de Ecuador'!C127) -> 1025.196667 | D127: =IF('INGRESO DE DATOS'!$G$21="Guayas/Santa Elena",'Tablas Guayaquil'!D127,'Tablas Resto de Ecuador'!D127) -> 891.46 | E127: =IF('INGRESO DE DATOS'!$G$21="Guayas/Santa Elena",'Tablas Guayaquil'!E127,'Tablas Resto de Ecuador'!E127) -> 812.8433333 | F127: =IF('INGRESO DE DATOS'!$G$21="Guayas/Santa Elena",'Tablas Guayaquil'!F127,'Tablas Resto de Ecuador'!F127) -> 748.2716667 | G127: =IF('INGRESO DE DATOS'!$G$21="Guayas/Santa Elena",'Tablas Guayaquil'!G127,'Tablas Resto de Ecuador'!G127) -> 512.0683333 | H127: =IF('INGRESO DE DATOS'!$G$21="Guayas/Santa Elena",'Tablas Guayaquil'!H127,'Tablas Resto de Ecuador'!H127) -> 466.0466667 | I127: =IF('INGRESO DE DATOS'!$G$21="Guayas/Santa Elena",'Tablas Guayaquil'!I127,'Tablas Resto de Ecuador'!I127) -> 340.1716667
A128: 70 | C128: =IF('INGRESO DE DATOS'!$G$21="Guayas/Santa Elena",'Tablas Guayaquil'!C128,'Tablas Resto de Ecuador'!C128) -> 1124.395 | D128: =IF('INGRESO DE DATOS'!$G$21="Guayas/Santa Elena",'Tablas Guayaquil'!D128,'Tablas Resto de Ecuador'!D128) -> 977.7616667 | E128: =IF('INGRESO DE DATOS'!$G$21="Guayas/Santa Elena",'Tablas Guayaquil'!E128,'Tablas Resto de Ecuador'!E128) -> 883.775 | F128: =IF('INGRESO DE DATOS'!$G$21="Guayas/Santa Elena",'Tablas Guayaquil'!F128,'Tablas Resto de Ecuador'!F128) -> 832.7183333 | G128: =IF('INGRESO DE DATOS'!$G$21="Guayas/Santa Elena",'Tablas Guayaquil'!G128,'Tablas Resto de Ecuador'!G128) -> 566.2166667 | H128: =IF('INGRESO DE DATOS'!$G$21="Guayas/Santa Elena",'Tablas Guayaquil'!H128,'Tablas Resto de Ecuador'!H128) -> 502.6166667 | I128: =IF('INGRESO DE DATOS'!$G$21="Guayas/Santa Elena",'Tablas Guayaquil'!I128,'Tablas Resto de Ecuador'!I128) -> 366.9366667
A129: 71 | C129: =IF('INGRESO DE DATOS'!$G$21="Guayas/Santa Elena",'Tablas Guayaquil'!C129,'Tablas Resto de Ecuador'!C129) -> 1238.433333 | D129: =IF('INGRESO DE DATOS'!$G$21="Guayas/Santa Elena",'Tablas Guayaquil'!D129,'Tablas Resto de Ecuador'!D129) -> 1076.96 | E129: =IF('INGRESO DE DATOS'!$G$21="Guayas/Santa Elena",'Tablas Guayaquil'!E129,'Tablas Resto de Ecuador'!E129) -> 981.7366667 | F129: =IF('INGRESO DE DATOS'!$G$21="Guayas/Santa Elena",'Tablas Guayaquil'!F129,'Tablas Resto de Ecuador'!F129) -> 916.9 | G129: =IF('INGRESO DE DATOS'!$G$21="Guayas/Santa Elena",'Tablas Guayaquil'!G129,'Tablas Resto de Ecuador'!G129) -> 623.7216667 | H129: =IF('INGRESO DE DATOS'!$G$21="Guayas/Santa Elena",'Tablas Guayaquil'!H129,'Tablas Resto de Ecuador'!H129) -> 542.0133333 | I129: =IF('INGRESO DE DATOS'!$G$21="Guayas/Santa Elena",'Tablas Guayaquil'!I129,'Tablas Resto de Ecuador'!I129) -> 395.4683333
A130: 72 | C130: =IF('INGRESO DE DATOS'!$G$21="Guayas/Santa Elena",'Tablas Guayaquil'!C130,'Tablas Resto de Ecuador'!C130) -> 1369.873333 | D130: =IF('INGRESO DE DATOS'!$G$21="Guayas/Santa Elena",'Tablas Guayaquil'!D130,'Tablas Resto de Ecuador'!D130) -> 1191.175 | E130: =IF('INGRESO DE DATOS'!$G$21="Guayas/Santa Elena",'Tablas Guayaquil'!E130,'Tablas Resto de Ecuador'!E130) -> 1086.235 | F130: =IF('INGRESO DE DATOS'!$G$21="Guayas/Santa Elena",'Tablas Guayaquil'!F130,'Tablas Resto de Ecuador'!F130) -> 1014.773333 | G130: =IF('INGRESO DE DATOS'!$G$21="Guayas/Santa Elena",'Tablas Guayaquil'!G130,'Tablas Resto de Ecuador'!G130) -> 690.325 | H130: =IF('INGRESO DE DATOS'!$G$21="Guayas/Santa Elena",'Tablas Guayaquil'!H130,'Tablas Resto de Ecuador'!H130) -> 584.1483333 | I130: =IF('INGRESO DE DATOS'!$G$21="Guayas/Santa Elena",'Tablas Guayaquil'!I130,'Tablas Resto de Ecuador'!I130) -> 426.0316667
A131: 73 | C131: =IF('INGRESO DE DATOS'!$G$21="Guayas/Santa Elena",'Tablas Guayaquil'!C131,'Tablas Resto de Ecuador'!C131) -> 1521.453333 | D131: =IF('INGRESO DE DATOS'!$G$21="Guayas/Santa Elena",'Tablas Guayaquil'!D131,'Tablas Resto de Ecuador'!D131) -> 1322.968333 | E131: =IF('INGRESO DE DATOS'!$G$21="Guayas/Santa Elena",'Tablas Guayaquil'!E131,'Tablas Resto de Ecuador'!E131) -> 1206.191667 | F131: =IF('INGRESO DE DATOS'!$G$21="Guayas/Santa Elena",'Tablas Guayaquil'!F131,'Tablas Resto de Ecuador'!F131) -> 1126.515 | G131: =IF('INGRESO DE DATOS'!$G$21="Guayas/Santa Elena",'Tablas Guayaquil'!G131,'Tablas Resto de Ecuador'!G131) -> 766.115 | H131: =IF('INGRESO DE DATOS'!$G$21="Guayas/Santa Elena",'Tablas Guayaquil'!H131,'Tablas Resto de Ecuador'!H131) -> 629.375 | I131: =IF('INGRESO DE DATOS'!$G$21="Guayas/Santa Elena",'Tablas Guayaquil'!I131,'Tablas Resto de Ecuador'!I131) -> 458.45
A132: 74 | C132: =IF('INGRESO DE DATOS'!$G$21="Guayas/Santa Elena",'Tablas Guayaquil'!C132,'Tablas Resto de Ecuador'!C132) -> 1696.265 | D132: =IF('INGRESO DE DATOS'!$G$21="Guayas/Santa Elena",'Tablas Guayaquil'!D132,'Tablas Resto de Ecuador'!D132) -> 1474.813333 | E132: =IF('INGRESO DE DATOS'!$G$21="Guayas/Santa Elena",'Tablas Guayaquil'!E132,'Tablas Resto de Ecuador'!E132) -> 1344.698333 | F132: =IF('INGRESO DE DATOS'!$G$21="Guayas/Santa Elena",'Tablas Guayaquil'!F132,'Tablas Resto de Ecuador'!F132) -> 1256.188333 | G132: =IF('INGRESO DE DATOS'!$G$21="Guayas/Santa Elena",'Tablas Guayaquil'!G132,'Tablas Resto de Ecuador'!G132) -> 854.4483333 | H132: =IF('INGRESO DE DATOS'!$G$21="Guayas/Santa Elena",'Tablas Guayaquil'!H132,'Tablas Resto de Ecuador'!H132) -> 677.605 | I132: =IF('INGRESO DE DATOS'!$G$21="Guayas/Santa Elena",'Tablas Guayaquil'!I132,'Tablas Resto de Ecuador'!I132) -> 492.7233333
A133: 75 | C133: =IF('INGRESO DE DATOS'!$G$21="Guayas/Santa Elena",'Tablas Guayaquil'!C133,'Tablas Resto de Ecuador'!C133) -> 1896.516667 | D133: =IF('INGRESO DE DATOS'!$G$21="Guayas/Santa Elena",'Tablas Guayaquil'!D133,'Tablas Resto de Ecuador'!D133) -> 1649.271667 | E133: =IF('INGRESO DE DATOS'!$G$21="Guayas/Santa Elena",'Tablas Guayaquil'!E133,'Tablas Resto de Ecuador'!E133) -> 1497.691667 | F133: =IF('INGRESO DE DATOS'!$G$21="Guayas/Santa Elena",'Tablas Guayaquil'!F133,'Tablas Resto de Ecuador'!F133) -> 1413.421667 | G133: =IF('INGRESO DE DATOS'!$G$21="Guayas/Santa Elena",'Tablas Guayaquil'!G133,'Tablas Resto de Ecuador'!G133) -> 958.6816667 | H133: =IF('INGRESO DE DATOS'!$G$21="Guayas/Santa Elena",'Tablas Guayaquil'!H133,'Tablas Resto de Ecuador'!H133) -> 728.5733333 | I133: =IF('INGRESO DE DATOS'!$G$21="Guayas/Santa Elena",'Tablas Guayaquil'!I133,'Tablas Resto de Ecuador'!I133) -> 528.675
A134: 76 | C134: =IF('INGRESO DE DATOS'!$G$21="Guayas/Santa Elena",'Tablas Guayaquil'!C134,'Tablas Resto de Ecuador'!C134) -> 2127.066667 | D134: =IF('INGRESO DE DATOS'!$G$21="Guayas/Santa Elena",'Tablas Guayaquil'!D134,'Tablas Resto de Ecuador'!D134) -> 1849.435 | E134: =IF('INGRESO DE DATOS'!$G$21="Guayas/Santa Elena",'Tablas Guayaquil'!E134,'Tablas Resto de Ecuador'!E134) -> 1685.046667 | F134: =IF('INGRESO DE DATOS'!$G$21="Guayas/Santa Elena",'Tablas Guayaquil'!F134,'Tablas Resto de Ecuador'!F134) -> 1584.788333 | G134: =IF('INGRESO DE DATOS'!$G$21="Guayas/Santa Elena",'Tablas Guayaquil'!G134,'Tablas Resto de Ecuador'!G134) -> 1074.928333 | H134: =IF('INGRESO DE DATOS'!$G$21="Guayas/Santa Elena",'Tablas Guayaquil'!H134,'Tablas Resto de Ecuador'!H134) -> 782.545 | I134: =IF('INGRESO DE DATOS'!$G$21="Guayas/Santa Elena",'Tablas Guayaquil'!I134,'Tablas Resto de Ecuador'!I134) -> 566.1283333
A135: 77 | C135: =IF('INGRESO DE DATOS'!$G$21="Guayas/Santa Elena",'Tablas Guayaquil'!C135,'Tablas Resto de Ecuador'!C135) -> 2388.533333 | D135: =IF('INGRESO DE DATOS'!$G$21="Guayas/Santa Elena",'Tablas Guayaquil'!D135,'Tablas Resto de Ecuador'!D135) -> 2077.246667 | E135: =IF('INGRESO DE DATOS'!$G$21="Guayas/Santa Elena",'Tablas Guayaquil'!E135,'Tablas Resto de Ecuador'!E135) -> 1893.866667 | F135: =IF('INGRESO DE DATOS'!$G$21="Guayas/Santa Elena",'Tablas Guayaquil'!F135,'Tablas Resto de Ecuador'!F135) -> 1766.931667 | G135: =IF('INGRESO DE DATOS'!$G$21="Guayas/Santa Elena",'Tablas Guayaquil'!G135,'Tablas Resto de Ecuador'!G135) -> 1207.516667 | H135: =IF('INGRESO DE DATOS'!$G$21="Guayas/Santa Elena",'Tablas Guayaquil'!H135,'Tablas Resto de Ecuador'!H135) -> 838.9016667 | I135: =IF('INGRESO DE DATOS'!$G$21="Guayas/Santa Elena",'Tablas Guayaquil'!I135,'Tablas Resto de Ecuador'!I135) -> 604.73
A136: 78 | C136: =IF('INGRESO DE DATOS'!$G$21="Guayas/Santa Elena",'Tablas Guayaquil'!C136,'Tablas Resto de Ecuador'!C136) -> 2684.008333 | D136: =IF('INGRESO DE DATOS'!$G$21="Guayas/Santa Elena",'Tablas Guayaquil'!D136,'Tablas Resto de Ecuador'!D136) -> 2333.855 | E136: =IF('INGRESO DE DATOS'!$G$21="Guayas/Santa Elena",'Tablas Guayaquil'!E136,'Tablas Resto de Ecuador'!E136) -> 2127.861667 | F136: =IF('INGRESO DE DATOS'!$G$21="Guayas/Santa Elena",'Tablas Guayaquil'!F136,'Tablas Resto de Ecuador'!F136) -> 1895.368333 | G136: =IF('INGRESO DE DATOS'!$G$21="Guayas/Santa Elena",'Tablas Guayaquil'!G136,'Tablas Resto de Ecuador'!G136) -> 1300.266667 | H136: =IF('INGRESO DE DATOS'!$G$21="Guayas/Santa Elena",'Tablas Guayaquil'!H136,'Tablas Resto de Ecuador'!H136) -> 897.4666667 | I136: =IF('INGRESO DE DATOS'!$G$21="Guayas/Santa Elena",'Tablas Guayaquil'!I136,'Tablas Resto de Ecuador'!I136) -> 643.95
A137: 79 | C137: =IF('INGRESO DE DATOS'!$G$21="Guayas/Santa Elena",'Tablas Guayaquil'!C137,'Tablas Resto de Ecuador'!C137) -> 3015.611667 | D137: =IF('INGRESO DE DATOS'!$G$21="Guayas/Santa Elena",'Tablas Guayaquil'!D137,'Tablas Resto de Ecuador'!D137) -> 2621.998333 | E137: =IF('INGRESO DE DATOS'!$G$21="Guayas/Santa Elena",'Tablas Guayaquil'!E137,'Tablas Resto de Ecuador'!E137) -> 2390.918333 | F137: =IF('INGRESO DE DATOS'!$G$21="Guayas/Santa Elena",'Tablas Guayaquil'!F137,'Tablas Resto de Ecuador'!F137) -> 2030.165 | G137: =IF('INGRESO DE DATOS'!$G$21="Guayas/Santa Elena",'Tablas Guayaquil'!G137,'Tablas Resto de Ecuador'!G137) -> 1391.78 | H137: =IF('INGRESO DE DATOS'!$G$21="Guayas/Santa Elena",'Tablas Guayaquil'!H137,'Tablas Resto de Ecuador'!H137) -> 957.71 | I137: =IF('INGRESO DE DATOS'!$G$21="Guayas/Santa Elena",'Tablas Guayaquil'!I137,'Tablas Resto de Ecuador'!I137) -> 682.905
A138: 80 | B138: o más | C138: =IF('INGRESO DE DATOS'!$G$21="Guayas/Santa Elena",'Tablas Guayaquil'!C138,'Tablas Resto de Ecuador'!C138) -> 3389.173333 | D138: =IF('INGRESO DE DATOS'!$G$21="Guayas/Santa Elena",'Tablas Guayaquil'!D138,'Tablas Resto de Ecuador'!D138) -> 2967.47 | E138: =IF('INGRESO DE DATOS'!$G$21="Guayas/Santa Elena",'Tablas Guayaquil'!E138,'Tablas Resto de Ecuador'!E138) -> 2641.431667 | F138: =IF('INGRESO DE DATOS'!$G$21="Guayas/Santa Elena",'Tablas Guayaquil'!F138,'Tablas Resto de Ecuador'!F138) -> 2170.88 | G138: =IF('INGRESO DE DATOS'!$G$21="Guayas/Santa Elena",'Tablas Guayaquil'!G138,'Tablas Resto de Ecuador'!G138) -> 1486.12 | H138: =IF('INGRESO DE DATOS'!$G$21="Guayas/Santa Elena",'Tablas Guayaquil'!H138,'Tablas Resto de Ecuador'!H138) -> 1018.571667 | I138: =IF('INGRESO DE DATOS'!$G$21="Guayas/Santa Elena",'Tablas Guayaquil'!I138,'Tablas Resto de Ecuador'!I138) -> 720.8
A139: 1 | B139: Hijo | C139: =IF('INGRESO DE DATOS'!$G$21="Guayas/Santa Elena",'Tablas Guayaquil'!C139,'Tablas Resto de Ecuador'!C139) -> 130.0266667 | D139: =IF('INGRESO DE DATOS'!$G$21="Guayas/Santa Elena",'Tablas Guayaquil'!D139,'Tablas Resto de Ecuador'!D139) -> 113.0666667 | E139: =IF('INGRESO DE DATOS'!$G$21="Guayas/Santa Elena",'Tablas Guayaquil'!E139,'Tablas Resto de Ecuador'!E139) -> 81.885 | F139: =IF('INGRESO DE DATOS'!$G$21="Guayas/Santa Elena",'Tablas Guayaquil'!F139,'Tablas Resto de Ecuador'!F139) -> 56.09166667 | G139: =IF('INGRESO DE DATOS'!$G$21="Guayas/Santa Elena",'Tablas Guayaquil'!G139,'Tablas Resto de Ecuador'!G139) -> 30.65166667 | H139: =IF('INGRESO DE DATOS'!$G$21="Guayas/Santa Elena",'Tablas Guayaquil'!H139,'Tablas Resto de Ecuador'!H139) -> 17.49 | I139: =IF('INGRESO DE DATOS'!$G$21="Guayas/Santa Elena",'Tablas Guayaquil'!I139,'Tablas Resto de Ecuador'!I139) -> 10.07
A140: 2 | B140: Hijos | C140: =IF('INGRESO DE DATOS'!$G$21="Guayas/Santa Elena",'Tablas Guayaquil'!C140,'Tablas Resto de Ecuador'!C140) -> 153.7883333 | D140: =IF('INGRESO DE DATOS'!$G$21="Guayas/Santa Elena",'Tablas Guayaquil'!D140,'Tablas Resto de Ecuador'!D140) -> 133.56 | E140: =IF('INGRESO DE DATOS'!$G$21="Guayas/Santa Elena",'Tablas Guayaquil'!E140,'Tablas Resto de Ecuador'!E140) -> 96.81333333 | F140: =IF('INGRESO DE DATOS'!$G$21="Guayas/Santa Elena",'Tablas Guayaquil'!F140,'Tablas Resto de Ecuador'!F140) -> 66.42666667 | G140: =IF('INGRESO DE DATOS'!$G$21="Guayas/Santa Elena",'Tablas Guayaquil'!G140,'Tablas Resto de Ecuador'!G140) -> 36.12833333 | H140: =IF('INGRESO DE DATOS'!$G$21="Guayas/Santa Elena",'Tablas Guayaquil'!H140,'Tablas Resto de Ecuador'!H140) -> 20.75833333 | I140: =IF('INGRESO DE DATOS'!$G$21="Guayas/Santa Elena",'Tablas Guayaquil'!I140,'Tablas Resto de Ecuador'!I140) -> 11.83666667
A141: 3 | B141: Hijos o más | C141: =IF('INGRESO DE DATOS'!$G$21="Guayas/Santa Elena",'Tablas Guayaquil'!C141,'Tablas Resto de Ecuador'!C141) -> 212.8833333 | D141: =IF('INGRESO DE DATOS'!$G$21="Guayas/Santa Elena",'Tablas Guayaquil'!D141,'Tablas Resto de Ecuador'!D141) -> 184.97 | E141: =IF('INGRESO DE DATOS'!$G$21="Guayas/Santa Elena",'Tablas Guayaquil'!E141,'Tablas Resto de Ecuador'!E141) -> 134.09 | F141: =IF('INGRESO DE DATOS'!$G$21="Guayas/Santa Elena",'Tablas Guayaquil'!F141,'Tablas Resto de Ecuador'!F141) -> 91.955 | G141: =IF('INGRESO DE DATOS'!$G$21="Guayas/Santa Elena",'Tablas Guayaquil'!G141,'Tablas Resto de Ecuador'!G141) -> 50.085 | H141: =IF('INGRESO DE DATOS'!$G$21="Guayas/Santa Elena",'Tablas Guayaquil'!H141,'Tablas Resto de Ecuador'!H141) -> 28.62 | I141: =IF('INGRESO DE DATOS'!$G$21="Guayas/Santa Elena",'Tablas Guayaquil'!I141,'Tablas Resto de Ecuador'!I141) -> 16.51833333
A143: FLEX 100
A144: TARIFAS ANUALES
A145: EDAD
C146: F100-1 | D146: F100-2 | E146: F100-3 | F146: F100-4 | G146: F100-5
A147: 18 | C147: =IF('INGRESO DE DATOS'!$G$21="Guayas/Santa Elena",'Tablas Guayaquil'!C147,'Tablas Resto de Ecuador'!C147) -> 2825 | D147: =IF('INGRESO DE DATOS'!$G$21="Guayas/Santa Elena",'Tablas Guayaquil'!D147,'Tablas Resto de Ecuador'!D147) -> 2768 | E147: =IF('INGRESO DE DATOS'!$G$21="Guayas/Santa Elena",'Tablas Guayaquil'!E147,'Tablas Resto de Ecuador'!E147) -> 2614 | F147: =IF('INGRESO DE DATOS'!$G$21="Guayas/Santa Elena",'Tablas Guayaquil'!F147,'Tablas Resto de Ecuador'!F147) -> 2385 | G147: =IF('INGRESO DE DATOS'!$G$21="Guayas/Santa Elena",'Tablas Guayaquil'!G147,'Tablas Resto de Ecuador'!G147) -> 1846
A148: 19 | C148: =IF('INGRESO DE DATOS'!$G$21="Guayas/Santa Elena",'Tablas Guayaquil'!C148,'Tablas Resto de Ecuador'!C148) -> 2879 | D148: =IF('INGRESO DE DATOS'!$G$21="Guayas/Santa Elena",'Tablas Guayaquil'!D148,'Tablas Resto de Ecuador'!D148) -> 2822 | E148: =IF('INGRESO DE DATOS'!$G$21="Guayas/Santa Elena",'Tablas Guayaquil'!E148,'Tablas Resto de Ecuador'!E148) -> 2661 | F148: =IF('INGRESO DE DATOS'!$G$21="Guayas/Santa Elena",'Tablas Guayaquil'!F148,'Tablas Resto de Ecuador'!F148) -> 2428 | G148: =IF('INGRESO DE DATOS'!$G$21="Guayas/Santa Elena",'Tablas Guayaquil'!G148,'Tablas Resto de Ecuador'!G148) -> 1884
A149: 20 | C149: =IF('INGRESO DE DATOS'!$G$21="Guayas/Santa Elena",'Tablas Guayaquil'!C149,'Tablas Resto de Ecuador'!C149) -> 2927 | D149: =IF('INGRESO DE DATOS'!$G$21="Guayas/Santa Elena",'Tablas Guayaquil'!D149,'Tablas Resto de Ecuador'!D149) -> 2862 | E149: =IF('INGRESO DE DATOS'!$G$21="Guayas/Santa Elena",'Tablas Guayaquil'!E149,'Tablas Resto de Ecuador'!E149) -> 2703 | F149: =IF('INGRESO DE DATOS'!$G$21="Guayas/Santa Elena",'Tablas Guayaquil'!F149,'Tablas Resto de Ecuador'!F149) -> 2463 | G149: =IF('INGRESO DE DATOS'!$G$21="Guayas/Santa Elena",'Tablas Guayaquil'!G149,'Tablas Resto de Ecuador'!G149) -> 1919
A150: 21 | C150: =IF('INGRESO DE DATOS'!$G$21="Guayas/Santa Elena",'Tablas Guayaquil'!C150,'Tablas Resto de Ecuador'!C150) -> 2975 | D150: =IF('INGRESO DE DATOS'!$G$21="Guayas/Santa Elena",'Tablas Guayaquil'!D150,'Tablas Resto de Ecuador'!D150) -> 2916 | E150: =IF('INGRESO DE DATOS'!$G$21="Guayas/Santa Elena",'Tablas Guayaquil'!E150,'Tablas Resto de Ecuador'!E150) -> 2746 | F150: =IF('INGRESO DE DATOS'!$G$21="Guayas/Santa Elena",'Tablas Guayaquil'!F150,'Tablas Resto de Ecuador'!F150) -> 2503 | G150: =IF('INGRESO DE DATOS'!$G$21="Guayas/Santa Elena",'Tablas Guayaquil'!G150,'Tablas Resto de Ecuador'!G150) -> 1962
A151: 22 | C151: =IF('INGRESO DE DATOS'!$G$21="Guayas/Santa Elena",'Tablas Guayaquil'!C151,'Tablas Resto de Ecuador'!C151) -> 3022 | D151: =IF('INGRESO DE DATOS'!$G$21="Guayas/Santa Elena",'Tablas Guayaquil'!D151,'Tablas Resto de Ecuador'!D151) -> 2972 | E151: =IF('INGRESO DE DATOS'!$G$21="Guayas/Santa Elena",'Tablas Guayaquil'!E151,'Tablas Resto de Ecuador'!E151) -> 2794 | F151: =IF('INGRESO DE DATOS'!$G$21="Guayas/Santa Elena",'Tablas Guayaquil'!F151,'Tablas Resto de Ecuador'!F151) -> 2552 | G151: =IF('INGRESO DE DATOS'!$G$21="Guayas/Santa Elena",'Tablas Guayaquil'!G151,'Tablas Resto de Ecuador'!G151) -> 2004
A152: 23 | C152: =IF('INGRESO DE DATOS'!$G$21="Guayas/Santa Elena",'Tablas Guayaquil'!C152,'Tablas Resto de Ecuador'!C152) -> 3079 | D152: =IF('INGRESO DE DATOS'!$G$21="Guayas/Santa Elena",'Tablas Guayaquil'!D152,'Tablas Resto de Ecuador'!D152) -> 3014 | E152: =IF('INGRESO DE DATOS'!$G$21="Guayas/Santa Elena",'Tablas Guayaquil'!E152,'Tablas Resto de Ecuador'!E152) -> 2842 | F152: =IF('INGRESO DE DATOS'!$G$21="Guayas/Santa Elena",'Tablas Guayaquil'!F152,'Tablas Resto de Ecuador'!F152) -> 2589 | G152: =IF('INGRESO DE DATOS'!$G$21="Guayas/Santa Elena",'Tablas Guayaquil'!G152,'Tablas Resto de Ecuador'!G152) -> 2045
A153: 24 | C153: =IF('INGRESO DE DATOS'!$G$21="Guayas/Santa Elena",'Tablas Guayaquil'!C153,'Tablas Resto de Ecuador'!C153) -> 3130 | D153: =IF('INGRESO DE DATOS'!$G$21="Guayas/Santa Elena",'Tablas Guayaquil'!D153,'Tablas Resto de Ecuador'!D153) -> 3066 | E153: =IF('INGRESO DE DATOS'!$G$21="Guayas/Santa Elena",'Tablas Guayaquil'!E153,'Tablas Resto de Ecuador'!E153) -> 2890 | F153: =IF('INGRESO DE DATOS'!$G$21="Guayas/Santa Elena",'Tablas Guayaquil'!F153,'Tablas Resto de Ecuador'!F153) -> 2634 | G153: =IF('INGRESO DE DATOS'!$G$21="Guayas/Santa Elena",'Tablas Guayaquil'!G153,'Tablas Resto de Ecuador'!G153) -> 2086
A154: 25 | C154: =IF('INGRESO DE DATOS'!$G$21="Guayas/Santa Elena",'Tablas Guayaquil'!C154,'Tablas Resto de Ecuador'!C154) -> 3177 | D154: =IF('INGRESO DE DATOS'!$G$21="Guayas/Santa Elena",'Tablas Guayaquil'!D154,'Tablas Resto de Ecuador'!D154) -> 3113 | E154: =IF('INGRESO DE DATOS'!$G$21="Guayas/Santa Elena",'Tablas Guayaquil'!E154,'Tablas Resto de Ecuador'!E154) -> 2929 | F154: =IF('INGRESO DE DATOS'!$G$21="Guayas/Santa Elena",'Tablas Guayaquil'!F154,'Tablas Resto de Ecuador'!F154) -> 2680 | G154: =IF('INGRESO DE DATOS'!$G$21="Guayas/Santa Elena",'Tablas Guayaquil'!G154,'Tablas Resto de Ecuador'!G154) -> 2135
A155: 26 | C155: =IF('INGRESO DE DATOS'!$G$21="Guayas/Santa Elena",'Tablas Guayaquil'!C155,'Tablas Resto de Ecuador'!C155) -> 3229 | D155: =IF('INGRESO DE DATOS'!$G$21="Guayas/Santa Elena",'Tablas Guayaquil'!D155,'Tablas Resto de Ecuador'!D155) -> 3164 | E155: =IF('INGRESO DE DATOS'!$G$21="Guayas/Santa Elena",'Tablas Guayaquil'!E155,'Tablas Resto de Ecuador'!E155) -> 2982 | F155: =IF('INGRESO DE DATOS'!$G$21="Guayas/Santa Elena",'Tablas Guayaquil'!F155,'Tablas Resto de Ecuador'!F155) -> 2718 | G155: =IF('INGRESO DE DATOS'!$G$21="Guayas/Santa Elena",'Tablas Guayaquil'!G155,'Tablas Resto de Ecuador'!G155) -> 2171
A156: 27 | C156: =IF('INGRESO DE DATOS'!$G$21="Guayas/Santa Elena",'Tablas Guayaquil'!C156,'Tablas Resto de Ecuador'!C156) -> 3274 | D156: =IF('INGRESO DE DATOS'!$G$21="Guayas/Santa Elena",'Tablas Guayaquil'!D156,'Tablas Resto de Ecuador'!D156) -> 3211 | E156: =IF('INGRESO DE DATOS'!$G$21="Guayas/Santa Elena",'Tablas Guayaquil'!E156,'Tablas Resto de Ecuador'!E156) -> 3022 | F156: =IF('INGRESO DE DATOS'!$G$21="Guayas/Santa Elena",'Tablas Guayaquil'!F156,'Tablas Resto de Ecuador'!F156) -> 2762 | G156: =IF('INGRESO DE DATOS'!$G$21="Guayas/Santa Elena",'Tablas Guayaquil'!G156,'Tablas Resto de Ecuador'!G156) -> 2213
A157: 28 | C157: =IF('INGRESO DE DATOS'!$G$21="Guayas/Santa Elena",'Tablas Guayaquil'!C157,'Tablas Resto de Ecuador'!C157) -> 3335 | D157: =IF('INGRESO DE DATOS'!$G$21="Guayas/Santa Elena",'Tablas Guayaquil'!D157,'Tablas Resto de Ecuador'!D157) -> 3271 | E157: =IF('INGRESO DE DATOS'!$G$21="Guayas/Santa Elena",'Tablas Guayaquil'!E157,'Tablas Resto de Ecuador'!E157) -> 3083 | F157: =IF('INGRESO DE DATOS'!$G$21="Guayas/Santa Elena",'Tablas Guayaquil'!F157,'Tablas Resto de Ecuador'!F157) -> 2811 | G157: =IF('INGRESO DE DATOS'!$G$21="Guayas/Santa Elena",'Tablas Guayaquil'!G157,'Tablas Resto de Ecuador'!G157) -> 2267
A158: 29 | C158: =IF('INGRESO DE DATOS'!$G$21="Guayas/Santa Elena",'Tablas Guayaquil'!C158,'Tablas Resto de Ecuador'!C158) -> 3395 | D158: =IF('INGRESO DE DATOS'!$G$21="Guayas/Santa Elena",'Tablas Guayaquil'!D158,'Tablas Resto de Ecuador'!D158) -> 3328 | E158: =IF('INGRESO DE DATOS'!$G$21="Guayas/Santa Elena",'Tablas Guayaquil'!E158,'Tablas Resto de Ecuador'!E158) -> 3136 | F158: =IF('INGRESO DE DATOS'!$G$21="Guayas/Santa Elena",'Tablas Guayaquil'!F158,'Tablas Resto de Ecuador'!F158) -> 2857 | G158: =IF('INGRESO DE DATOS'!$G$21="Guayas/Santa Elena",'Tablas Guayaquil'!G158,'Tablas Resto de Ecuador'!G158) -> 2325
A159: 30 | C159: =IF('INGRESO DE DATOS'!$G$21="Guayas/Santa Elena",'Tablas Guayaquil'!C159,'Tablas Resto de Ecuador'!C159) -> 3457 | D159: =IF('INGRESO DE DATOS'!$G$21="Guayas/Santa Elena",'Tablas Guayaquil'!D159,'Tablas Resto de Ecuador'!D159) -> 3385 | E159: =IF('INGRESO DE DATOS'!$G$21="Guayas/Santa Elena",'Tablas Guayaquil'!E159,'Tablas Resto de Ecuador'!E159) -> 3190 | F159: =IF('INGRESO DE DATOS'!$G$21="Guayas/Santa Elena",'Tablas Guayaquil'!F159,'Tablas Resto de Ecuador'!F159) -> 2912 | G159: =IF('INGRESO DE DATOS'!$G$21="Guayas/Santa Elena",'Tablas Guayaquil'!G159,'Tablas Resto de Ecuador'!G159) -> 2375
A160: 31 | C160: =IF('INGRESO DE DATOS'!$G$21="Guayas/Santa Elena",'Tablas Guayaquil'!C160,'Tablas Resto de Ecuador'!C160) -> 3512 | D160: =IF('INGRESO DE DATOS'!$G$21="Guayas/Santa Elena",'Tablas Guayaquil'!D160,'Tablas Resto de Ecuador'!D160) -> 3440 | E160: =IF('INGRESO DE DATOS'!$G$21="Guayas/Santa Elena",'Tablas Guayaquil'!E160,'Tablas Resto de Ecuador'!E160) -> 3241 | F160: =IF('INGRESO DE DATOS'!$G$21="Guayas/Santa Elena",'Tablas Guayaquil'!F160,'Tablas Resto de Ecuador'!F160) -> 2958 | G160: =IF('INGRESO DE DATOS'!$G$21="Guayas/Santa Elena",'Tablas Guayaquil'!G160,'Tablas Resto de Ecuador'!G160) -> 2428
A161: 32 | C161: =IF('INGRESO DE DATOS'!$G$21="Guayas/Santa Elena",'Tablas Guayaquil'!C161,'Tablas Resto de Ecuador'!C161) -> 3574 | D161: =IF('INGRESO DE DATOS'!$G$21="Guayas/Santa Elena",'Tablas Guayaquil'!D161,'Tablas Resto de Ecuador'!D161) -> 3499 | E161: =IF('INGRESO DE DATOS'!$G$21="Guayas/Santa Elena",'Tablas Guayaquil'!E161,'Tablas Resto de Ecuador'!E161) -> 3301 | F161: =IF('INGRESO DE DATOS'!$G$21="Guayas/Santa Elena",'Tablas Guayaquil'!F161,'Tablas Resto de Ecuador'!F161) -> 3008 | G161: =IF('INGRESO DE DATOS'!$G$21="Guayas/Santa Elena",'Tablas Guayaquil'!G161,'Tablas Resto de Ecuador'!G161) -> 2477
A162: 33 | C162: =IF('INGRESO DE DATOS'!$G$21="Guayas/Santa Elena",'Tablas Guayaquil'!C162,'Tablas Resto de Ecuador'!C162) -> 3669 | D162: =IF('INGRESO DE DATOS'!$G$21="Guayas/Santa Elena",'Tablas Guayaquil'!D162,'Tablas Resto de Ecuador'!D162) -> 3595 | E162: =IF('INGRESO DE DATOS'!$G$21="Guayas/Santa Elena",'Tablas Guayaquil'!E162,'Tablas Resto de Ecuador'!E162) -> 3389 | F162: =IF('INGRESO DE DATOS'!$G$21="Guayas/Santa Elena",'Tablas Guayaquil'!F162,'Tablas Resto de Ecuador'!F162) -> 3086 | G162: =IF('INGRESO DE DATOS'!$G$21="Guayas/Santa Elena",'Tablas Guayaquil'!G162,'Tablas Resto de Ecuador'!G162) -> 2555
A163: 34 | C163: =IF('INGRESO DE DATOS'!$G$21="Guayas/Santa Elena",'Tablas Guayaquil'!C163,'Tablas Resto de Ecuador'!C163) -> 3767 | D163: =IF('INGRESO DE DATOS'!$G$21="Guayas/Santa Elena",'Tablas Guayaquil'!D163,'Tablas Resto de Ecuador'!D163) -> 3693 | E163: =IF('INGRESO DE DATOS'!$G$21="Guayas/Santa Elena",'Tablas Guayaquil'!E163,'Tablas Resto de Ecuador'!E163) -> 3478 | F163: =IF('INGRESO DE DATOS'!$G$21="Guayas/Santa Elena",'Tablas Guayaquil'!F163,'Tablas Resto de Ecuador'!F163) -> 3172 | G163: =IF('INGRESO DE DATOS'!$G$21="Guayas/Santa Elena",'Tablas Guayaquil'!G163,'Tablas Resto de Ecuador'!G163) -> 2630
A164: 35 | C164: =IF('INGRESO DE DATOS'!$G$21="Guayas/Santa Elena",'Tablas Guayaquil'!C164,'Tablas Resto de Ecuador'!C164) -> 3865 | D164: =IF('INGRESO DE DATOS'!$G$21="Guayas/Santa Elena",'Tablas Guayaquil'!D164,'Tablas Resto de Ecuador'!D164) -> 3788 | E164: =IF('INGRESO DE DATOS'!$G$21="Guayas/Santa Elena",'Tablas Guayaquil'!E164,'Tablas Resto de Ecuador'!E164) -> 3572 | F164: =IF('INGRESO DE DATOS'!$G$21="Guayas/Santa Elena",'Tablas Guayaquil'!F164,'Tablas Resto de Ecuador'!F164) -> 3255 | G164: =IF('INGRESO DE DATOS'!$G$21="Guayas/Santa Elena",'Tablas Guayaquil'!G164,'Tablas Resto de Ecuador'!G164) -> 2703
A165: 36 | C165: =IF('INGRESO DE DATOS'!$G$21="Guayas/Santa Elena",'Tablas Guayaquil'!C165,'Tablas Resto de Ecuador'!C165) -> 3961 | D165: =IF('INGRESO DE DATOS'!$G$21="Guayas/Santa Elena",'Tablas Guayaquil'!D165,'Tablas Resto de Ecuador'!D165) -> 3884 | E165: =IF('INGRESO DE DATOS'!$G$21="Guayas/Santa Elena",'Tablas Guayaquil'!E165,'Tablas Resto de Ecuador'!E165) -> 3661 | F165: =IF('INGRESO DE DATOS'!$G$21="Guayas/Santa Elena",'Tablas Guayaquil'!F165,'Tablas Resto de Ecuador'!F165) -> 3335 | G165: =IF('INGRESO DE DATOS'!$G$21="Guayas/Santa Elena",'Tablas Guayaquil'!G165,'Tablas Resto de Ecuador'!G165) -> 2784
A166: 37 | C166: =IF('INGRESO DE DATOS'!$G$21="Guayas/Santa Elena",'Tablas Guayaquil'!C166,'Tablas Resto de Ecuador'!C166) -> 4056 | D166: =IF('INGRESO DE DATOS'!$G$21="Guayas/Santa Elena",'Tablas Guayaquil'!D166,'Tablas Resto de Ecuador'!D166) -> 3979 | E166: =IF('INGRESO DE DATOS'!$G$21="Guayas/Santa Elena",'Tablas Guayaquil'!E166,'Tablas Resto de Ecuador'!E166) -> 3751 | F166: =IF('INGRESO DE DATOS'!$G$21="Guayas/Santa Elena",'Tablas Guayaquil'!F166,'Tablas Resto de Ecuador'!F166) -> 3422 | G166: =IF('INGRESO DE DATOS'!$G$21="Guayas/Santa Elena",'Tablas Guayaquil'!G166,'Tablas Resto de Ecuador'!G166) -> 2856
A167: 38 | C167: =IF('INGRESO DE DATOS'!$G$21="Guayas/Santa Elena",'Tablas Guayaquil'!C167,'Tablas Resto de Ecuador'!C167) -> 4158 | D167: =IF('INGRESO DE DATOS'!$G$21="Guayas/Santa Elena",'Tablas Guayaquil'!D167,'Tablas Resto de Ecuador'!D167) -> 4077 | E167: =IF('INGRESO DE DATOS'!$G$21="Guayas/Santa Elena",'Tablas Guayaquil'!E167,'Tablas Resto de Ecuador'!E167) -> 3845 | F167: =IF('INGRESO DE DATOS'!$G$21="Guayas/Santa Elena",'Tablas Guayaquil'!F167,'Tablas Resto de Ecuador'!F167) -> 3503 | G167: =IF('INGRESO DE DATOS'!$G$21="Guayas/Santa Elena",'Tablas Guayaquil'!G167,'Tablas Resto de Ecuador'!G167) -> 2939
A168: 39 | C168: =IF('INGRESO DE DATOS'!$G$21="Guayas/Santa Elena",'Tablas Guayaquil'!C168,'Tablas Resto de Ecuador'!C168) -> 4260 | D168: =IF('INGRESO DE DATOS'!$G$21="Guayas/Santa Elena",'Tablas Guayaquil'!D168,'Tablas Resto de Ecuador'!D168) -> 4172 | E168: =IF('INGRESO DE DATOS'!$G$21="Guayas/Santa Elena",'Tablas Guayaquil'!E168,'Tablas Resto de Ecuador'!E168) -> 3933 | F168: =IF('INGRESO DE DATOS'!$G$21="Guayas/Santa Elena",'Tablas Guayaquil'!F168,'Tablas Resto de Ecuador'!F168) -> 3590 | G168: =IF('INGRESO DE DATOS'!$G$21="Guayas/Santa Elena",'Tablas Guayaquil'!G168,'Tablas Resto de Ecuador'!G168) -> 3017
A169: 40 | C169: =IF('INGRESO DE DATOS'!$G$21="Guayas/Santa Elena",'Tablas Guayaquil'!C169,'Tablas Resto de Ecuador'!C169) -> 4361 | D169: =IF('INGRESO DE DATOS'!$G$21="Guayas/Santa Elena",'Tablas Guayaquil'!D169,'Tablas Resto de Ecuador'!D169) -> 4272 | E169: =IF('INGRESO DE DATOS'!$G$21="Guayas/Santa Elena",'Tablas Guayaquil'!E169,'Tablas Resto de Ecuador'!E169) -> 4027 | F169: =IF('INGRESO DE DATOS'!$G$21="Guayas/Santa Elena",'Tablas Guayaquil'!F169,'Tablas Resto de Ecuador'!F169) -> 3669 | G169: =IF('INGRESO DE DATOS'!$G$21="Guayas/Santa Elena",'Tablas Guayaquil'!G169,'Tablas Resto de Ecuador'!G169) -> 3100
A170: 41 | C170: =IF('INGRESO DE DATOS'!$G$21="Guayas/Santa Elena",'Tablas Guayaquil'!C170,'Tablas Resto de Ecuador'!C170) -> 4462 | D170: =IF('INGRESO DE DATOS'!$G$21="Guayas/Santa Elena",'Tablas Guayaquil'!D170,'Tablas Resto de Ecuador'!D170) -> 4372 | E170: =IF('INGRESO DE DATOS'!$G$21="Guayas/Santa Elena",'Tablas Guayaquil'!E170,'Tablas Resto de Ecuador'!E170) -> 4119 | F170: =IF('INGRESO DE DATOS'!$G$21="Guayas/Santa Elena",'Tablas Guayaquil'!F170,'Tablas Resto de Ecuador'!F170) -> 3754 | G170: =IF('INGRESO DE DATOS'!$G$21="Guayas/Santa Elena",'Tablas Guayaquil'!G170,'Tablas Resto de Ecuador'!G170) -> 3178
A171: 42 | C171: =IF('INGRESO DE DATOS'!$G$21="Guayas/Santa Elena",'Tablas Guayaquil'!C171,'Tablas Resto de Ecuador'!C171) -> 4560 | D171: =IF('INGRESO DE DATOS'!$G$21="Guayas/Santa Elena",'Tablas Guayaquil'!D171,'Tablas Resto de Ecuador'!D171) -> 4468 | E171: =IF('INGRESO DE DATOS'!$G$21="Guayas/Santa Elena",'Tablas Guayaquil'!E171,'Tablas Resto de Ecuador'!E171) -> 4211 | F171: =IF('INGRESO DE DATOS'!$G$21="Guayas/Santa Elena",'Tablas Guayaquil'!F171,'Tablas Resto de Ecuador'!F171) -> 3835 | G171: =IF('INGRESO DE DATOS'!$G$21="Guayas/Santa Elena",'Tablas Guayaquil'!G171,'Tablas Resto de Ecuador'!G171) -> 3267
A172: 43 | C172: =IF('INGRESO DE DATOS'!$G$21="Guayas/Santa Elena",'Tablas Guayaquil'!C172,'Tablas Resto de Ecuador'!C172) -> 4739 | D172: =IF('INGRESO DE DATOS'!$G$21="Guayas/Santa Elena",'Tablas Guayaquil'!D172,'Tablas Resto de Ecuador'!D172) -> 4645 | E172: =IF('INGRESO DE DATOS'!$G$21="Guayas/Santa Elena",'Tablas Guayaquil'!E172,'Tablas Resto de Ecuador'!E172) -> 4376 | F172: =IF('INGRESO DE DATOS'!$G$21="Guayas/Santa Elena",'Tablas Guayaquil'!F172,'Tablas Resto de Ecuador'!F172) -> 3994 | G172: =IF('INGRESO DE DATOS'!$G$21="Guayas/Santa Elena",'Tablas Guayaquil'!G172,'Tablas Resto de Ecuador'!G172) -> 3401
A173: 44 | C173: =IF('INGRESO DE DATOS'!$G$21="Guayas/Santa Elena",'Tablas Guayaquil'!C173,'Tablas Resto de Ecuador'!C173) -> 4922 | D173: =IF('INGRESO DE DATOS'!$G$21="Guayas/Santa Elena",'Tablas Guayaquil'!D173,'Tablas Resto de Ecuador'!D173) -> 4823 | E173: =IF('INGRESO DE DATOS'!$G$21="Guayas/Santa Elena",'Tablas Guayaquil'!E173,'Tablas Resto de Ecuador'!E173) -> 4543 | F173: =IF('INGRESO DE DATOS'!$G$21="Guayas/Santa Elena",'Tablas Guayaquil'!F173,'Tablas Resto de Ecuador'!F173) -> 4146 | G173: =IF('INGRESO DE DATOS'!$G$21="Guayas/Santa Elena",'Tablas Guayaquil'!G173,'Tablas Resto de Ecuador'!G173) -> 3551
A174: 45 | C174: =IF('INGRESO DE DATOS'!$G$21="Guayas/Santa Elena",'Tablas Guayaquil'!C174,'Tablas Resto de Ecuador'!C174) -> 5109 | D174: =IF('INGRESO DE DATOS'!$G$21="Guayas/Santa Elena",'Tablas Guayaquil'!D174,'Tablas Resto de Ecuador'!D174) -> 4998 | E174: =IF('INGRESO DE DATOS'!$G$21="Guayas/Santa Elena",'Tablas Guayaquil'!E174,'Tablas Resto de Ecuador'!E174) -> 4711 | F174: =IF('INGRESO DE DATOS'!$G$21="Guayas/Santa Elena",'Tablas Guayaquil'!F174,'Tablas Resto de Ecuador'!F174) -> 4298 | G174: =IF('INGRESO DE DATOS'!$G$21="Guayas/Santa Elena",'Tablas Guayaquil'!G174,'Tablas Resto de Ecuador'!G174) -> 3694
A175: 46 | C175: =IF('INGRESO DE DATOS'!$G$21="Guayas/Santa Elena",'Tablas Guayaquil'!C175,'Tablas Resto de Ecuador'!C175) -> 5279 | D175: =IF('INGRESO DE DATOS'!$G$21="Guayas/Santa Elena",'Tablas Guayaquil'!D175,'Tablas Resto de Ecuador'!D175) -> 5181 | E175: =IF('INGRESO DE DATOS'!$G$21="Guayas/Santa Elena",'Tablas Guayaquil'!E175,'Tablas Resto de Ecuador'!E175) -> 4879 | F175: =IF('INGRESO DE DATOS'!$G$21="Guayas/Santa Elena",'Tablas Guayaquil'!F175,'Tablas Resto de Ecuador'!F175) -> 4451 | G175: =IF('INGRESO DE DATOS'!$G$21="Guayas/Santa Elena",'Tablas Guayaquil'!G175,'Tablas Resto de Ecuador'!G175) -> 3832
A176: 47 | C176: =IF('INGRESO DE DATOS'!$G$21="Guayas/Santa Elena",'Tablas Guayaquil'!C176,'Tablas Resto de Ecuador'!C176) -> 5465 | D176: =IF('INGRESO DE DATOS'!$G$21="Guayas/Santa Elena",'Tablas Guayaquil'!D176,'Tablas Resto de Ecuador'!D176) -> 5354 | E176: =IF('INGRESO DE DATOS'!$G$21="Guayas/Santa Elena",'Tablas Guayaquil'!E176,'Tablas Resto de Ecuador'!E176) -> 5049 | F176: =IF('INGRESO DE DATOS'!$G$21="Guayas/Santa Elena",'Tablas Guayaquil'!F176,'Tablas Resto de Ecuador'!F176) -> 4604 | G176: =IF('INGRESO DE DATOS'!$G$21="Guayas/Santa Elena",'Tablas Guayaquil'!G176,'Tablas Resto de Ecuador'!G176) -> 3979
A177: 48 | C177: =IF('INGRESO DE DATOS'!$G$21="Guayas/Santa Elena",'Tablas Guayaquil'!C177,'Tablas Resto de Ecuador'!C177) -> 5659 | D177: =IF('INGRESO DE DATOS'!$G$21="Guayas/Santa Elena",'Tablas Guayaquil'!D177,'Tablas Resto de Ecuador'!D177) -> 5542 | E177: =IF('INGRESO DE DATOS'!$G$21="Guayas/Santa Elena",'Tablas Guayaquil'!E177,'Tablas Resto de Ecuador'!E177) -> 5223 | F177: =IF('INGRESO DE DATOS'!$G$21="Guayas/Santa Elena",'Tablas Guayaquil'!F177,'Tablas Resto de Ecuador'!F177) -> 4765 | G177: =IF('INGRESO DE DATOS'!$G$21="Guayas/Santa Elena",'Tablas Guayaquil'!G177,'Tablas Resto de Ecuador'!G177) -> 4123
A178: 49 | C178: =IF('INGRESO DE DATOS'!$G$21="Guayas/Santa Elena",'Tablas Guayaquil'!C178,'Tablas Resto de Ecuador'!C178) -> 5847 | D178: =IF('INGRESO DE DATOS'!$G$21="Guayas/Santa Elena",'Tablas Guayaquil'!D178,'Tablas Resto de Ecuador'!D178) -> 5732 | E178: =IF('INGRESO DE DATOS'!$G$21="Guayas/Santa Elena",'Tablas Guayaquil'!E178,'Tablas Resto de Ecuador'!E178) -> 5400 | F178: =IF('INGRESO DE DATOS'!$G$21="Guayas/Santa Elena",'Tablas Guayaquil'!F178,'Tablas Resto de Ecuador'!F178) -> 4923 | G178: =IF('INGRESO DE DATOS'!$G$21="Guayas/Santa Elena",'Tablas Guayaquil'!G178,'Tablas Resto de Ecuador'!G178) -> 4278
A179: 50 | C179: =IF('INGRESO DE DATOS'!$G$21="Guayas/Santa Elena",'Tablas Guayaquil'!C179,'Tablas Resto de Ecuador'!C179) -> 6037 | D179: =IF('INGRESO DE DATOS'!$G$21="Guayas/Santa Elena",'Tablas Guayaquil'!D179,'Tablas Resto de Ecuador'!D179) -> 5922 | E179: =IF('INGRESO DE DATOS'!$G$21="Guayas/Santa Elena",'Tablas Guayaquil'!E179,'Tablas Resto de Ecuador'!E179) -> 5578 | F179: =IF('INGRESO DE DATOS'!$G$21="Guayas/Santa Elena",'Tablas Guayaquil'!F179,'Tablas Resto de Ecuador'!F179) -> 5086 | G179: =IF('INGRESO DE DATOS'!$G$21="Guayas/Santa Elena",'Tablas Guayaquil'!G179,'Tablas Resto de Ecuador'!G179) -> 4429
A180: 51 | C180: =IF('INGRESO DE DATOS'!$G$21="Guayas/Santa Elena",'Tablas Guayaquil'!C180,'Tablas Resto de Ecuador'!C180) -> 6227 | D180: =IF('INGRESO DE DATOS'!$G$21="Guayas/Santa Elena",'Tablas Guayaquil'!D180,'Tablas Resto de Ecuador'!D180) -> 6109 | E180: =IF('INGRESO DE DATOS'!$G$21="Guayas/Santa Elena",'Tablas Guayaquil'!E180,'Tablas Resto de Ecuador'!E180) -> 5754 | F180: =IF('INGRESO DE DATOS'!$G$21="Guayas/Santa Elena",'Tablas Guayaquil'!F180,'Tablas Resto de Ecuador'!F180) -> 5249 | G180: =IF('INGRESO DE DATOS'!$G$21="Guayas/Santa Elena",'Tablas Guayaquil'!G180,'Tablas Resto de Ecuador'!G180) -> 4579
A181: 52 | C181: =IF('INGRESO DE DATOS'!$G$21="Guayas/Santa Elena",'Tablas Guayaquil'!C181,'Tablas Resto de Ecuador'!C181) -> 6421 | D181: =IF('INGRESO DE DATOS'!$G$21="Guayas/Santa Elena",'Tablas Guayaquil'!D181,'Tablas Resto de Ecuador'!D181) -> 6291 | E181: =IF('INGRESO DE DATOS'!$G$21="Guayas/Santa Elena",'Tablas Guayaquil'!E181,'Tablas Resto de Ecuador'!E181) -> 5932 | F181: =IF('INGRESO DE DATOS'!$G$21="Guayas/Santa Elena",'Tablas Guayaquil'!F181,'Tablas Resto de Ecuador'!F181) -> 5411 | G181: =IF('INGRESO DE DATOS'!$G$21="Guayas/Santa Elena",'Tablas Guayaquil'!G181,'Tablas Resto de Ecuador'!G181) -> 4729
A182: 53 | C182: =IF('INGRESO DE DATOS'!$G$21="Guayas/Santa Elena",'Tablas Guayaquil'!C182,'Tablas Resto de Ecuador'!C182) -> 6647 | D182: =IF('INGRESO DE DATOS'!$G$21="Guayas/Santa Elena",'Tablas Guayaquil'!D182,'Tablas Resto de Ecuador'!D182) -> 6519 | E182: =IF('INGRESO DE DATOS'!$G$21="Guayas/Santa Elena",'Tablas Guayaquil'!E182,'Tablas Resto de Ecuador'!E182) -> 6142 | F182: =IF('INGRESO DE DATOS'!$G$21="Guayas/Santa Elena",'Tablas Guayaquil'!F182,'Tablas Resto de Ecuador'!F182) -> 5600 | G182: =IF('INGRESO DE DATOS'!$G$21="Guayas/Santa Elena",'Tablas Guayaquil'!G182,'Tablas Resto de Ecuador'!G182) -> 4916
A183: 54 | C183: =IF('INGRESO DE DATOS'!$G$21="Guayas/Santa Elena",'Tablas Guayaquil'!C183,'Tablas Resto de Ecuador'!C183) -> 6875 | D183: =IF('INGRESO DE DATOS'!$G$21="Guayas/Santa Elena",'Tablas Guayaquil'!D183,'Tablas Resto de Ecuador'!D183) -> 6742 | E183: =IF('INGRESO DE DATOS'!$G$21="Guayas/Santa Elena",'Tablas Guayaquil'!E183,'Tablas Resto de Ecuador'!E183) -> 6352 | F183: =IF('INGRESO DE DATOS'!$G$21="Guayas/Santa Elena",'Tablas Guayaquil'!F183,'Tablas Resto de Ecuador'!F183) -> 5794 | G183: =IF('INGRESO DE DATOS'!$G$21="Guayas/Santa Elena",'Tablas Guayaquil'!G183,'Tablas Resto de Ecuador'!G183) -> 5095
A184: 55 | C184: =IF('INGRESO DE DATOS'!$G$21="Guayas/Santa Elena",'Tablas Guayaquil'!C184,'Tablas Resto de Ecuador'!C184) -> 7099 | D184: =IF('INGRESO DE DATOS'!$G$21="Guayas/Santa Elena",'Tablas Guayaquil'!D184,'Tablas Resto de Ecuador'!D184) -> 6964 | E184: =IF('INGRESO DE DATOS'!$G$21="Guayas/Santa Elena",'Tablas Guayaquil'!E184,'Tablas Resto de Ecuador'!E184) -> 6565 | F184: =IF('INGRESO DE DATOS'!$G$21="Guayas/Santa Elena",'Tablas Guayaquil'!F184,'Tablas Resto de Ecuador'!F184) -> 5985 | G184: =IF('INGRESO DE DATOS'!$G$21="Guayas/Santa Elena",'Tablas Guayaquil'!G184,'Tablas Resto de Ecuador'!G184) -> 5277
A185: 56 | C185: =IF('INGRESO DE DATOS'!$G$21="Guayas/Santa Elena",'Tablas Guayaquil'!C185,'Tablas Resto de Ecuador'!C185) -> 7331 | D185: =IF('INGRESO DE DATOS'!$G$21="Guayas/Santa Elena",'Tablas Guayaquil'!D185,'Tablas Resto de Ecuador'!D185) -> 7186 | E185: =IF('INGRESO DE DATOS'!$G$21="Guayas/Santa Elena",'Tablas Guayaquil'!E185,'Tablas Resto de Ecuador'!E185) -> 6774 | F185: =IF('INGRESO DE DATOS'!$G$21="Guayas/Santa Elena",'Tablas Guayaquil'!F185,'Tablas Resto de Ecuador'!F185) -> 6178 | G185: =IF('INGRESO DE DATOS'!$G$21="Guayas/Santa Elena",'Tablas Guayaquil'!G185,'Tablas Resto de Ecuador'!G185) -> 5462
A186: 57 | C186: =IF('INGRESO DE DATOS'!$G$21="Guayas/Santa Elena",'Tablas Guayaquil'!C186,'Tablas Resto de Ecuador'!C186) -> 7557 | D186: =IF('INGRESO DE DATOS'!$G$21="Guayas/Santa Elena",'Tablas Guayaquil'!D186,'Tablas Resto de Ecuador'!D186) -> 7409 | E186: =IF('INGRESO DE DATOS'!$G$21="Guayas/Santa Elena",'Tablas Guayaquil'!E186,'Tablas Resto de Ecuador'!E186) -> 6977 | F186: =IF('INGRESO DE DATOS'!$G$21="Guayas/Santa Elena",'Tablas Guayaquil'!F186,'Tablas Resto de Ecuador'!F186) -> 6361 | G186: =IF('INGRESO DE DATOS'!$G$21="Guayas/Santa Elena",'Tablas Guayaquil'!G186,'Tablas Resto de Ecuador'!G186) -> 5644
A187: 58 | C187: =IF('INGRESO DE DATOS'!$G$21="Guayas/Santa Elena",'Tablas Guayaquil'!C187,'Tablas Resto de Ecuador'!C187) -> 7818 | D187: =IF('INGRESO DE DATOS'!$G$21="Guayas/Santa Elena",'Tablas Guayaquil'!D187,'Tablas Resto de Ecuador'!D187) -> 7667 | E187: =IF('INGRESO DE DATOS'!$G$21="Guayas/Santa Elena",'Tablas Guayaquil'!E187,'Tablas Resto de Ecuador'!E187) -> 7197 | F187: =IF('INGRESO DE DATOS'!$G$21="Guayas/Santa Elena",'Tablas Guayaquil'!F187,'Tablas Resto de Ecuador'!F187) -> 6585 | G187: =IF('INGRESO DE DATOS'!$G$21="Guayas/Santa Elena",'Tablas Guayaquil'!G187,'Tablas Resto de Ecuador'!G187) -> 5883
A188: 59 | C188: =IF('INGRESO DE DATOS'!$G$21="Guayas/Santa Elena",'Tablas Guayaquil'!C188,'Tablas Resto de Ecuador'!C188) -> 8075 | D188: =IF('INGRESO DE DATOS'!$G$21="Guayas/Santa Elena",'Tablas Guayaquil'!D188,'Tablas Resto de Ecuador'!D188) -> 7917 | E188: =IF('INGRESO DE DATOS'!$G$21="Guayas/Santa Elena",'Tablas Guayaquil'!E188,'Tablas Resto de Ecuador'!E188) -> 7419 | F188: =IF('INGRESO DE DATOS'!$G$21="Guayas/Santa Elena",'Tablas Guayaquil'!F188,'Tablas Resto de Ecuador'!F188) -> 6804 | G188: =IF('INGRESO DE DATOS'!$G$21="Guayas/Santa Elena",'Tablas Guayaquil'!G188,'Tablas Resto de Ecuador'!G188) -> 6122
A189: 60 | C189: =IF('INGRESO DE DATOS'!$G$21="Guayas/Santa Elena",'Tablas Guayaquil'!C189,'Tablas Resto de Ecuador'!C189) -> 8342 | D189: =IF('INGRESO DE DATOS'!$G$21="Guayas/Santa Elena",'Tablas Guayaquil'!D189,'Tablas Resto de Ecuador'!D189) -> 8168 | E189: =IF('INGRESO DE DATOS'!$G$21="Guayas/Santa Elena",'Tablas Guayaquil'!E189,'Tablas Resto de Ecuador'!E189) -> 7637 | F189: =IF('INGRESO DE DATOS'!$G$21="Guayas/Santa Elena",'Tablas Guayaquil'!F189,'Tablas Resto de Ecuador'!F189) -> 7026 | G189: =IF('INGRESO DE DATOS'!$G$21="Guayas/Santa Elena",'Tablas Guayaquil'!G189,'Tablas Resto de Ecuador'!G189) -> 6361
A190: 61 | C190: =IF('INGRESO DE DATOS'!$G$21="Guayas/Santa Elena",'Tablas Guayaquil'!C190,'Tablas Resto de Ecuador'!C190) -> 8657 | D190: =IF('INGRESO DE DATOS'!$G$21="Guayas/Santa Elena",'Tablas Guayaquil'!D190,'Tablas Resto de Ecuador'!D190) -> 8484 | E190: =IF('INGRESO DE DATOS'!$G$21="Guayas/Santa Elena",'Tablas Guayaquil'!E190,'Tablas Resto de Ecuador'!E190) -> 7969 | F190: =IF('INGRESO DE DATOS'!$G$21="Guayas/Santa Elena",'Tablas Guayaquil'!F190,'Tablas Resto de Ecuador'!F190) -> 7291 | G190: =IF('INGRESO DE DATOS'!$G$21="Guayas/Santa Elena",'Tablas Guayaquil'!G190,'Tablas Resto de Ecuador'!G190) -> 6599
A191: 62 | C191: =IF('INGRESO DE DATOS'!$G$21="Guayas/Santa Elena",'Tablas Guayaquil'!C191,'Tablas Resto de Ecuador'!C191) -> 9045 | D191: =IF('INGRESO DE DATOS'!$G$21="Guayas/Santa Elena",'Tablas Guayaquil'!D191,'Tablas Resto de Ecuador'!D191) -> 8869 | E191: =IF('INGRESO DE DATOS'!$G$21="Guayas/Santa Elena",'Tablas Guayaquil'!E191,'Tablas Resto de Ecuador'!E191) -> 8357 | F191: =IF('INGRESO DE DATOS'!$G$21="Guayas/Santa Elena",'Tablas Guayaquil'!F191,'Tablas Resto de Ecuador'!F191) -> 7621 | G191: =IF('INGRESO DE DATOS'!$G$21="Guayas/Santa Elena",'Tablas Guayaquil'!G191,'Tablas Resto de Ecuador'!G191) -> 6899
A192: 63 | C192: =IF('INGRESO DE DATOS'!$G$21="Guayas/Santa Elena",'Tablas Guayaquil'!C192,'Tablas Resto de Ecuador'!C192) -> 9514 | D192: =IF('INGRESO DE DATOS'!$G$21="Guayas/Santa Elena",'Tablas Guayaquil'!D192,'Tablas Resto de Ecuador'!D192) -> 9321 | E192: =IF('INGRESO DE DATOS'!$G$21="Guayas/Santa Elena",'Tablas Guayaquil'!E192,'Tablas Resto de Ecuador'!E192) -> 8786 | F192: =IF('INGRESO DE DATOS'!$G$21="Guayas/Santa Elena",'Tablas Guayaquil'!F192,'Tablas Resto de Ecuador'!F192) -> 8008 | G192: =IF('INGRESO DE DATOS'!$G$21="Guayas/Santa Elena",'Tablas Guayaquil'!G192,'Tablas Resto de Ecuador'!G192) -> 7253
A193: 64 | C193: =IF('INGRESO DE DATOS'!$G$21="Guayas/Santa Elena",'Tablas Guayaquil'!C193,'Tablas Resto de Ecuador'!C193) -> 10065 | D193: =IF('INGRESO DE DATOS'!$G$21="Guayas/Santa Elena",'Tablas Guayaquil'!D193,'Tablas Resto de Ecuador'!D193) -> 9859 | E193: =IF('INGRESO DE DATOS'!$G$21="Guayas/Santa Elena",'Tablas Guayaquil'!E193,'Tablas Resto de Ecuador'!E193) -> 9295 | F193: =IF('INGRESO DE DATOS'!$G$21="Guayas/Santa Elena",'Tablas Guayaquil'!F193,'Tablas Resto de Ecuador'!F193) -> 8474 | G193: =IF('INGRESO DE DATOS'!$G$21="Guayas/Santa Elena",'Tablas Guayaquil'!G193,'Tablas Resto de Ecuador'!G193) -> 7669
A194: 65 | C194: =IF('INGRESO DE DATOS'!$G$21="Guayas/Santa Elena",'Tablas Guayaquil'!C194,'Tablas Resto de Ecuador'!C194) -> 10720 | D194: =IF('INGRESO DE DATOS'!$G$21="Guayas/Santa Elena",'Tablas Guayaquil'!D194,'Tablas Resto de Ecuador'!D194) -> 10500 | E194: =IF('INGRESO DE DATOS'!$G$21="Guayas/Santa Elena",'Tablas Guayaquil'!E194,'Tablas Resto de Ecuador'!E194) -> 9904 | F194: =IF('INGRESO DE DATOS'!$G$21="Guayas/Santa Elena",'Tablas Guayaquil'!F194,'Tablas Resto de Ecuador'!F194) -> 9029 | G194: =IF('INGRESO DE DATOS'!$G$21="Guayas/Santa Elena",'Tablas Guayaquil'!G194,'Tablas Resto de Ecuador'!G194) -> 8239
A195: 66 | C195: =IF('INGRESO DE DATOS'!$G$21="Guayas/Santa Elena",'Tablas Guayaquil'!C195,'Tablas Resto de Ecuador'!C195) -> 11489 | D195: =IF('INGRESO DE DATOS'!$G$21="Guayas/Santa Elena",'Tablas Guayaquil'!D195,'Tablas Resto de Ecuador'!D195) -> 11260 | E195: =IF('INGRESO DE DATOS'!$G$21="Guayas/Santa Elena",'Tablas Guayaquil'!E195,'Tablas Resto de Ecuador'!E195) -> 10612 | F195: =IF('INGRESO DE DATOS'!$G$21="Guayas/Santa Elena",'Tablas Guayaquil'!F195,'Tablas Resto de Ecuador'!F195) -> 9679 | G195: =IF('INGRESO DE DATOS'!$G$21="Guayas/Santa Elena",'Tablas Guayaquil'!G195,'Tablas Resto de Ecuador'!G195) -> 8901
A196: 67 | C196: =IF('INGRESO DE DATOS'!$G$21="Guayas/Santa Elena",'Tablas Guayaquil'!C196,'Tablas Resto de Ecuador'!C196) -> 12405 | D196: =IF('INGRESO DE DATOS'!$G$21="Guayas/Santa Elena",'Tablas Guayaquil'!D196,'Tablas Resto de Ecuador'!D196) -> 12164 | E196: =IF('INGRESO DE DATOS'!$G$21="Guayas/Santa Elena",'Tablas Guayaquil'!E196,'Tablas Resto de Ecuador'!E196) -> 11461 | F196: =IF('INGRESO DE DATOS'!$G$21="Guayas/Santa Elena",'Tablas Guayaquil'!F196,'Tablas Resto de Ecuador'!F196) -> 10451 | G196: =IF('INGRESO DE DATOS'!$G$21="Guayas/Santa Elena",'Tablas Guayaquil'!G196,'Tablas Resto de Ecuador'!G196) -> 9616
A197: 68 | C197: =IF('INGRESO DE DATOS'!$G$21="Guayas/Santa Elena",'Tablas Guayaquil'!C197,'Tablas Resto de Ecuador'!C197) -> 13462 | D197: =IF('INGRESO DE DATOS'!$G$21="Guayas/Santa Elena",'Tablas Guayaquil'!D197,'Tablas Resto de Ecuador'!D197) -> 13188 | E197: =IF('INGRESO DE DATOS'!$G$21="Guayas/Santa Elena",'Tablas Guayaquil'!E197,'Tablas Resto de Ecuador'!E197) -> 12431 | F197: =IF('INGRESO DE DATOS'!$G$21="Guayas/Santa Elena",'Tablas Guayaquil'!F197,'Tablas Resto de Ecuador'!F197) -> 11333 | G197: =IF('INGRESO DE DATOS'!$G$21="Guayas/Santa Elena",'Tablas Guayaquil'!G197,'Tablas Resto de Ecuador'!G197) -> 10428
A198: 69 | C198: =IF('INGRESO DE DATOS'!$G$21="Guayas/Santa Elena",'Tablas Guayaquil'!C198,'Tablas Resto de Ecuador'!C198) -> 14690 | D198: =IF('INGRESO DE DATOS'!$G$21="Guayas/Santa Elena",'Tablas Guayaquil'!D198,'Tablas Resto de Ecuador'!D198) -> 14400 | E198: =IF('INGRESO DE DATOS'!$G$21="Guayas/Santa Elena",'Tablas Guayaquil'!E198,'Tablas Resto de Ecuador'!E198) -> 13567 | F198: =IF('INGRESO DE DATOS'!$G$21="Guayas/Santa Elena",'Tablas Guayaquil'!F198,'Tablas Resto de Ecuador'!F198) -> 12369 | G198: =IF('INGRESO DE DATOS'!$G$21="Guayas/Santa Elena",'Tablas Guayaquil'!G198,'Tablas Resto de Ecuador'!G198) -> 11392
A199: 70 | C199: =IF('INGRESO DE DATOS'!$G$21="Guayas/Santa Elena",'Tablas Guayaquil'!C199,'Tablas Resto de Ecuador'!C199) -> 16116 | D199: =IF('INGRESO DE DATOS'!$G$21="Guayas/Santa Elena",'Tablas Guayaquil'!D199,'Tablas Resto de Ecuador'!D199) -> 15788 | E199: =IF('INGRESO DE DATOS'!$G$21="Guayas/Santa Elena",'Tablas Guayaquil'!E199,'Tablas Resto de Ecuador'!E199) -> 14756 | F199: =IF('INGRESO DE DATOS'!$G$21="Guayas/Santa Elena",'Tablas Guayaquil'!F199,'Tablas Resto de Ecuador'!F199) -> 13568 | G199: =IF('INGRESO DE DATOS'!$G$21="Guayas/Santa Elena",'Tablas Guayaquil'!G199,'Tablas Resto de Ecuador'!G199) -> 12671
A200: 71 | C200: =IF('INGRESO DE DATOS'!$G$21="Guayas/Santa Elena",'Tablas Guayaquil'!C200,'Tablas Resto de Ecuador'!C200) -> 17739 | D200: =IF('INGRESO DE DATOS'!$G$21="Guayas/Santa Elena",'Tablas Guayaquil'!D200,'Tablas Resto de Ecuador'!D200) -> 17387 | E200: =IF('INGRESO DE DATOS'!$G$21="Guayas/Santa Elena",'Tablas Guayaquil'!E200,'Tablas Resto de Ecuador'!E200) -> 16387 | F200: =IF('INGRESO DE DATOS'!$G$21="Guayas/Santa Elena",'Tablas Guayaquil'!F200,'Tablas Resto de Ecuador'!F200) -> 14939 | G200: =IF('INGRESO DE DATOS'!$G$21="Guayas/Santa Elena",'Tablas Guayaquil'!G200,'Tablas Resto de Ecuador'!G200) -> 13953
A201: 72 | C201: =IF('INGRESO DE DATOS'!$G$21="Guayas/Santa Elena",'Tablas Guayaquil'!C201,'Tablas Resto de Ecuador'!C201) -> 19631 | D201: =IF('INGRESO DE DATOS'!$G$21="Guayas/Santa Elena",'Tablas Guayaquil'!D201,'Tablas Resto de Ecuador'!D201) -> 19234 | E201: =IF('INGRESO DE DATOS'!$G$21="Guayas/Santa Elena",'Tablas Guayaquil'!E201,'Tablas Resto de Ecuador'!E201) -> 18131 | F201: =IF('INGRESO DE DATOS'!$G$21="Guayas/Santa Elena",'Tablas Guayaquil'!F201,'Tablas Resto de Ecuador'!F201) -> 16532 | G201: =IF('INGRESO DE DATOS'!$G$21="Guayas/Santa Elena",'Tablas Guayaquil'!G201,'Tablas Resto de Ecuador'!G201) -> 15446
A202: 73 | C202: =IF('INGRESO DE DATOS'!$G$21="Guayas/Santa Elena",'Tablas Guayaquil'!C202,'Tablas Resto de Ecuador'!C202) -> 21802 | D202: =IF('INGRESO DE DATOS'!$G$21="Guayas/Santa Elena",'Tablas Guayaquil'!D202,'Tablas Resto de Ecuador'!D202) -> 21362 | E202: =IF('INGRESO DE DATOS'!$G$21="Guayas/Santa Elena",'Tablas Guayaquil'!E202,'Tablas Resto de Ecuador'!E202) -> 20137 | F202: =IF('INGRESO DE DATOS'!$G$21="Guayas/Santa Elena",'Tablas Guayaquil'!F202,'Tablas Resto de Ecuador'!F202) -> 18360 | G202: =IF('INGRESO DE DATOS'!$G$21="Guayas/Santa Elena",'Tablas Guayaquil'!G202,'Tablas Resto de Ecuador'!G202) -> 17145
A203: 74 | C203: =IF('INGRESO DE DATOS'!$G$21="Guayas/Santa Elena",'Tablas Guayaquil'!C203,'Tablas Resto de Ecuador'!C203) -> 24310 | D203: =IF('INGRESO DE DATOS'!$G$21="Guayas/Santa Elena",'Tablas Guayaquil'!D203,'Tablas Resto de Ecuador'!D203) -> 23821 | E203: =IF('INGRESO DE DATOS'!$G$21="Guayas/Santa Elena",'Tablas Guayaquil'!E203,'Tablas Resto de Ecuador'!E203) -> 22448 | F203: =IF('INGRESO DE DATOS'!$G$21="Guayas/Santa Elena",'Tablas Guayaquil'!F203,'Tablas Resto de Ecuador'!F203) -> 20466 | G203: =IF('INGRESO DE DATOS'!$G$21="Guayas/Santa Elena",'Tablas Guayaquil'!G203,'Tablas Resto de Ecuador'!G203) -> 19119
... 978 more rows

Sheet Tablas Guayaquil (hidden)
A2: FLEX 500 | K2: FACTOR MENSUAL: | M2: =1.06/12 -> 0.08833333333
A3: TARIFAS ANUALES | K3: FACTOR SEMESTRAL: | M3: =1.03/2 -> 0.515
A4: EDAD | K4: FACTOR TRIMESTRAL: | M4: =1.045/4 -> 0.26125
C5: F500-1 | D5: F500-2 | E5: F500-3 | F5: F500-4 | G5: F500-5 | H5: F500-6 | I5: F500-7
A6: 18 | C6: 2425 | D6: 2074 | E6: 1519 | F6: 1047 | G6: 571 | H6: 329 | I6: 189
A7: 19 | C7: 2465 | D7: 2074 | E7: 1519 | F7: 1048 | G7: 577 | H7: 334 | I7: 194
A8: 20 | C8: 2508 | D8: 2074 | E8: 1519 | F8: 1052 | G8: 583 | H8: 339 | I8: 198
A9: 21 | C9: 2556 | D9: 2074 | E9: 1521 | F9: 1058 | G9: 590 | H9: 346 | I9: 204
A10: 22 | C10: 2597 | D10: 2074 | E10: 1526 | F10: 1066 | G10: 599 | H10: 353 | I10: 209
A11: 23 | C11: 2640 | D11: 2080 | E11: 1536 | F11: 1077 | G11: 609 | H11: 361 | I11: 214
A12: 24 | C12: 2647 | D12: 2090 | E12: 1548 | F12: 1092 | G12: 620 | H12: 370 | I12: 222
A13: 25 | C13: 2659 | D13: 2104 | E13: 1564 | F13: 1108 | G13: 633 | H13: 380 | I13: 229
A14: 26 | C14: 2679 | D14: 2125 | E14: 1587 | F14: 1127 | G14: 649 | H14: 391 | I14: 237
A15: 27 | C15: 2706 | D15: 2152 | E15: 1612 | F15: 1149 | G15: 665 | H15: 403 | I15: 246
A16: 28 | C16: 2739 | D16: 2184 | E16: 1641 | F16: 1175 | G16: 684 | H16: 417 | I16: 255
A17: 29 | C17: 2779 | D17: 2220 | E17: 1674 | F17: 1204 | G17: 705 | H17: 432 | I17: 267
A18: 30 | C18: 2825 | D18: 2265 | E18: 1713 | F18: 1236 | G18: 729 | H18: 448 | I18: 278
A19: 31 | C19: 2881 | D19: 2315 | E19: 1757 | F19: 1271 | G19: 753 | H19: 466 | I19: 292
A20: 32 | C20: 2945 | D20: 2373 | E20: 1804 | F20: 1310 | G20: 782 | H20: 485 | I20: 305
A21: 33 | C21: 3017 | D21: 2436 | E21: 1859 | F21: 1355 | G21: 811 | H21: 507 | I21: 320
A22: 34 | C22: 3097 | D22: 2507 | E22: 1919 | F22: 1404 | G22: 844 | H22: 529 | I22: 337
A23: 35 | C23: 3186 | D23: 2585 | E23: 1985 | F23: 1457 | G23: 880 | H23: 555 | I23: 355
A24: 36 | C24: 3285 | D24: 2672 | E24: 2057 | F24: 1513 | G24: 920 | H24: 583 | I24: 375
A25: 37 | C25: 3394 | D25: 2767 | E25: 2135 | F25: 1577 | G25: 963 | H25: 612 | I25: 396
A26: 38 | C26: 3511 | D26: 2869 | E26: 2220 | F26: 1646 | G26: 1009 | H26: 644 | I26: 420
A27: 39 | C27: 3640 | D27: 2981 | E27: 2315 | F27: 1720 | G27: 1059 | H27: 679 | I27: 444
A28: 40 | C28: 3743 | D28: 3103 | E28: 2417 | F28: 1801 | G28: 1115 | H28: 718 | I28: 472
A29: 41 | C29: 3827 | D29: 3235 | E29: 2526 | F29: 1887 | G29: 1173 | H29: 759 | I29: 503
A30: 42 | C30: 3917 | D30: 3379 | E30: 2646 | F30: 1984 | G30: 1238 | H30: 803 | I30: 535
A31: 43 | C31: 4066 | D31: 3534 | E31: 2774 | F31: 2086 | G31: 1308 | H31: 853 | I31: 571
A32: 44 | C32: 4223 | D32: 3673 | E32: 2913 | F32: 2197 | G32: 1384 | H32: 906 | I32: 610
A33: 45 | C33: 4379 | D33: 3807 | E33: 3063 | F33: 2318 | G33: 1465 | H33: 963 | I33: 651
A34: 46 | C34: 4534 | D34: 3943 | E34: 3225 | F34: 2447 | G34: 1554 | H34: 1024 | I34: 696
A35: 47 | C35: 4692 | D35: 4079 | E35: 3399 | F35: 2587 | G35: 1649 | H35: 1091 | I35: 746
A36: 48 | C36: 4859 | D36: 4223 | E36: 3588 | F36: 2739 | G36: 1752 | H36: 1165 | I36: 800
A37: 49 | C37: 5021 | D37: 4366 | E37: 3790 | F37: 2902 | G37: 1864 | H37: 1245 | I37: 858
A38: 50 | C38: 5184 | D38: 4510 | E38: 4023 | F38: 3091 | G38: 1995 | H38: 1336 | I38: 926
A39: 51 | C39: 5347 | D39: 4651 | E39: 4241 | F39: 3318 | G39: 2154 | H39: 1449 | I39: 1009
A40: 52 | C40: 5512 | D40: 4795 | E40: 4372 | F40: 3562 | G40: 2323 | H40: 1570 | I40: 1099
A41: 53 | C41: 5708 | D41: 4962 | E41: 4528 | F41: 3824 | G41: 2505 | H41: 1699 | I41: 1196
A42: 54 | C42: 5903 | D42: 5133 | E42: 4681 | F42: 4107 | G42: 2701 | H42: 1838 | I42: 1300
A43: 55 | C43: 6102 | D43: 5305 | E43: 4835 | F43: 4266 | G43: 2911 | H43: 1987 | I43: 1411
A44: 56 | C44: 6296 | D44: 5473 | E44: 4988 | F44: 4413 | G44: 3081 | H44: 2148 | I44: 1530
A45: 57 | C45: 6487 | D45: 5644 | E45: 5144 | F45: 4561 | G45: 3176 | H45: 2320 | I45: 1659
A46: 58 | C46: 6713 | D46: 5836 | E46: 5306 | F46: 4757 | G46: 3303 | H46: 2505 | I46: 1797
A47: 59 | C47: 6937 | D47: 6032 | E47: 5466 | F47: 4949 | G47: 3427 | H47: 2704 | I47: 1944
A48: 60 | C48: 7160 | D48: 6225 | E48: 5630 | F48: 5143 | G48: 3554 | H48: 2919 | I48: 2105
A49: 61 | C49: 7436 | D49: 6464 | E49: 5872 | F49: 5334 | G49: 3686 | H49: 3149 | I49: 2276
A50: 62 | C50: 7769 | D50: 6755 | E50: 6160 | F50: 5575 | G50: 3853 | H50: 3398 | I50: 2462
A51: 63 | C51: 8169 | D51: 7102 | E51: 6480 | F51: 5861 | G51: 4054 | H51: 3665 | I51: 2661
A52: 64 | C52: 8640 | D52: 7514 | E52: 6849 | F52: 6199 | G52: 4502 | H52: 3954 | I52: 2873
A53: 65 | C53: 9206 | D53: 8002 | E53: 7297 | F53: 6663 | G53: 4819 | H53: 4266 | I53: 3104
A54: 66 | C54: 9866 | D54: 8580 | E54: 7824 | F54: 7196 | G54: 5191 | H54: 4602 | I54: 3353
A55: 67 | C55: 10654 | D55: 9266 | E55: 8450 | F55: 7776 | G55: 5606 | H55: 4965 | I55: 3621
A56: 68 | C56: 11561 | D56: 10050 | E56: 9167 | F56: 8431 | G56: 6079 | H56: 5356 | I56: 3908
A57: 69 | C57: 12615 | D57: 10970 | E57: 10002 | F57: 9207 | G57: 6324 | H57: 5778 | I57: 4218
A58: 70 | C58: 13836 | D58: 12032 | E58: 10875 | F58: 10246 | G58: 6992 | H58: 6232 | I58: 4549
A59: 71 | C59: 15239 | D59: 13252 | E59: 12081 | F59: 11283 | G59: 7703 | H59: 6720 | I59: 4904
A60: 72 | C60: 16856 | D60: 14657 | E60: 13367 | F60: 12487 | G60: 8525 | H60: 7243 | I60: 5282
A61: 73 | C61: 18723 | D61: 16279 | E61: 14841 | F61: 13862 | G61: 9461 | H61: 7803 | I61: 5685
A62: 74 | C62: 20873 | D62: 18148 | E62: 16547 | F62: 15457 | G62: 10552 | H62: 8401 | I62: 6109
A63: 75 | C63: 23337 | D63: 20295 | E63: 18429 | F63: 17392 | G63: 11840 | H63: 9034 | I63: 6555
A64: 76 | C64: 26173 | D64: 22758 | E64: 20734 | F64: 19501 | G64: 13276 | H64: 9702 | I64: 7019
A65: 77 | C65: 29391 | D65: 25560 | E65: 23304 | F65: 21742 | G65: 14912 | H65: 10402 | I65: 7498
A66: 78 | C66: 33026 | D66: 28718 | E66: 26183 | F66: 23322 | G66: 16058 | H66: 11128 | I66: 7985
A67: 79 | C67: 37107 | D67: 32265 | E67: 29420 | F67: 24981 | G67: 17188 | H67: 11874 | I67: 8468
A68: 80 | B68: o más | C68: 41703 | D68: 36514 | E68: 32504 | F68: 26713 | G68: 18353 | H68: 12629 | I68: 8937
A69: 1 | B69: Hijo | C69: 1601 | D69: 1391 | E69: 1008 | F69: 691 | G69: 378 | H69: 218 | I69: 125
A70: 2 | B70: Hijos | C70: 1892 | D70: 1643 | E70: 1192 | F70: 816 | G70: 446 | H70: 256 | I70: 147
A71: 3 | B71: Hijos o más | C71: 2619 | D71: 2276 | E71: 1649 | F71: 1130 | G71: 618 | H71: 355 | I71: 205
A73: TARIFAS MENSUALES
A74: EDAD
C75: F500-1 | D75: F500-2 | E75: F500-3 | F75: F500-4 | G75: F500-5
A76: 18 | C76: =+C6*$M$2 -> 214.2083333 | D76: =+D6*$M$2 -> 183.2033333 | E76: 134.1783333 | F76: 92.485 | G76: 50.43833333 | H76: 29.06166667 | I76: 16.695
A77: 19 | C77: =+C7*$M$2 -> 217.7416667 | D77: 183.2033333 | E77: 134.1783333 | F77: 92.57333333 | G77: 50.96833333 | H77: 29.50333333 | I77: 17.13666667
A78: 20 | C78: 221.54 | D78: 183.2033333 | E78: 134.1783333 | F78: 92.92666667 | G78: 51.49833333 | H78: 29.945 | I78: 17.49
A79: 21 | C79: 225.78 | D79: 183.2033333 | E79: 134.355 | F79: 93.45666667 | G79: 52.11666667 | H79: 30.56333333 | I79: 18.02
A80: 22 | C80: 229.4016667 | D80: 183.2033333 | E80: 134.7966667 | F80: 94.16333333 | G80: 52.91166667 | H80: 31.18166667 | I80: 18.46166667
A81: 23 | C81: 233.2 | D81: 183.7333333 | E81: 135.68 | F81: 95.135 | G81: 53.795 | H81: 31.88833333 | I81: 18.90333333
A82: 24 | C82: 233.8183333 | D82: 184.6166667 | E82: 136.74 | F82: 96.46 | G82: 54.76666667 | H82: 32.68333333 | I82: 19.61
A83: 25 | C83: 234.8783333 | D83: 185.8533333 | E83: 138.1533333 | F83: 97.87333333 | G83: 55.915 | H83: 33.56666667 | I83: 20.22833333
A84: 26 | C84: 236.645 | D84: 187.7083333 | E84: 140.185 | F84: 99.55166667 | G84: 57.32833333 | H84: 34.53833333 | I84: 20.935
A85: 27 | C85: 239.03 | D85: 190.0933333 | E85: 142.3933333 | F85: 101.495 | G85: 58.74166667 | H85: 35.59833333 | I85: 21.73
A86: 28 | C86: 241.945 | D86: 192.92 | E86: 144.955 | F86: 103.7916667 | G86: 60.42 | H86: 36.835 | I86: 22.525
A87: 29 | C87: 245.4783333 | D87: 196.1 | E87: 147.87 | F87: 106.3533333 | G87: 62.275 | H87: 38.16 | I87: 23.585
A88: 30 | C88: 249.5416667 | D88: 200.075 | E88: 151.315 | F88: 109.18 | G88: 64.395 | H88: 39.57333333 | I88: 24.55666667
A89: 31 | C89: 254.4883333 | D89: 204.4916667 | E89: 155.2016667 | F89: 112.2716667 | G89: 66.515 | H89: 41.16333333 | I89: 25.79333333
A90: 32 | C90: 260.1416667 | D90: 209.615 | E90: 159.3533333 | F90: 115.7166667 | G90: 69.07666667 | H90: 42.84166667 | I90: 26.94166667
A91: 33 | C91: 266.5016667 | D91: 215.18 | E91: 164.2116667 | F91: 119.6916667 | G91: 71.63833333 | H91: 44.785 | I91: 28.26666667
A92: 34 | C92: 273.5683333 | D92: 221.4516667 | E92: 169.5116667 | F92: 124.02 | G92: 74.55333333 | H92: 46.72833333 | I92: 29.76833333
A93: 35 | C93: =+C23*$M$2 -> 281.43 | D93: 228.3416667 | E93: 175.3416667 | F93: 128.7016667 | G93: 77.73333333 | H93: 49.025 | I93: 31.35833333
A94: 36 | C94: 290.175 | D94: 236.0266667 | E94: 181.7016667 | F94: 133.6483333 | G94: 81.26666667 | H94: 51.49833333 | I94: 33.125
A95: 37 | C95: 299.8033333 | D95: 244.4183333 | E95: 188.5916667 | F95: 139.3016667 | G95: 85.065 | H95: 54.06 | I95: 34.98
A96: 38 | C96: 310.1383333 | D96: 253.4283333 | E96: 196.1 | F96: 145.3966667 | G96: 89.12833333 | H96: 56.88666667 | I96: 37.1
A97: 39 | C97: 321.5333333 | D97: 263.3216667 | E97: 204.4916667 | F97: 151.9333333 | G97: 93.545 | H97: 59.97833333 | I97: 39.22
A98: 40 | C98: 330.6316667 | D98: 274.0983333 | E98: 213.5016667 | F98: 159.0883333 | G98: 98.49166667 | H98: 63.42333333 | I98: 41.69333333
A99: 41 | C99: 338.0516667 | D99: 285.7583333 | E99: 223.13 | F99: 166.685 | G99: 103.615 | H99: 67.045 | I99: 44.43166667
A100: 42 | C100: 346.0016667 | D100: 298.4783333 | E100: 233.73 | F100: 175.2533333 | G100: 109.3566667 | H100: 70.93166667 | I100: 47.25833333
A101: 43 | C101: 359.1633333 | D101: 312.17 | E101: 245.0366667 | F101: 184.2633333 | G101: 115.54 | H101: 75.34833333 | I101: 50.43833333
A102: 44 | C102: 373.0316667 | D102: 324.4483333 | E102: 257.315 | F102: 194.0683333 | G102: 122.2533333 | H102: 80.03 | I102: 53.88333333
A103: 45 | C103: 386.8116667 | D103: 336.285 | E103: 270.565 | F103: 204.7566667 | G103: 129.4083333 | H103: 85.065 | I103: 57.505
A104: 46 | C104: 400.5033333 | D104: 348.2983333 | E104: 284.875 | F104: 216.1516667 | G104: 137.27 | H104: 90.45333333 | I104: 61.48
A105: 47 | C105: 414.46 | D105: 360.3116667 | E105: 300.245 | F105: 228.5183333 | G105: 145.6616667 | H105: 96.37166667 | I105: 65.89666667
A106: 48 | C106: 429.2116667 | D106: 373.0316667 | E106: 316.94 | F106: 241.945 | G106: 154.76 | H106: 102.9083333 | I106: 70.66666667
A107: 49 | C107: 443.5216667 | D107: 385.6633333 | E107: 334.7833333 | F107: 256.3433333 | G107: 164.6533333 | H107: 109.975 | I107: 75.79
A108: 50 | C108: 457.92 | D108: 398.3833333 | E108: 355.365 | F108: 273.0383333 | G108: 176.225 | H108: 118.0133333 | I108: 81.79666667
A109: 51 | C109: =+C39*$M$2 -> 472.3183333 | D109: 410.8383333 | E109: 374.6216667 | F109: 293.09 | G109: 190.27 | H109: 127.995 | I109: 89.12833333
A110: 52 | C110: 486.8933333 | D110: 423.5583333 | E110: 386.1933333 | F110: 314.6433333 | G110: 205.1983333 | H110: 138.6833333 | I110: 97.07833333
A111: 53 | C111: 504.2066667 | D111: 438.31 | E111: 399.9733333 | F111: 337.7866667 | G111: 221.275 | H111: 150.0783333 | I111: 105.6466667
A112: 54 | C112: 521.4316667 | D112: 453.415 | E112: 413.4883333 | F112: 362.785 | G112: 238.5883333 | H112: 162.3566667 | I112: 114.8333333
A113: 55 | C113: 539.01 | D113: 468.6083333 | E113: 427.0916667 | F113: 376.83 | G113: 257.1383333 | H113: 175.5183333 | I113: 124.6383333
A114: 56 | C114: 556.1466667 | D114: 483.4483333 | E114: 440.6066667 | F114: 389.815 | G114: 272.155 | H114: 189.74 | I114: 135.15
A115: 57 | C115: 573.0183333 | D115: 498.5533333 | E115: 454.3866667 | F115: 402.8883333 | G115: 280.5466667 | H115: 204.9333333 | I115: 146.545
A116: 58 | C116: 592.9816667 | D116: 515.5133333 | E116: 468.6966667 | F116: 420.2016667 | G116: 291.765 | H116: 221.275 | I116: 158.735
A117: 59 | C117: 612.7683333 | D117: 532.8266667 | E117: 482.83 | F117: 437.1616667 | G117: 302.7183333 | H117: 238.8533333 | I117: 171.72
A118: 60 | C118: 632.4666667 | D118: 549.875 | E118: 497.3166667 | F118: 454.2983333 | G118: 313.9366667 | H118: 257.845 | I118: 185.9416667
A119: 61 | C119: 656.8466667 | D119: 570.9866667 | E119: 518.6933333 | F119: 471.17 | G119: 325.5966667 | H119: 278.1616667 | I119: 201.0466667
A120: 62 | C120: 686.2616667 | D120: 596.6916667 | E120: 544.1333333 | F120: 492.4583333 | G120: 340.3483333 | H120: 300.1566667 | I120: 217.4766667
A121: 63 | C121: 721.595 | D121: 627.3433333 | E121: 572.4 | F121: 517.7216667 | G121: 358.1033333 | H121: 323.7416667 | I121: 235.055
A122: 64 | C122: 763.2 | D122: 663.7366667 | E122: 604.995 | F122: 547.5783333 | G122: 397.6766667 | H122: 349.27 | I122: 253.7816667
A123: 65 | C123: 813.1966667 | D123: 706.8433333 | E123: 644.5683333 | F123: 588.565 | G123: 425.6783333 | H123: 376.83 | I123: 274.1866667
A124: 66 | C124: 871.4966667 | D124: 757.9 | E124: 691.12 | F124: 635.6466667 | G124: 458.5383333 | H124: 406.51 | I124: 296.1816667
A125: 67 | C125: =+C55*$M$2 -> 941.1033333 | D125: 818.4966667 | E125: 746.4166667 | F125: 686.88 | G125: 495.1966667 | H125: 438.575 | I125: 319.855
A126: 68 | C126: 1021.221667 | D126: 887.75 | E126: 809.7516667 | F126: 744.7383333 | G126: 536.9783333 | H126: 473.1133333 | I126: 345.2066667
A127: 69 | C127: 1114.325 | D127: 969.0166667 | E127: 883.51 | F127: 813.285 | G127: 558.62 | H127: 510.39 | I127: 372.59
A128: 70 | C128: 1222.18 | D128: 1062.826667 | E128: 960.625 | F128: 905.0633333 | G128: 617.6266667 | H128: 550.4933333 | I128: 401.8283333
A129: 71 | C129: 1346.111667 | D129: 1170.593333 | E129: 1067.155 | F129: 996.665 | G129: 680.4316667 | H129: 593.6 | I129: 433.1866667
A130: 72 | C130: 1488.946667 | D130: 1294.701667 | E130: 1180.751667 | F130: 1103.018333 | G130: 753.0416667 | H130: 639.7983333 | I130: 466.5766667
A131: 73 | C131: 1653.865 | D131: 1437.978333 | E131: 1310.955 | F131: 1224.476667 | G131: 835.7216667 | H131: 689.265 | I131: 502.175
A132: 74 | C132: 1843.781667 | D132: 1603.073333 | E132: 1461.651667 | F132: 1365.368333 | G132: 932.0933333 | H132: 742.0883333 | I132: 539.6283333
A133: 75 | C133: 2061.435 | D133: 1792.725 | E133: 1627.895 | F133: 1536.293333 | G133: 1045.866667 | H133: 798.0033333 | I133: 579.025
A134: 76 | C134: 2311.948333 | D134: 2010.29 | E134: 1831.503333 | F134: 1722.588333 | G134: 1172.713333 | H134: 857.01 | I134: 620.0116667
A135: 77 | C135: 2596.205 | D135: 2257.8 | E135: 2058.52 | F135: 1920.543333 | G135: 1317.226667 | H135: 918.8433333 | I135: 662.3233333
A136: 78 | C136: 2917.296667 | D136: 2536.756667 | E136: 2312.831667 | F136: 2060.11 | G136: 1418.456667 | H136: 982.9733333 | I136: 705.3416667
A137: 79 | C137: 3277.785 | D137: 2850.075 | E137: 2598.766667 | F137: 2206.655 | G137: 1518.273333 | H137: 1048.87 | I137: 748.0066667
A138: 80 | B138: o más | C138: 3683.765 | D138: 3225.403333 | E138: 2871.186667 | F138: 2359.648333 | G138: 1621.181667 | H138: 1115.561667 | I138: 789.435
A139: 1 | B139: Hijo | C139: 141.4216667 | D139: 122.8716667 | E139: 89.04 | F139: 61.03833333 | G139: 33.39 | H139: 19.25666667 | I139: 11.04166667
A140: 2 | B140: Hijos | C140: 167.1266667 | D140: 145.1316667 | E140: 105.2933333 | F140: 72.08 | G140: 39.39666667 | H140: 22.61333333 | I140: 12.985
A141: 3 | B141: Hijos o más | C141: =+C71*$M$2 -> 231.345 | D141: 201.0466667 | E141: 145.6616667 | F141: 99.81666667 | G141: 54.59 | H141: 31.35833333 | I141: 18.10833333
A143: FLEX 100
A144: TARIFAS ANUALES
A145: EDAD
C146: F100-1 | D146: F100-2 | E146: F100-3 | F146: F100-4 | G146: F100-5
A147: 18 | C147: 3048 | D147: 2986 | E147: 2821 | F147: 2573 | G147: 1991
A148: 19 | C148: 3105 | D148: 3044 | E148: 2870 | F148: 2619 | G148: 2031
A149: 20 | C149: 3157 | D149: 3087 | E149: 2916 | F149: 2657 | G149: 2070
A150: 21 | C150: 3210 | D150: 3145 | E150: 2962 | F150: 2700 | G150: 2115
A151: 22 | C151: 3260 | D151: 3205 | E151: 3013 | F151: 2752 | G151: 2162
A152: 23 | C152: 3321 | D152: 3253 | E152: 3066 | F152: 2792 | G152: 2206
A153: 24 | C153: 3376 | D153: 3307 | E153: 3118 | F153: 2842 | G153: 2250
A154: 25 | C154: 3427 | D154: 3359 | E154: 3159 | F154: 2891 | G154: 2303
A155: 26 | C155: 3483 | D155: 3414 | E155: 3216 | F155: 2932 | G155: 2342
A156: 27 | C156: 3532 | D156: 3464 | E156: 3260 | F156: 2979 | G156: 2388
A157: 28 | C157: 3598 | D157: 3529 | E157: 3325 | F157: 3032 | G157: 2445
A158: 29 | C158: 3663 | D158: 3590 | E158: 3384 | F158: 3083 | G158: 2508
A159: 30 | C159: 3729 | D159: 3651 | E159: 3441 | F159: 3140 | G159: 2562
A160: 31 | C160: 3788 | D160: 3712 | E160: 3496 | F160: 3191 | G160: 2619
A161: 32 | C161: 3856 | D161: 3774 | E161: 3561 | F161: 3245 | G161: 2672
A162: 33 | C162: 3958 | D162: 3878 | E162: 3656 | F162: 3329 | G162: 2756
A163: 34 | C163: 4063 | D163: 3983 | E163: 3752 | F163: 3421 | G163: 2836
A164: 35 | C164: 4168 | D164: 4086 | E164: 3853 | F164: 3511 | G164: 2916
A165: 36 | C165: 4272 | D165: 4189 | E165: 3949 | F165: 3598 | G165: 3004
A166: 37 | C166: 4376 | D166: 4293 | E166: 4046 | F166: 3692 | G166: 3080
A167: 38 | C167: 4486 | D167: 4398 | E167: 4148 | F167: 3779 | G167: 3170
A168: 39 | C168: 4595 | D168: 4500 | E168: 4243 | F168: 3873 | G168: 3254
A169: 40 | C169: 4704 | D169: 4608 | E169: 4343 | F169: 3958 | G169: 3345
A170: 41 | C170: 4814 | D170: 4717 | E170: 4443 | F170: 4049 | G170: 3428
A171: 42 | C171: 4919 | D171: 4820 | E171: 4542 | F171: 4138 | G171: 3524
A172: 43 | C172: 5112 | D172: 5011 | E172: 4720 | F172: 4307 | G172: 3669
A173: 44 | C173: 5310 | D173: 5203 | E173: 4901 | F173: 4473 | G173: 3831
A174: 45 | C174: 5510 | D174: 5391 | E174: 5082 | F174: 4636 | G174: 3984
A175: 46 | C175: 5695 | D175: 5588 | E175: 5263 | F175: 4802 | G175: 4133
A176: 47 | C176: 5896 | D176: 5775 | E176: 5446 | F176: 4966 | G176: 4293
A177: 48 | C177: 6103 | D177: 5977 | E177: 5635 | F177: 5141 | G177: 4448
A178: 49 | C178: 6308 | D178: 6183 | E178: 5826 | F178: 5312 | G178: 4614
A179: 50 | C179: 6513 | D179: 6388 | E179: 6018 | F179: 5486 | G179: 4778
A180: 51 | C180: 6718 | D180: 6591 | E180: 6207 | F180: 5662 | G180: 4940
A181: 52 | C181: 6927 | D181: 6785 | E181: 6400 | F181: 5837 | G181: 5102
A182: 53 | C182: 7170 | D182: 7032 | E182: 6626 | F182: 6041 | G182: 5303
A183: 54 | C183: 7417 | D183: 7273 | E183: 6853 | F183: 6251 | G183: 5496
A184: 55 | C184: 7659 | D184: 7512 | E184: 7082 | F184: 6456 | G184: 5693
A185: 56 | C185: 7908 | D185: 7751 | E185: 7307 | F185: 6665 | G185: 5892
A186: 57 | C186: 8152 | D186: 7991 | E186: 7527 | F186: 6862 | G186: 6089
A187: 58 | C187: 8433 | D187: 8270 | E187: 7764 | F187: 7103 | G187: 6347
A188: 59 | C188: 8711 | D188: 8540 | E188: 8003 | F188: 7340 | G188: 6605
A189: 60 | C189: 8999 | D189: 8812 | E189: 8239 | F189: 7580 | G189: 6862
A190: 61 | C190: 9339 | D190: 9151 | E190: 8597 | F190: 7864 | G190: 7119
A191: 62 | C191: 9757 | D191: 9568 | E191: 9016 | F191: 8222 | G191: 7443
A192: 63 | C192: 10263 | D192: 10055 | E192: 9477 | F192: 8638 | G192: 7824
A193: 64 | C193: 10856 | D193: 10635 | E193: 10027 | F193: 9141 | G193: 8273
A194: 65 | C194: 11563 | D194: 11327 | E194: 10683 | F194: 9739 | G194: 8887
A195: 66 | C195: 12394 | D195: 12146 | E195: 11448 | F195: 10441 | G195: 9602
A196: 67 | C196: 13382 | D196: 13121 | E196: 12363 | F196: 11274 | G196: 10373
A197: 68 | C197: 14522 | D197: 14227 | E197: 13409 | F197: 12225 | G197: 11249
A198: 69 | C198: 15847 | D198: 15533 | E198: 14635 | F198: 13343 | G198: 12289
A199: 70 | C199: 17384 | D199: 17030 | E199: 15919 | F199: 14636 | G199: 13670
A200: 71 | C200: 19137 | D200: 18755 | E200: 17677 | F200: 16116 | G200: 15051
A201: 72 | C201: 21177 | D201: 20748 | E201: 19559 | F201: 17834 | G201: 16662
A202: 73 | C202: 23519 | D202: 23044 | E202: 21723 | F202: 19806 | G202: 18495
A203: 74 | C203: 26224 | D203: 25697 | E203: 24214 | F203: 22077 | G203: 20625
... 978 more rows

Sheet Tablas Resto de Ecuador (hidden)
A2: FLEX 500 | K2: FACTOR MENSUAL: | M2: =1.06/12 -> 0.08833333333
A3: TARIFAS ANUALES | K3: FACTOR SEMESTRAL: | M3: =1.03/2 -> 0.515
A4: EDAD | K4: FACTOR TRIMESTRAL: | M4: =1.045/4 -> 0.26125
C5: F500-1 | D5: F500-2 | E5: F500-3 | F5: F500-4 | G5: F500-5 | H5: F500-6 | I5: F500-7
A6: 18 | C6: 2232 | D6: 1909 | E6: 1398 | F6: 964 | G6: 523 | H6: 301 | I6: 173
A7: 19 | C7: 2268 | D7: 1909 | E7: 1398 | F7: 965 | G7: 529 | H7: 305 | I7: 177
A8: 20 | C8: 2308 | D8: 1909 | E8: 1398 | F8: 967 | G8: 534 | H8: 309 | I8: 181
A9: 21 | C9: 2351 | D9: 1909 | E9: 1400 | F9: 974 | G9: 541 | H9: 316 | I9: 186
A10: 22 | C10: 2389 | D10: 1909 | E10: 1404 | F10: 982 | G10: 549 | H10: 322 | I10: 191
A11: 23 | C11: 2429 | D11: 1913 | E11: 1412 | F11: 992 | G11: 558 | H11: 330 | I11: 196
A12: 24 | C12: 2436 | D12: 1922 | E12: 1425 | F12: 1004 | G12: 569 | H12: 337 | I12: 202
A13: 25 | C13: 2447 | D13: 1936 | E13: 1440 | F13: 1019 | G13: 581 | H13: 347 | I13: 210
A14: 26 | C14: 2465 | D14: 1955 | E14: 1460 | F14: 1037 | G14: 594 | H14: 357 | I14: 216
A15: 27 | C15: 2489 | D15: 1980 | E15: 1483 | F15: 1058 | G15: 610 | H15: 369 | I15: 224
A16: 28 | C16: 2519 | D16: 2008 | E16: 1510 | F16: 1081 | G16: 628 | H16: 381 | I16: 234
A17: 29 | C17: 2557 | D17: 2043 | E17: 1540 | F17: 1108 | G17: 647 | H17: 395 | I17: 243
A18: 30 | C18: 2600 | D18: 2084 | E18: 1577 | F18: 1137 | G18: 668 | H18: 409 | I18: 254
A19: 31 | C19: 2651 | D19: 2131 | E19: 1616 | F19: 1170 | G19: 691 | H19: 425 | I19: 266
A20: 32 | C20: 2710 | D20: 2183 | E20: 1660 | F20: 1206 | G20: 716 | H20: 443 | I20: 279
A21: 33 | C21: 2777 | D21: 2242 | E21: 1710 | F21: 1247 | G21: 743 | H21: 463 | I21: 292
A22: 34 | C22: 2850 | D22: 2306 | E22: 1765 | F22: 1291 | G22: 774 | H22: 483 | I22: 308
A23: 35 | C23: 2932 | D23: 2378 | E23: 1826 | F23: 1340 | G23: 806 | H23: 507 | I23: 324
A24: 36 | C24: 3023 | D24: 2458 | E24: 1893 | F24: 1392 | G24: 843 | H24: 532 | I24: 343
A25: 37 | C25: 3122 | D25: 2545 | E25: 1964 | F25: 1451 | G25: 883 | H25: 559 | I25: 361
A26: 38 | C26: 3231 | D26: 2640 | E26: 2043 | F26: 1513 | G26: 925 | H26: 588 | I26: 383
A27: 39 | C27: 3349 | D27: 2743 | E27: 2131 | F27: 1582 | G27: 972 | H27: 620 | I27: 405
A28: 40 | C28: 3444 | D28: 2855 | E28: 2224 | F28: 1657 | G28: 1022 | H28: 655 | I28: 431
A29: 41 | C29: 3520 | D29: 2976 | E29: 2324 | F29: 1737 | G29: 1075 | H29: 693 | I29: 459
A30: 42 | C30: 3604 | D30: 3110 | E30: 2434 | F30: 1825 | G30: 1135 | H30: 734 | I30: 489
A31: 43 | C31: 3741 | D31: 3251 | E31: 2552 | F31: 1920 | G31: 1199 | H31: 779 | I31: 521
A32: 44 | C32: 3885 | D32: 3380 | E32: 2680 | F32: 2022 | G32: 1268 | H32: 827 | I32: 557
A33: 45 | C33: 4030 | D33: 3503 | E33: 2819 | F33: 2133 | G33: 1342 | H33: 879 | I33: 594
A34: 46 | C34: 4172 | D34: 3628 | E34: 2968 | F34: 2252 | G34: 1425 | H34: 936 | I34: 636
A35: 47 | C35: 4317 | D35: 3752 | E35: 3127 | F35: 2380 | G35: 1511 | H35: 996 | I35: 681
A36: 48 | C36: 4470 | D36: 3885 | E36: 3301 | F36: 2519 | G36: 1607 | H36: 1063 | I36: 731
A37: 49 | C37: 4619 | D37: 4016 | E37: 3487 | F37: 2670 | G37: 1709 | H37: 1137 | I37: 783
A38: 50 | C38: 4770 | D38: 4150 | E38: 3701 | F38: 2844 | G38: 1829 | H38: 1220 | I38: 846
A39: 51 | C39: 4919 | D39: 4280 | E39: 3902 | F39: 3053 | G39: 1974 | H39: 1323 | I39: 922
A40: 52 | C40: 5071 | D40: 4412 | E40: 4022 | F40: 3278 | G40: 2129 | H40: 1434 | I40: 1004
A41: 53 | C41: 5251 | D41: 4566 | E41: 4166 | F41: 3519 | G41: 2296 | H41: 1551 | I41: 1092
A42: 54 | C42: 5432 | D42: 4722 | E42: 4306 | F42: 3779 | G42: 2476 | H42: 1678 | I42: 1187
A43: 55 | C43: 5614 | D43: 4881 | E43: 4448 | F43: 3925 | G43: 2669 | H43: 1814 | I43: 1288
A44: 56 | C44: 5792 | D44: 5035 | E44: 4589 | F44: 4060 | G44: 2824 | H44: 1961 | I44: 1397
A45: 57 | C45: 5969 | D45: 5193 | E45: 4734 | F45: 4197 | G45: 2912 | H45: 2118 | I45: 1515
A46: 58 | C46: 6175 | D46: 5368 | E46: 4882 | F46: 4377 | G46: 3027 | H46: 2287 | I46: 1641
A47: 59 | C47: 6382 | D47: 5550 | E47: 5029 | F47: 4553 | G47: 3142 | H47: 2468 | I47: 1776
A48: 60 | C48: 6587 | D48: 5727 | E48: 5180 | F48: 4731 | G48: 3257 | H48: 2665 | I48: 1922
A49: 61 | C49: 6841 | D49: 5947 | E49: 5403 | F49: 4908 | G49: 3378 | H49: 2874 | I49: 2078
A50: 62 | C50: 7148 | D50: 6215 | E50: 5667 | F50: 5129 | G50: 3533 | H50: 3102 | I50: 2248
A51: 63 | C51: 7516 | D51: 6534 | E51: 5961 | F51: 5393 | G51: 3717 | H51: 3346 | I51: 2429
A52: 64 | C52: 7948 | D52: 6914 | E52: 6302 | F52: 5704 | G52: 4126 | H52: 3611 | I52: 2624
A53: 65 | C53: 8470 | D53: 7363 | E53: 6713 | F53: 6130 | G53: 4417 | H53: 3895 | I53: 2834
A54: 66 | C54: 9077 | D54: 7894 | E54: 7198 | F54: 6619 | G54: 4758 | H54: 4203 | I54: 3061
A55: 67 | C55: 9802 | D55: 8524 | E55: 7774 | F55: 7154 | G55: 5139 | H55: 4533 | I55: 3305
A56: 68 | C56: 10637 | D56: 9247 | E56: 8433 | F56: 7757 | G56: 5573 | H56: 4891 | I56: 3569
A57: 69 | C57: 11606 | D57: 10092 | E57: 9202 | F57: 8471 | G57: 5797 | H57: 5276 | I57: 3851
A58: 70 | C58: 12729 | D58: 11069 | E58: 10005 | F58: 9427 | G58: 6410 | H58: 5690 | I58: 4154
A59: 71 | C59: 14020 | D59: 12192 | E59: 11114 | F59: 10380 | G59: 7061 | H59: 6136 | I59: 4477
A60: 72 | C60: 15508 | D60: 13485 | E60: 12297 | F60: 11488 | G60: 7815 | H60: 6613 | I60: 4823
A61: 73 | C61: 17224 | D61: 14977 | E61: 13655 | F61: 12753 | G61: 8673 | H61: 7125 | I61: 5190
A62: 74 | C62: 19203 | D62: 16696 | E62: 15223 | F62: 14221 | G62: 9673 | H62: 7671 | I62: 5578
A63: 75 | C63: 21470 | D63: 18671 | E63: 16955 | F63: 16001 | G63: 10853 | H63: 8248 | I63: 5985
A64: 76 | C64: 24080 | D64: 20937 | E64: 19076 | F64: 17941 | G64: 12169 | H64: 8859 | I64: 6409
A65: 77 | C65: 27040 | D65: 23516 | E65: 21440 | F65: 20003 | G65: 13670 | H65: 9497 | I65: 6846
A66: 78 | C66: 30385 | D66: 26421 | E66: 24089 | F66: 21457 | G66: 14720 | H66: 10160 | I66: 7290
A67: 79 | C67: 34139 | D67: 29683 | E67: 27067 | F67: 22983 | G67: 15756 | H67: 10842 | I67: 7731
A68: 80 | B68: o más | C68: 38368 | D68: 33594 | E68: 29903 | F68: 24576 | G68: 16824 | H68: 11531 | I68: 8160
A69: 1 | B69: Hijo | C69: 1472 | D69: 1280 | E69: 927 | F69: 635 | G69: 347 | H69: 198 | I69: 114
A70: 2 | B70: Hijos | C70: 1741 | D70: 1512 | E70: 1096 | F70: 752 | G70: 409 | H70: 235 | I70: 134
A71: 3 | B71: Hijos o más | C71: 2410 | D71: 2094 | E71: 1518 | F71: 1041 | G71: 567 | H71: 324 | I71: 187
A73: TARIFAS MENSUALES
A74: EDAD
C75: F500-1 | D75: F500-2 | E75: F500-3 | F75: F500-4 | G75: F500-5
A76: 18 | C76: =+C6*$M$2 -> 197.16 | D76: =+D6*$M$2 -> 168.6283333 | E76: 123.49 | F76: 85.15333333 | G76: 46.19833333 | H76: 26.58833333 | I76: 15.28166667
A77: 19 | C77: =+C7*$M$2 -> 200.34 | D77: 168.6283333 | E77: 123.49 | F77: 85.24166667 | G77: 46.72833333 | H77: 26.94166667 | I77: 15.635
A78: 20 | C78: 203.8733333 | D78: 168.6283333 | E78: 123.49 | F78: 85.41833333 | G78: 47.17 | H78: 27.295 | I78: 15.98833333
A79: 21 | C79: 207.6716667 | D79: 168.6283333 | E79: 123.6666667 | F79: 86.03666667 | G79: 47.78833333 | H79: 27.91333333 | I79: 16.43
A80: 22 | C80: 211.0283333 | D80: 168.6283333 | E80: 124.02 | F80: 86.74333333 | G80: 48.495 | H80: 28.44333333 | I80: 16.87166667
A81: 23 | C81: 214.5616667 | D81: 168.9816667 | E81: 124.7266667 | F81: 87.62666667 | G81: 49.29 | H81: 29.15 | I81: 17.31333333
A82: 24 | C82: 215.18 | D82: 169.7766667 | E82: 125.875 | F82: 88.68666667 | G82: 50.26166667 | H82: 29.76833333 | I82: 17.84333333
A83: 25 | C83: 216.1516667 | D83: 171.0133333 | E83: 127.2 | F83: 90.01166667 | G83: 51.32166667 | H83: 30.65166667 | I83: 18.55
A84: 26 | C84: 217.7416667 | D84: 172.6916667 | E84: 128.9666667 | F84: 91.60166667 | G84: 52.47 | H84: 31.535 | I84: 19.08
A85: 27 | C85: 219.8616667 | D85: 174.9 | E85: 130.9983333 | F85: 93.45666667 | G85: 53.88333333 | H85: 32.595 | I85: 19.78666667
A86: 28 | C86: 222.5116667 | D86: 177.3733333 | E86: 133.3833333 | F86: 95.48833333 | G86: 55.47333333 | H86: 33.655 | I86: 20.67
A87: 29 | C87: 225.8683333 | D87: 180.465 | E87: 136.0333333 | F87: 97.87333333 | G87: 57.15166667 | H87: 34.89166667 | I87: 21.465
A88: 30 | C88: 229.6666667 | D88: 184.0866667 | E88: 139.3016667 | F88: 100.435 | G88: 59.00666667 | H88: 36.12833333 | I88: 22.43666667
A89: 31 | C89: 234.1716667 | D89: 188.2383333 | E89: 142.7466667 | F89: 103.35 | G89: 61.03833333 | H89: 37.54166667 | I89: 23.49666667
A90: 32 | C90: 239.3833333 | D90: 192.8316667 | E90: 146.6333333 | F90: 106.53 | G90: 63.24666667 | H90: 39.13166667 | I90: 24.645
A91: 33 | C91: 245.3016667 | D91: 198.0433333 | E91: 151.05 | F91: 110.1516667 | G91: 65.63166667 | H91: 40.89833333 | I91: 25.79333333
A92: 34 | C92: 251.75 | D92: 203.6966667 | E92: 155.9083333 | F92: 114.0383333 | G92: 68.37 | H92: 42.665 | I92: 27.20666667
A93: 35 | C93: =+C23*$M$2 -> 258.9933333 | D93: 210.0566667 | E93: 161.2966667 | F93: 118.3666667 | G93: 71.19666667 | H93: 44.785 | I93: 28.62
A94: 36 | C94: 267.0316667 | D94: 217.1233333 | E94: 167.215 | F94: 122.96 | G94: 74.465 | H94: 46.99333333 | I94: 30.29833333
A95: 37 | C95: 275.7766667 | D95: 224.8083333 | E95: 173.4866667 | F95: 128.1716667 | G95: 77.99833333 | H95: 49.37833333 | I95: 31.88833333
A96: 38 | C96: 285.405 | D96: 233.2 | E96: 180.465 | F96: 133.6483333 | G96: 81.70833333 | H96: 51.94 | I96: 33.83166667
A97: 39 | C97: 295.8283333 | D97: 242.2983333 | E97: 188.2383333 | F97: 139.7433333 | G97: 85.86 | H97: 54.76666667 | I97: 35.775
A98: 40 | C98: 304.22 | D98: 252.1916667 | E98: 196.4533333 | F98: 146.3683333 | G98: 90.27666667 | H98: 57.85833333 | I98: 38.07166667
A99: 41 | C99: 310.9333333 | D99: 262.88 | E99: 205.2866667 | F99: 153.435 | G99: 94.95833333 | H99: 61.215 | I99: 40.545
A100: 42 | C100: 318.3533333 | D100: 274.7166667 | E100: 215.0033333 | F100: 161.2083333 | G100: 100.2583333 | H100: 64.83666667 | I100: 43.195
A101: 43 | C101: 330.455 | D101: 287.1716667 | E101: 225.4266667 | F101: 169.6 | G101: 105.9116667 | H101: 68.81166667 | I101: 46.02166667
A102: 44 | C102: 343.175 | D102: 298.5666667 | E102: 236.7333333 | F102: 178.61 | G102: 112.0066667 | H102: 73.05166667 | I102: 49.20166667
A103: 45 | C103: 355.9833333 | D103: 309.4316667 | E103: 249.0116667 | F103: 188.415 | G103: 118.5433333 | H103: 77.645 | I103: 52.47
A104: 46 | C104: 368.5266667 | D104: 320.4733333 | E104: 262.1733333 | F104: 198.9266667 | G104: 125.875 | H104: 82.68 | I104: 56.18
A105: 47 | C105: 381.335 | D105: 331.4266667 | E105: 276.2183333 | F105: 210.2333333 | G105: 133.4716667 | H105: 87.98 | I105: 60.155
A106: 48 | C106: 394.85 | D106: 343.175 | E106: 291.5883333 | F106: 222.5116667 | G106: 141.9516667 | H106: 93.89833333 | I106: 64.57166667
A107: 49 | C107: 408.0116667 | D107: 354.7466667 | E107: 308.0183333 | F107: 235.85 | G107: 150.9616667 | H107: 100.435 | I107: 69.165
A108: 50 | C108: 421.35 | D108: 366.5833333 | E108: 326.9216667 | F108: 251.22 | G108: 161.5616667 | H108: 107.7666667 | I108: 74.73
A109: 51 | C109: =+C39*$M$2 -> 434.5116667 | D109: 378.0666667 | E109: 344.6766667 | F109: 269.6816667 | G109: 174.37 | H109: 116.865 | I109: 81.44333333
A110: 52 | C110: 447.9383333 | D110: 389.7266667 | E110: 355.2766667 | F110: 289.5566667 | G110: 188.0616667 | H110: 126.67 | I110: 88.68666667
A111: 53 | C111: 463.8383333 | D111: 403.33 | E111: 367.9966667 | F111: 310.845 | G111: 202.8133333 | H111: 137.005 | I111: 96.46
A112: 54 | C112: 479.8266667 | D112: 417.11 | E112: 380.3633333 | F112: 333.8116667 | G112: 218.7133333 | H112: 148.2233333 | I112: 104.8516667
A113: 55 | C113: 495.9033333 | D113: 431.155 | E113: 392.9066667 | F113: 346.7083333 | G113: 235.7616667 | H113: 160.2366667 | I113: 113.7733333
A114: 56 | C114: 511.6266667 | D114: 444.7583333 | E114: 405.3616667 | F114: 358.6333333 | G114: 249.4533333 | H114: 173.2216667 | I114: 123.4016667
A115: 57 | C115: 527.2616667 | D115: 458.715 | E115: 418.17 | F115: 370.735 | G115: 257.2266667 | H115: 187.09 | I115: 133.825
A116: 58 | C116: 545.4583333 | D116: 474.1733333 | E116: 431.2433333 | F116: 386.635 | G116: 267.385 | H116: 202.0183333 | I116: 144.955
A117: 59 | C117: 563.7433333 | D117: 490.25 | E117: 444.2283333 | F117: 402.1816667 | G117: 277.5433333 | H117: 218.0066667 | I117: 156.88
A118: 60 | C118: 581.8516667 | D118: 505.885 | E118: 457.5666667 | F118: 417.905 | G118: 287.7016667 | H118: 235.4083333 | I118: 169.7766667
A119: 61 | C119: 604.2883333 | D119: 525.3183333 | E119: 477.265 | F119: 433.54 | G119: 298.39 | H119: 253.87 | I119: 183.5566667
A120: 62 | C120: 631.4066667 | D120: 548.9916667 | E120: 500.585 | F120: 453.0616667 | G120: 312.0816667 | H120: 274.01 | I120: 198.5733333
A121: 63 | C121: 663.9133333 | D121: 577.17 | E121: 526.555 | F121: 476.3816667 | G121: 328.335 | H121: 295.5633333 | I121: 214.5616667
A122: 64 | C122: 702.0733333 | D122: 610.7366667 | E122: 556.6766667 | F122: 503.8533333 | G122: 364.4633333 | H122: 318.9716667 | I122: 231.7866667
A123: 65 | C123: 748.1833333 | D123: 650.3983333 | E123: 592.9816667 | F123: 541.4833333 | G123: 390.1683333 | H123: 344.0583333 | I123: 250.3366667
A124: 66 | C124: 801.8016667 | D124: 697.3033333 | E124: 635.8233333 | F124: 584.6783333 | G124: 420.29 | H124: 371.265 | I124: 270.3883333
A125: 67 | C125: =+C55*$M$2 -> 865.8433333 | D125: 752.9533333 | E125: 686.7033333 | F125: 631.9366667 | G125: 453.945 | H125: 400.415 | I125: 291.9416667
A126: 68 | C126: 939.6016667 | D126: 816.8183333 | E126: 744.915 | F126: 685.2016667 | G126: 492.2816667 | H126: 432.0383333 | I126: 315.2616667
A127: 69 | C127: 1025.196667 | D127: 891.46 | E127: 812.8433333 | F127: 748.2716667 | G127: 512.0683333 | H127: 466.0466667 | I127: 340.1716667
A128: 70 | C128: 1124.395 | D128: 977.7616667 | E128: 883.775 | F128: 832.7183333 | G128: 566.2166667 | H128: 502.6166667 | I128: 366.9366667
A129: 71 | C129: 1238.433333 | D129: 1076.96 | E129: 981.7366667 | F129: 916.9 | G129: 623.7216667 | H129: 542.0133333 | I129: 395.4683333
A130: 72 | C130: 1369.873333 | D130: 1191.175 | E130: 1086.235 | F130: 1014.773333 | G130: 690.325 | H130: 584.1483333 | I130: 426.0316667
A131: 73 | C131: 1521.453333 | D131: 1322.968333 | E131: 1206.191667 | F131: 1126.515 | G131: 766.115 | H131: 629.375 | I131: 458.45
A132: 74 | C132: 1696.265 | D132: 1474.813333 | E132: 1344.698333 | F132: 1256.188333 | G132: 854.4483333 | H132: 677.605 | I132: 492.7233333
A133: 75 | C133: 1896.516667 | D133: 1649.271667 | E133: 1497.691667 | F133: 1413.421667 | G133: 958.6816667 | H133: 728.5733333 | I133: 528.675
A134: 76 | C134: 2127.066667 | D134: 1849.435 | E134: 1685.046667 | F134: 1584.788333 | G134: 1074.928333 | H134: 782.545 | I134: 566.1283333
A135: 77 | C135: 2388.533333 | D135: 2077.246667 | E135: 1893.866667 | F135: 1766.931667 | G135: 1207.516667 | H135: 838.9016667 | I135: 604.73
A136: 78 | C136: 2684.008333 | D136: 2333.855 | E136: 2127.861667 | F136: 1895.368333 | G136: 1300.266667 | H136: 897.4666667 | I136: 643.95
A137: 79 | C137: 3015.611667 | D137: 2621.998333 | E137: 2390.918333 | F137: 2030.165 | G137: 1391.78 | H137: 957.71 | I137: 682.905
A138: 80 | B138: o más | C138: 3389.173333 | D138: 2967.47 | E138: 2641.431667 | F138: 2170.88 | G138: 1486.12 | H138: 1018.571667 | I138: 720.8
A139: 1 | B139: Hijo | C139: 130.0266667 | D139: 113.0666667 | E139: 81.885 | F139: 56.09166667 | G139: 30.65166667 | H139: 17.49 | I139: 10.07
A140: 2 | B140: Hijos | C140: 153.7883333 | D140: 133.56 | E140: 96.81333333 | F140: 66.42666667 | G140: 36.12833333 | H140: 20.75833333 | I140: 11.83666667
A141: 3 | B141: Hijos o más | C141: =+C71*$M$2 -> 212.8833333 | D141: 184.97 | E141: 134.09 | F141: 91.955 | G141: 50.085 | H141: 28.62 | I141: 16.51833333
A143: FLEX 100
A144: TARIFAS ANUALES
A145: EDAD
C146: F100-1 | D146: F100-2 | E146: F100-3 | F146: F100-4 | G146: F100-5
A147: 18 | C147: 2825 | D147: 2768 | E147: 2614 | F147: 2385 | G147: 1846
A148: 19 | C148: 2879 | D148: 2822 | E148: 2661 | F148: 2428 | G148: 1884
A149: 20 | C149: 2927 | D149: 2862 | E149: 2703 | F149: 2463 | G149: 1919
A150: 21 | C150: 2975 | D150: 2916 | E150: 2746 | F150: 2503 | G150: 1962
A151: 22 | C151: 3022 | D151: 2972 | E151: 2794 | F151: 2552 | G151: 2004
A152: 23 | C152: 3079 | D152: 3014 | E152: 2842 | F152: 2589 | G152: 2045
A153: 24 | C153: 3130 | D153: 3066 | E153: 2890 | F153: 2634 | G153: 2086
A154: 25 | C154: 3177 | D154: 3113 | E154: 2929 | F154: 2680 | G154: 2135
A155: 26 | C155: 3229 | D155: 3164 | E155: 2982 | F155: 2718 | G155: 2171
A156: 27 | C156: 3274 | D156: 3211 | E156: 3022 | F156: 2762 | G156: 2213
A157: 28 | C157: 3335 | D157: 3271 | E157: 3083 | F157: 2811 | G157: 2267
A158: 29 | C158: 3395 | D158: 3328 | E158: 3136 | F158: 2857 | G158: 2325
A159: 30 | C159: 3457 | D159: 3385 | E159: 3190 | F159: 2912 | G159: 2375
A160: 31 | C160: 3512 | D160: 3440 | E160: 3241 | F160: 2958 | G160: 2428
A161: 32 | C161: 3574 | D161: 3499 | E161: 3301 | F161: 3008 | G161: 2477
A162: 33 | C162: 3669 | D162: 3595 | E162: 3389 | F162: 3086 | G162: 2555
A163: 34 | C163: 3767 | D163: 3693 | E163: 3478 | F163: 3172 | G163: 2630
A164: 35 | C164: 3865 | D164: 3788 | E164: 3572 | F164: 3255 | G164: 2703
A165: 36 | C165: 3961 | D165: 3884 | E165: 3661 | F165: 3335 | G165: 2784
A166: 37 | C166: 4056 | D166: 3979 | E166: 3751 | F166: 3422 | G166: 2856
A167: 38 | C167: 4158 | D167: 4077 | E167: 3845 | F167: 3503 | G167: 2939
A168: 39 | C168: 4260 | D168: 4172 | E168: 3933 | F168: 3590 | G168: 3017
A169: 40 | C169: 4361 | D169: 4272 | E169: 4027 | F169: 3669 | G169: 3100
A170: 41 | C170: 4462 | D170: 4372 | E170: 4119 | F170: 3754 | G170: 3178
A171: 42 | C171: 4560 | D171: 4468 | E171: 4211 | F171: 3835 | G171: 3267
A172: 43 | C172: 4739 | D172: 4645 | E172: 4376 | F172: 3994 | G172: 3401
A173: 44 | C173: 4922 | D173: 4823 | E173: 4543 | F173: 4146 | G173: 3551
A174: 45 | C174: 5109 | D174: 4998 | E174: 4711 | F174: 4298 | G174: 3694
A175: 46 | C175: 5279 | D175: 5181 | E175: 4879 | F175: 4451 | G175: 3832
A176: 47 | C176: 5465 | D176: 5354 | E176: 5049 | F176: 4604 | G176: 3979
A177: 48 | C177: 5659 | D177: 5542 | E177: 5223 | F177: 4765 | G177: 4123
A178: 49 | C178: 5847 | D178: 5732 | E178: 5400 | F178: 4923 | G178: 4278
A179: 50 | C179: 6037 | D179: 5922 | E179: 5578 | F179: 5086 | G179: 4429
A180: 51 | C180: 6227 | D180: 6109 | E180: 5754 | F180: 5249 | G180: 4579
A181: 52 | C181: 6421 | D181: 6291 | E181: 5932 | F181: 5411 | G181: 4729
A182: 53 | C182: 6647 | D182: 6519 | E182: 6142 | F182: 5600 | G182: 4916
A183: 54 | C183: 6875 | D183: 6742 | E183: 6352 | F183: 5794 | G183: 5095
A184: 55 | C184: 7099 | D184: 6964 | E184: 6565 | F184: 5985 | G184: 5277
A185: 56 | C185: 7331 | D185: 7186 | E185: 6774 | F185: 6178 | G185: 5462
A186: 57 | C186: 7557 | D186: 7409 | E186: 6977 | F186: 6361 | G186: 5644
A187: 58 | C187: 7818 | D187: 7667 | E187: 7197 | F187: 6585 | G187: 5883
A188: 59 | C188: 8075 | D188: 7917 | E188: 7419 | F188: 6804 | G188: 6122
A189: 60 | C189: 8342 | D189: 8168 | E189: 7637 | F189: 7026 | G189: 6361
A190: 61 | C190: 8657 | D190: 8484 | E190: 7969 | F190: 7291 | G190: 6599
A191: 62 | C191: 9045 | D191: 8869 | E191: 8357 | F191: 7621 | G191: 6899
A192: 63 | C192: 9514 | D192: 9321 | E192: 8786 | F192: 8008 | G192: 7253
A193: 64 | C193: 10065 | D193: 9859 | E193: 9295 | F193: 8474 | G193: 7669
A194: 65 | C194: 10720 | D194: 10500 | E194: 9904 | F194: 9029 | G194: 8239
A195: 66 | C195: 11489 | D195: 11260 | E195: 10612 | F195: 9679 | G195: 8901
A196: 67 | C196: 12405 | D196: 12164 | E196: 11461 | F196: 10451 | G196: 9616
A197: 68 | C197: 13462 | D197: 13188 | E197: 12431 | F197: 11333 | G197: 10428
A198: 69 | C198: 14690 | D198: 14400 | E198: 13567 | F198: 12369 | G198: 11392
A199: 70 | C199: 16116 | D199: 15788 | E199: 14756 | F199: 13568 | G199: 12671
A200: 71 | C200: 17739 | D200: 17387 | E200: 16387 | F200: 14939 | G200: 13953
A201: 72 | C201: 19631 | D201: 19234 | E201: 18131 | F201: 16532 | G201: 15446
A202: 73 | C202: 21802 | D202: 21362 | E202: 20137 | F202: 18360 | G202: 17145
A203: 74 | C203: 24310 | D203: 23821 | E203: 22448 | F203: 20466 | G203: 19119
... 978 more rows
